Inv Transaction,Supplier Name,Headserv Name,Stratdir Name,Account Description,Paid Date,Sum of Inv Amount
460494,Park Hills Nursing Home,Adult Social Care,Adults,Nursing Home Long Stay Fees,10-Oct,"16,165.36"
460496,CARE UK COMMUNITY PARTNERSHIPS - OAKFIELD CROFT CARE HOME,Adult Social Care,Adults,Nursing Home Long Stay Fees,10-Nov,"3,099.29"
460496,FERN BANK THERAPEUTIC COMMUNITY LTD,Adult Social Care,Adults,Nursing Home Long Stay Fees,03-Oct,"31,174.12"
460497,DIWALI LTD T/A DIWALI NIVAS,Adult Social Care,Adults,Nursing Home Long Stay Fees,09-Oct,"6,857.15"
460497,THE LIGHT HOUSE (Bloomcare Group),Adult Social Care,Adults,Nursing Home Long Stay Fees,09-Oct,"28,045.02"
460498,DEVONSHIRE CARE LIMITED TAS CHARNLEY HOUSE,Adult Social Care,Adults,Nursing Home Long Stay Fees,24-Oct,"63,877.49"
460498,The Lakes Care Centre Ltd,Adult Social Care,Adults,Nursing Home Long Stay Fees,24-Oct,"96,449.17"
460498,Tulsi Homes Ltd T/A Clarkson House (new),Adult Social Care,Adults,Nursing Home Long Stay Fees,24-Oct,"57,166.15"
460499,ABBOTSFORD CARE HOME,Adult Social Care,Adults,Nursing Home Long Stay Fees,26-Oct,"7,290.58"
460499,Advinia Care Homes Ltd,Adult Social Care,Adults,Nursing Home Long Stay Fees,26-Oct,"3,178.83"
460499,ANCHOR HANOVER GROUP TAS HATTON GRANGE CARE HOME,Adult Social Care,Adults,Nursing Home Long Stay Fees,26-Oct,"62,506.16"
460499,Appleton Manor T/A HC One Ltd,Adult Social Care,Adults,Nursing Home Long Stay Fees,26-Oct,"5,950.42"
460499,ARBOUR COURT,Adult Social Care,Adults,Nursing Home Long Stay Fees,26-Oct,"9,021.62"
460499,AUDEN HOUSE RESIDENTIAL HOME,Adult Social Care,Adults,Nursing Home Long Stay Fees,26-Oct,"25,304.49"
460499,Avery Homes Moston Ltd- Acacia Lodge,Adult Social Care,Adults,Nursing Home Long Stay Fees,26-Oct,"2,613.83"
460499,Barchester Healthcare t/a Glenroyd Care Home,Adult Social Care,Adults,Nursing Home Long Stay Fees,26-Oct,"7,257.45"
460499,Beeches t/a Meridian Healthcare LTD,Adult Social Care,Adults,Nursing Home Long Stay Fees,26-Oct,"78,064.07"
460499,BELMONT PARKHILL LTD,Adult Social Care,Adults,Nursing Home Long Stay Fees,26-Oct,"56,855.84"
460499,BOROUGH CARE LTD,Adult Social Care,Adults,Nursing Home Long Stay Fees,26-Oct,"7,948.40"
460499,BOWERFIELD COURT,Adult Social Care,Adults,Nursing Home Long Stay Fees,26-Oct,"21,832.51"
460499,BROOKVALE,Adult Social Care,Adults,Nursing Home Long Stay Fees,26-Oct,"10,211.66"
460499,BROUGHTON HOUSE HOME FOR  EX-SERVICE PERSONNEL,Adult Social Care,Adults,Nursing Home Long Stay Fees,26-Oct,"10,021.43"
460499,BROWNLOW HOUSE RESIDENTIAL CARE,Adult Social Care,Adults,Nursing Home Long Stay Fees,26-Oct,"14,042.65"
460499,CARE TECH - ALPHA HOUSE CARE HOME,Adult Social Care,Adults,Nursing Home Long Stay Fees,26-Oct,"20,178.92"
460499,CARE UK LTD TAS RIVERSIDE CARE CENTRE,Adult Social Care,Adults,Nursing Home Long Stay Fees,26-Oct,"174,615.90"
460499,CARETECH COMMUNITY SERVICES LIMITED,Adult Social Care,Adults,Nursing Home Long Stay Fees,26-Oct,"87,035.75"
460499,Cartwright Care Balmoral Management Ltd,Adult Social Care,Adults,Nursing Home Long Stay Fees,26-Oct,"32,448.22"
460499,Clarence House Care Home,Adult Social Care,Adults,Nursing Home Long Stay Fees,26-Oct,"12,710.49"
460499,D R Price Associates Limited t/a Chataway Nursing Home,Adult Social Care,Adults,Nursing Home Long Stay Fees,26-Oct,"3,780.72"
460499,Daisy Nook House t/a Meridian Healthcare LTD,Adult Social Care,Adults,Nursing Home Long Stay Fees,26-Oct,"63,623.17"
460499,DIWALI LTD T/A DIWALI NIVAS,Adult Social Care,Adults,Nursing Home Long Stay Fees,26-Oct,"3,542.86"
460499,DOMAIN CARE NORTH WEST LTD,Adult Social Care,Adults,Nursing Home Long Stay Fees,26-Oct,"8,836.20"
460499,EACH STEP T/A PARK HOMES UK LTD,Adult Social Care,Adults,Nursing Home Long Stay Fees,26-Oct,"8,053.31"
460499,EHC MOSTON GRANGE LTD,Adult Social Care,Adults,Nursing Home Long Stay Fees,26-Oct,"74,210.53"
460499,Elysium Healthcare,Adult Social Care,Adults,Nursing Home Long Stay Fees,26-Oct,"17,210.89"
460499,Enabling Futures Ltd / The Coach House,Adult Social Care,Adults,Nursing Home Long Stay Fees,26-Oct,"44,278.68"
460499,Equilibrium Healthcare Ltd tas Oakland House Nursing Home,Adult Social Care,Adults,Nursing Home Long Stay Fees,26-Oct,"36,002.24"
460499,FERN BANK THERAPEUTIC COMMUNITY LTD,Adult Social Care,Adults,Nursing Home Long Stay Fees,26-Oct,"32,213.26"
460499,FIELDER LODGE,Adult Social Care,Adults,Nursing Home Long Stay Fees,26-Oct,"4,597.57"
460499,Fir Trees t/a Meridian Healthcare LTD,Adult Social Care,Adults,Nursing Home Long Stay Fees,26-Oct,"95,767.46"
460499,Greatwood House t/a Meridian Healthcare LTD,Adult Social Care,Adults,Nursing Home Long Stay Fees,26-Oct,"129,701.44"
460499,HC One Ltd,Adult Social Care,Adults,Nursing Home Long Stay Fees,26-Oct,"5,876.43"
460499,HC ONE OF A KIND - KINGS PARK,Adult Social Care,Adults,Nursing Home Long Stay Fees,26-Oct,"84,832.27"
460499,HC-ONE LIMITED - BROOKDALE VIEW,Adult Social Care,Adults,Nursing Home Long Stay Fees,26-Oct,"3,192.96"
460499,"HC-ONE LTD, Sunnyside Care Home",Adult Social Care,Adults,Nursing Home Long Stay Fees,26-Oct,"105,519.75"
460499,HEATON LODGE,Adult Social Care,Adults,Nursing Home Long Stay Fees,26-Oct,"3,299.55"
460499,HIGHGROVE REST HOME (BLACKPOOL) LTD,Adult Social Care,Adults,Nursing Home Long Stay Fees,26-Oct,"7,169.25"
460499,Hind Care Ltd T/A Faversham House,Adult Social Care,Adults,Nursing Home Long Stay Fees,06-Nov,"10,791.22"
460499,Holme Lea t/a Meridian Healthcare LTD,Adult Social Care,Adults,Nursing Home Long Stay Fees,26-Oct,"112,248.85"
460499,HURST HALL CARE HOME LTD,Adult Social Care,Adults,Nursing Home Long Stay Fees,26-Oct,"109,808.01"
460499,L & M HEALTHCARE,Adult Social Care,Adults,Nursing Home Long Stay Fees,26-Oct,"4,333.09"
460499,LAUREL BANK RESIDENTIAL CARE HOME LTD,Adult Social Care,Adults,Nursing Home Long Stay Fees,26-Oct,"16,988.86"
460499,LONGWOOD LODGE CARE LTD t/a Longwood Lodge Care Home,Adult Social Care,Adults,Nursing Home Long Stay Fees,26-Oct,"2,929.68"
460499,MARPLE DALE HALL LTD,Adult Social Care,Adults,Nursing Home Long Stay Fees,26-Oct,"3,664.73"
460499,Masterpalm Properties Ltd,Adult Social Care,Adults,Nursing Home Long Stay Fees,26-Oct,"6,331.13"
460499,MBI SOCIAL CARE LTD TAS DOWNSHAW LODGE CARE HOME,Adult Social Care,Adults,Nursing Home Long Stay Fees,26-Oct,"59,121.29"
460499,MENTAL HEALTHCARE UK LTD,Adult Social Care,Adults,Nursing Home Long Stay Fees,26-Oct,"26,315.55"
460499,MERIDIAN HEALTH CARE LTD TAS GUIDE LANE,Adult Social Care,Adults,Nursing Home Long Stay Fees,26-Oct,"113,027.90"
460499,Millbrook Care Home t/a Meridian Healthcare LTD,Adult Social Care,Adults,Nursing Home Long Stay Fees,26-Oct,"52,552.12"
460499,MOSS COTTAGE NURSING HOME,Adult Social Care,Adults,Nursing Home Long Stay Fees,26-Oct,"85,574.47"
460499,Next Chapter Healthcare Ltd,Adult Social Care,Adults,Nursing Home Long Stay Fees,26-Oct,"1,498.62"
460499,NYMS SERVICES LTD TAS PENNINE CARE CENTRE,Adult Social Care,Adults,Nursing Home Long Stay Fees,26-Oct,"49,032.91"
460499,OAKDENE CARE HOME T/A OAKDENE CARE HOME LTD,Adult Social Care,Adults,Nursing Home Long Stay Fees,26-Oct,"4,207.23"
460499,OAKWOOD CARE CENTRE,Adult Social Care,Adults,Nursing Home Long Stay Fees,26-Oct,"37,194.16"
460499,PARTNERSHIP CARING LTD TAS FIRBANK HOUSE NURSING & RESIDENTIAL CARE HOME,Adult Social Care,Adults,Nursing Home Long Stay Fees,26-Oct,"85,691.24"
460499,Pendlebury Care Homes Ltd tas Regency Hall Care Home,Adult Social Care,Adults,Nursing Home Long Stay Fees,26-Oct,"8,593.21"
460499,POLEBANK HALL RESIDENTIAL CARE HOME LTD,Adult Social Care,Adults,Nursing Home Long Stay Fees,26-Oct,"22,900.56"
460499,PROGRESS CARE & EDUCATION LTD,Adult Social Care,Adults,Nursing Home Long Stay Fees,26-Oct,"18,351.07"
460499,ROEFIELD SPECIALIST CARE LIMITED t/a THISTLE MANOR,Adult Social Care,Adults,Nursing Home Long Stay Fees,26-Oct,"40,819.87"
460499,Redacted Supplier,Adult Social Care,Adults,Nursing Home Long Stay Fees,26-Oct,"17,346.32"
460499,SALUTEM LD BIDCO IV LIMITED T/A AMBITO CARE AND EDUCATION,Adult Social Care,Adults,Nursing Home Long Stay Fees,26-Oct,"21,871.11"
460499,Sandon House t/a Meridian Healthcare LTD,Adult Social Care,Adults,Nursing Home Long Stay Fees,26-Oct,"62,929.20"
460499,South Yorkshire Housing Association,Adult Social Care,Adults,Nursing Home Long Stay Fees,26-Oct,"3,863.13"
460499,SPINAL UNIT ACTION GROUP,Adult Social Care,Adults,Nursing Home Long Stay Fees,26-Oct,"5,177.00"
460499,St Christopher�s Trust,Adult Social Care,Adults,Nursing Home Long Stay Fees,26-Oct,"12,324.32"
460499,ST GEORGE'S NURSING HOME (OLDHAM) LTD,Adult Social Care,Adults,Nursing Home Long Stay Fees,26-Oct,"43,148.92"
460499,ST LAWRENCES LODGE,Adult Social Care,Adults,Nursing Home Long Stay Fees,26-Oct,"12,036.00"
460499,STALEY HOUSE EPH,Adult Social Care,Adults,Nursing Home Long Stay Fees,26-Oct,"72,752.09"
460499,Stamford Court Nursing t/a Meridian Healthcare LTD,Adult Social Care,Adults,Nursing Home Long Stay Fees,26-Oct,"92,355.20"
460499,SUNNY BANK PRS LTD,Adult Social Care,Adults,Nursing Home Long Stay Fees,26-Oct,"3,555.74"
460499,THE FIRS CARE HOME LTD,Adult Social Care,Adults,Nursing Home Long Stay Fees,26-Oct,"9,420.01"
460499,THE JOSEPH COX CHARITY,Adult Social Care,Adults,Nursing Home Long Stay Fees,26-Oct,"22,651.56"
460499,THE LIGHT HOUSE (Bloomcare Group),Adult Social Care,Adults,Nursing Home Long Stay Fees,26-Oct,"28,979.87"
460499,THE ROYAL ELMS CARE HOME,Adult Social Care,Adults,Nursing Home Long Stay Fees,26-Oct,"5,906.20"
460499,The Sycamores t/a Meridian Health Care LTD,Adult Social Care,Adults,Nursing Home Long Stay Fees,26-Oct,"109,293.11"
460499,THE VICARAGE RESIDENTIAL CARE HOME,Adult Social Care,Adults,Nursing Home Long Stay Fees,26-Oct,"36,635.79"
460499,THORNCLIFFE GRANGE NURSING HOME,Adult Social Care,Adults,Nursing Home Long Stay Fees,26-Oct,"59,755.36"
460499,TRACS Limited,Adult Social Care,Adults,Nursing Home Long Stay Fees,26-Oct,"11,939.43"
460499,TREETOPS,Adult Social Care,Adults,Nursing Home Long Stay Fees,26-Oct,"126,849.52"
460499,Tulsi Homes Ltd T/A Clarkson House (new),Adult Social Care,Adults,Nursing Home Long Stay Fees,26-Oct,"6,298.13"
460499,Wellington Healthcare (Arden) Ltd t/a Bloomcare,Adult Social Care,Adults,Nursing Home Long Stay Fees,26-Oct,"2,984.90"
460499,Western Park Leicester Limited t/a Western Park Nursing Home,Adult Social Care,Adults,Nursing Home Long Stay Fees,26-Oct,"3,170.72"
460499,WHITEFIELD HOUSE LTD,Adult Social Care,Adults,Nursing Home Long Stay Fees,26-Oct,"20,854.76"
460499,Woodrow House ( Cygnet Healthcare),Adult Social Care,Adults,Nursing Home Long Stay Fees,26-Oct,"60,336.44"
460499,Yew Trees t/a Meridian Healthcare LTD,Adult Social Care,Adults,Nursing Home Long Stay Fees,26-Oct,"116,825.92"
460500,BELMONT PARKHILL LTD,Adult Social Care,Adults,Nursing Home Long Stay Fees,01-Nov,"22,917.88"
460500,THE VICARAGE RESIDENTIAL CARE HOME,Adult Social Care,Adults,Nursing Home Long Stay Fees,01-Nov,"33,648.29"
460501,Redacted Supplier,Adult Social Care,Adults,Nursing Home Long Stay Fees,06-Nov,"6,131.09"
460502,ABBOTSFORD CARE HOME,Adult Social Care,Adults,Nursing Home Long Stay Fees,28-Nov,"1,260.10"
460502,Advinia Care Homes Ltd,Adult Social Care,Adults,Nursing Home Long Stay Fees,28-Nov,"17,325.27"
460502,ANCHOR HANOVER GROUP TAS HATTON GRANGE CARE HOME,Adult Social Care,Adults,Nursing Home Long Stay Fees,28-Nov,"79,870.63"
460502,Appleton Manor T/A HC One Ltd,Adult Social Care,Adults,Nursing Home Long Stay Fees,28-Nov,"9,183.46"
460502,ARBOUR COURT,Adult Social Care,Adults,Nursing Home Long Stay Fees,28-Nov,"12,026.25"
460502,AUDEN HOUSE RESIDENTIAL HOME,Adult Social Care,Adults,Nursing Home Long Stay Fees,28-Nov,"39,691.97"
460502,Avery Homes Moston Ltd- Acacia Lodge,Adult Social Care,Adults,Nursing Home Long Stay Fees,28-Nov,"2,529.51"
460502,Barchester Healthcare t/a Glenroyd Care Home,Adult Social Care,Adults,Nursing Home Long Stay Fees,28-Nov,"7,023.34"
460502,Beeches t/a Meridian Healthcare LTD,Adult Social Care,Adults,Nursing Home Long Stay Fees,28-Nov,"51,007.06"
460502,BELMONT PARKHILL LTD,Adult Social Care,Adults,Nursing Home Long Stay Fees,28-Nov,"62,219.63"
460502,BOWERFIELD COURT,Adult Social Care,Adults,Nursing Home Long Stay Fees,28-Nov,"10,737.30"
460502,BROOKFIELD RESIDENTIAL CARE HOME,Adult Social Care,Adults,Nursing Home Long Stay Fees,28-Nov,"5,883.80"
460502,BROOKVALE,Adult Social Care,Adults,Nursing Home Long Stay Fees,28-Nov,"9,882.25"
460502,BROUGHTON HOUSE HOME FOR  EX-SERVICE PERSONNEL,Adult Social Care,Adults,Nursing Home Long Stay Fees,28-Nov,"4,764.29"
460502,BROWNLOW HOUSE RESIDENTIAL CARE,Adult Social Care,Adults,Nursing Home Long Stay Fees,28-Nov,"16,698.83"
460502,CAPSTONE CARE LTD T/A WALSHAW HALL,Adult Social Care,Adults,Nursing Home Long Stay Fees,28-Nov,"5,426.39"
460502,CARE TECH - ALPHA HOUSE CARE HOME,Adult Social Care,Adults,Nursing Home Long Stay Fees,28-Nov,"19,527.99"
460502,CARE UK LTD TAS RIVERSIDE CARE CENTRE,Adult Social Care,Adults,Nursing Home Long Stay Fees,28-Nov,"190,176.70"
460502,CARETECH COMMUNITY SERVICES LIMITED,Adult Social Care,Adults,Nursing Home Long Stay Fees,21-Dec,"11,940.17"
460502,Cartwright Care Balmoral Management Ltd,Adult Social Care,Adults,Nursing Home Long Stay Fees,28-Nov,"29,171.85"
460502,Clarence House Care Home,Adult Social Care,Adults,Nursing Home Long Stay Fees,28-Nov,"12,300.47"
460502,Cygnet Healthcare t/a Broughton Lodge,Adult Social Care,Adults,Nursing Home Long Stay Fees,28-Nov,"51,288.06"
460502,CYGNET LEARNING DISABILITIES LTD,Adult Social Care,Adults,Nursing Home Long Stay Fees,28-Nov,"22,598.32"
460502,D R Price Associates Limited t/a Chataway Nursing Home,Adult Social Care,Adults,Nursing Home Long Stay Fees,28-Nov,"3,658.76"
460502,Daisy Nook House t/a Meridian Healthcare LTD,Adult Social Care,Adults,Nursing Home Long Stay Fees,28-Nov,"36,389.44"
460502,Dalesview Partnership Limited,Adult Social Care,Adults,Nursing Home Long Stay Fees,28-Nov,"25,905.36"
460502,DEEPDENE CARE LIMITED,Adult Social Care,Adults,Nursing Home Long Stay Fees,28-Nov,"14,852.08"
460502,DEVONSHIRE CARE LIMITED TAS CHARNLEY HOUSE,Adult Social Care,Adults,Nursing Home Long Stay Fees,28-Nov,"90,988.90"
460502,DIWALI LTD T/A DIWALI NIVAS,Adult Social Care,Adults,Nursing Home Long Stay Fees,28-Nov,"3,428.58"
460502,DOMAIN CARE NORTH WEST LTD,Adult Social Care,Adults,Nursing Home Long Stay Fees,28-Nov,"8,551.16"
460502,DOVES NEST LTD,Adult Social Care,Adults,Nursing Home Long Stay Fees,28-Nov,"27,668.94"
460502,Redacted Supplier,Adult Social Care,Adults,Nursing Home Long Stay Fees,28-Nov,"5,933.31"
460502,Elysium Healthcare,Adult Social Care,Adults,Nursing Home Long Stay Fees,28-Nov,"16,655.70"
460502,Enabling Futures Ltd / The Coach House,Adult Social Care,Adults,Nursing Home Long Stay Fees,28-Nov,"14,438.70"
460502,FERN BANK THERAPEUTIC COMMUNITY LTD,Adult Social Care,Adults,Nursing Home Long Stay Fees,28-Nov,"30,081.52"
460502,FIELDER LODGE,Adult Social Care,Adults,Nursing Home Long Stay Fees,28-Nov,"4,449.26"
460502,FINBROOK LTD t/a BERRYCROFT MANOR,Adult Social Care,Adults,Nursing Home Long Stay Fees,28-Nov,"6,383.74"
460502,Fir Trees t/a Meridian Healthcare LTD,Adult Social Care,Adults,Nursing Home Long Stay Fees,28-Nov,"103,632.04"
460502,Firs Hall Care Home Ltd,Adult Social Care,Adults,Nursing Home Long Stay Fees,28-Nov,"5,766.42"
460502,FRANCIS HOUSE FAMILIES LTD,Adult Social Care,Adults,Nursing Home Long Stay Fees,28-Nov,"14,814.29"
460502,Freshfield Care Ltd T/A Bankfield House Care Home,Adult Social Care,Adults,Nursing Home Long Stay Fees,28-Nov,"9,588.86"
460502,Gokul Vrandavan t/a S2 CARE Ltd,Adult Social Care,Adults,Nursing Home Long Stay Fees,28-Nov,"3,330.71"
460502,Greatwood House t/a Meridian Healthcare LTD,Adult Social Care,Adults,Nursing Home Long Stay Fees,28-Nov,"113,672.69"
460502,HC One Ltd,Adult Social Care,Adults,Nursing Home Long Stay Fees,28-Nov,"6,668.41"
460502,HC ONE OF A KIND - KINGS PARK,Adult Social Care,Adults,Nursing Home Long Stay Fees,28-Nov,"110,293.38"
460502,HC-ONE LIMITED - BROOKDALE VIEW,Adult Social Care,Adults,Nursing Home Long Stay Fees,28-Nov,"10,926.17"
460502,"HC-ONE LTD, Sunnyside Care Home",Adult Social Care,Adults,Nursing Home Long Stay Fees,28-Nov,"86,405.36"
460502,HEATHCOTES M LTD,Adult Social Care,Adults,Nursing Home Long Stay Fees,28-Nov,"54,204.71"
460502,HEATHCOTES THE ROOKERY,Adult Social Care,Adults,Nursing Home Long Stay Fees,28-Nov,"21,044.04"
460502,HEATON LODGE,Adult Social Care,Adults,Nursing Home Long Stay Fees,28-Nov,"3,193.11"
460502,Hind Care Ltd T/A Faversham House,Adult Social Care,Adults,Nursing Home Long Stay Fees,28-Nov,"5,058.39"
460502,Holme Lea t/a Meridian Healthcare LTD,Adult Social Care,Adults,Nursing Home Long Stay Fees,28-Nov,"111,273.70"
460502,HURST HALL CARE HOME LTD,Adult Social Care,Adults,Nursing Home Long Stay Fees,28-Nov,"108,351.64"
460502,JVT CARE HOMES LTD T/A WATFORD HOUSE CARE HOME,Adult Social Care,Adults,Nursing Home Long Stay Fees,28-Nov,"9,145.89"
460502,L & M HEALTHCARE,Adult Social Care,Adults,Nursing Home Long Stay Fees,28-Nov,"3,454.46"
460502,Lakeview Health Care Limited,Adult Social Care,Adults,Nursing Home Long Stay Fees,01-Dec,"60,443.88"
460502,LAUREL BANK RESIDENTIAL CARE HOME LTD,Adult Social Care,Adults,Nursing Home Long Stay Fees,28-Nov,"13,682.87"
460502,Leicestershire County Care Ltd,Adult Social Care,Adults,Nursing Home Long Stay Fees,28-Nov,"10,929.29"
460502,LEONARD CHESHIRE DISABILITY,Adult Social Care,Adults,Nursing Home Long Stay Fees,28-Nov,"52,518.56"
460502,Little Sisters of the Poor,Adult Social Care,Adults,Nursing Home Long Stay Fees,28-Nov,"1,621.26"
460502,LONGWOOD LODGE CARE LTD t/a Longwood Lodge Care Home,Adult Social Care,Adults,Nursing Home Long Stay Fees,28-Nov,"2,835.17"
460502,MARPLE DALE HALL LTD,Adult Social Care,Adults,Nursing Home Long Stay Fees,28-Nov,"9,064.37"
460502,Masterpalm Properties Ltd,Adult Social Care,Adults,Nursing Home Long Stay Fees,28-Nov,"8,614.76"
460502,MENTAL HEALTHCARE UK LTD,Adult Social Care,Adults,Nursing Home Long Stay Fees,28-Nov,"17,020.77"
460502,MERIDIAN HEALTH CARE LTD TAS GUIDE LANE,Adult Social Care,Adults,Nursing Home Long Stay Fees,28-Nov,"85,922.99"
460502,Millbrook Care Home t/a Meridian Healthcare LTD,Adult Social Care,Adults,Nursing Home Long Stay Fees,28-Nov,"71,994.26"
460502,MILLFIELD CARE HOME - QUALIA CARE,Adult Social Care,Adults,Nursing Home Long Stay Fees,28-Nov,"26,031.50"
460502,MOSS COTTAGE NURSING HOME,Adult Social Care,Adults,Nursing Home Long Stay Fees,28-Nov,"86,681.62"
460502,Next Chapter Healthcare Ltd,Adult Social Care,Adults,Nursing Home Long Stay Fees,28-Nov,"5,559.94"
460502,Northern Healthcare Limited tas Holland House/Montgomery House,Adult Social Care,Adults,Nursing Home Long Stay Fees,28-Nov,"8,758.82"
460502,NYMS SERVICES LTD TAS PENNINE CARE CENTRE,Adult Social Care,Adults,Nursing Home Long Stay Fees,28-Nov,"61,095.69"
460502,OAKDENE CARE HOME T/A OAKDENE CARE HOME LTD,Adult Social Care,Adults,Nursing Home Long Stay Fees,28-Nov,"4,071.51"
460502,OAKWOOD CARE CENTRE,Adult Social Care,Adults,Nursing Home Long Stay Fees,28-Nov,"35,253.48"
460502,PARTNERSHIP CARING LTD TAS FIRBANK HOUSE NURSING & RESIDENTIAL CARE HOME,Adult Social Care,Adults,Nursing Home Long Stay Fees,28-Nov,"91,070.95"
460502,POLEBANK HALL RESIDENTIAL CARE HOME LTD,Adult Social Care,Adults,Nursing Home Long Stay Fees,28-Nov,"19,902.86"
460502,PRIDELL CARE LTD,Adult Social Care,Adults,Nursing Home Long Stay Fees,28-Nov,"6,687.60"
460502,PROGRESS CARE & EDUCATION LTD,Adult Social Care,Adults,Nursing Home Long Stay Fees,28-Nov,"17,759.10"
460502,ROEFIELD SPECIALIST CARE LIMITED t/a THISTLE MANOR,Adult Social Care,Adults,Nursing Home Long Stay Fees,28-Nov,"33,380.26"
460502,Redacted Supplier,Adult Social Care,Adults,Nursing Home Long Stay Fees,28-Nov,"16,786.75"
460502,SALUTEM LD BIDCO IV LIMITED T/A AMBITO CARE AND EDUCATION,Adult Social Care,Adults,Nursing Home Long Stay Fees,28-Nov,"10,756.29"
460502,Sandon House t/a Meridian Healthcare LTD,Adult Social Care,Adults,Nursing Home Long Stay Fees,28-Nov,"81,318.47"
460502,SignHealth,Adult Social Care,Adults,Nursing Home Long Stay Fees,28-Nov,"21,653.34"
460502,SKOLAK HEALTHCARE LIMITED T/A BEECHILL NURSING HOME,Adult Social Care,Adults,Nursing Home Long Stay Fees,28-Nov,"1,267.80"
460502,South Yorkshire Housing Association,Adult Social Care,Adults,Nursing Home Long Stay Fees,28-Nov,"3,738.51"
460502,SPINAL UNIT ACTION GROUP,Adult Social Care,Adults,Nursing Home Long Stay Fees,28-Nov,"5,010.00"
460502,St Christopher�s Trust,Adult Social Care,Adults,Nursing Home Long Stay Fees,28-Nov,"11,926.76"
460502,ST GEORGE'S NURSING HOME (OLDHAM) LTD,Adult Social Care,Adults,Nursing Home Long Stay Fees,28-Nov,"51,929.84"
460502,ST LAWRENCES LODGE,Adult Social Care,Adults,Nursing Home Long Stay Fees,28-Nov,"21,471.45"
460502,STALEY HOUSE EPH,Adult Social Care,Adults,Nursing Home Long Stay Fees,28-Nov,"60,756.82"
460502,Stamford Court Nursing t/a Meridian Healthcare LTD,Adult Social Care,Adults,Nursing Home Long Stay Fees,28-Nov,"84,245.08"
460502,Sun Healthcare T/A Tapton Grove Care Home,Adult Social Care,Adults,Nursing Home Long Stay Fees,28-Nov,"10,098.38"
460502,SUNNY BANK PRS LTD,Adult Social Care,Adults,Nursing Home Long Stay Fees,28-Nov,"3,441.04"
460502,The Cedars Rest Home Limited,Adult Social Care,Adults,Nursing Home Long Stay Fees,28-Nov,"6,192.86"
460502,The Hennessy Partnership Ltd,Adult Social Care,Adults,Nursing Home Long Stay Fees,28-Nov,"40,546.71"
460502,THE JOSEPH COX CHARITY,Adult Social Care,Adults,Nursing Home Long Stay Fees,28-Nov,"11,140.13"
460502,The Lakes Care Centre Ltd,Adult Social Care,Adults,Nursing Home Long Stay Fees,28-Nov,"97,634.33"
460502,THE LIGHT HOUSE (Bloomcare Group),Adult Social Care,Adults,Nursing Home Long Stay Fees,28-Nov,"28,045.03"
460502,THE ROYAL ELMS CARE HOME,Adult Social Care,Adults,Nursing Home Long Stay Fees,28-Nov,"5,715.68"
460502,The Sycamores t/a Meridian Health Care LTD,Adult Social Care,Adults,Nursing Home Long Stay Fees,28-Nov,"106,811.46"
460502,THE VICARAGE RESIDENTIAL CARE HOME,Adult Social Care,Adults,Nursing Home Long Stay Fees,28-Nov,"34,902.26"
460502,THORNCLIFFE GRANGE NURSING HOME,Adult Social Care,Adults,Nursing Home Long Stay Fees,28-Nov,"113,293.91"
460502,TRACS Limited,Adult Social Care,Adults,Nursing Home Long Stay Fees,28-Nov,"11,554.29"
460502,TREETOPS,Adult Social Care,Adults,Nursing Home Long Stay Fees,28-Nov,"166,663.34"
460502,Tulsi Homes Ltd T/A Clarkson House (new),Adult Social Care,Adults,Nursing Home Long Stay Fees,28-Nov,"47,933.63"
460502,VOYAGE CARE LIMITED,Adult Social Care,Adults,Nursing Home Long Stay Fees,28-Nov,"47,035.10"
460502,Western Park Leicester Limited t/a Western Park Nursing Home,Adult Social Care,Adults,Nursing Home Long Stay Fees,28-Nov,"3,068.44"
460502,WHITEFIELD HOUSE LTD,Adult Social Care,Adults,Nursing Home Long Stay Fees,28-Nov,"2,400.55"
460502,Woodrow House ( Cygnet Healthcare),Adult Social Care,Adults,Nursing Home Long Stay Fees,28-Nov,"58,393.38"
460502,Yew Trees t/a Meridian Healthcare LTD,Adult Social Care,Adults,Nursing Home Long Stay Fees,28-Nov,"118,725.74"
460503,Tulsi Homes Ltd T/A Clarkson House (new),Adult Social Care,Adults,Nursing Home Long Stay Fees,01-Dec,"5,559.71"
460504,ABBOTSFORD CARE HOME,Adult Social Care,Adults,Nursing Home Long Stay Fees,21-Dec,"4,320.35"
460504,Achieve Together Limited,Adult Social Care,Adults,Nursing Home Long Stay Fees,21-Dec,"24,252.78"
460504,Advinia Care Homes Ltd,Adult Social Care,Adults,Nursing Home Long Stay Fees,21-Dec,"6,078.15"
460504,ANCHOR HANOVER GROUP TAS HATTON GRANGE CARE HOME,Adult Social Care,Adults,Nursing Home Long Stay Fees,21-Dec,"93,479.04"
460504,Appleton Manor T/A HC One Ltd,Adult Social Care,Adults,Nursing Home Long Stay Fees,21-Dec,"8,368.71"
460504,AUDEN HOUSE RESIDENTIAL HOME,Adult Social Care,Adults,Nursing Home Long Stay Fees,21-Dec,"29,509.16"
460504,Avery Homes Moston Ltd- Acacia Lodge,Adult Social Care,Adults,Nursing Home Long Stay Fees,21-Dec,"2,613.83"
460504,Barchester Healthcare t/a Glenroyd Care Home,Adult Social Care,Adults,Nursing Home Long Stay Fees,21-Dec,"4,082.21"
460504,Beeches t/a Meridian Healthcare LTD,Adult Social Care,Adults,Nursing Home Long Stay Fees,21-Dec,"67,052.86"
460504,BELMONT PARKHILL LTD,Adult Social Care,Adults,Nursing Home Long Stay Fees,21-Dec,"59,781.53"
460504,BOWERFIELD COURT,Adult Social Care,Adults,Nursing Home Long Stay Fees,21-Dec,"11,095.21"
460504,BROOKFIELD RESIDENTIAL CARE HOME,Adult Social Care,Adults,Nursing Home Long Stay Fees,21-Dec,"2,990.13"
460504,BROOKVALE,Adult Social Care,Adults,Nursing Home Long Stay Fees,21-Dec,"10,211.66"
460504,BROUGHTON HOUSE HOME FOR  EX-SERVICE PERSONNEL,Adult Social Care,Adults,Nursing Home Long Stay Fees,21-Dec,"3,121.43"
460504,BROWNLOW HOUSE RESIDENTIAL CARE,Adult Social Care,Adults,Nursing Home Long Stay Fees,21-Dec,"9,417.69"
460504,CARE TECH - ALPHA HOUSE CARE HOME,Adult Social Care,Adults,Nursing Home Long Stay Fees,21-Dec,"20,178.92"
460504,CARE UK LTD TAS RIVERSIDE CARE CENTRE,Adult Social Care,Adults,Nursing Home Long Stay Fees,21-Dec,"195,353.65"
460504,CARETECH COMMUNITY SERVICES LIMITED,Adult Social Care,Adults,Nursing Home Long Stay Fees,21-Dec,"172,156.18"
460504,Cartwright Care Balmoral Management Ltd,Adult Social Care,Adults,Nursing Home Long Stay Fees,21-Dec,"27,907.69"
460504,Clarence House Care Home,Adult Social Care,Adults,Nursing Home Long Stay Fees,21-Dec,"12,710.49"
460504,Cygnet Healthcare t/a Broughton Lodge,Adult Social Care,Adults,Nursing Home Long Stay Fees,21-Dec,"33,929.03"
460504,CYGNET LEARNING DISABILITIES LTD,Adult Social Care,Adults,Nursing Home Long Stay Fees,21-Dec,"11,484.39"
460504,D R Price Associates Limited t/a Chataway Nursing Home,Adult Social Care,Adults,Nursing Home Long Stay Fees,21-Dec,"3,780.72"
460504,Daisy Nook House t/a Meridian Healthcare LTD,Adult Social Care,Adults,Nursing Home Long Stay Fees,21-Dec,"55,731.32"
460504,Dalesview Partnership Limited,Adult Social Care,Adults,Nursing Home Long Stay Fees,21-Dec,"8,824.90"
460504,DEEPDENE CARE LIMITED,Adult Social Care,Adults,Nursing Home Long Stay Fees,21-Dec,"5,535.71"
460504,DEVONSHIRE CARE LIMITED TAS CHARNLEY HOUSE,Adult Social Care,Adults,Nursing Home Long Stay Fees,21-Dec,"76,111.87"
460504,DOMAIN CARE NORTH WEST LTD,Adult Social Care,Adults,Nursing Home Long Stay Fees,21-Dec,"8,836.20"
460504,DOVES NEST LTD,Adult Social Care,Adults,Nursing Home Long Stay Fees,21-Dec,"9,425.69"
460504,Redacted Supplier,Adult Social Care,Adults,Nursing Home Long Stay Fees,21-Dec,"6,131.09"
460504,Elysium Healthcare,Adult Social Care,Adults,Nursing Home Long Stay Fees,21-Dec,"17,210.89"
460504,FERN BANK THERAPEUTIC COMMUNITY LTD,Adult Social Care,Adults,Nursing Home Long Stay Fees,21-Dec,"33,305.87"
460504,FIELDER LODGE,Adult Social Care,Adults,Nursing Home Long Stay Fees,21-Dec,"4,597.57"
460504,FINBROOK LTD t/a BERRYCROFT MANOR,Adult Social Care,Adults,Nursing Home Long Stay Fees,21-Dec,"3,244.19"
460504,Fir Trees t/a Meridian Healthcare LTD,Adult Social Care,Adults,Nursing Home Long Stay Fees,21-Dec,"112,723.83"
460504,Firs Hall Care Home Ltd,Adult Social Care,Adults,Nursing Home Long Stay Fees,21-Dec,"2,930.47"
460504,FRANCIS HOUSE FAMILIES LTD,Adult Social Care,Adults,Nursing Home Long Stay Fees,21-Dec,"7,528.57"
460504,Greatwood House t/a Meridian Healthcare LTD,Adult Social Care,Adults,Nursing Home Long Stay Fees,21-Dec,"118,779.75"
460504,HC One Ltd,Adult Social Care,Adults,Nursing Home Long Stay Fees,21-Dec,"2,624.15"
460504,HC ONE OF A KIND - KINGS PARK,Adult Social Care,Adults,Nursing Home Long Stay Fees,21-Dec,"79,014.27"
460504,HC-ONE LIMITED - BROOKDALE VIEW,Adult Social Care,Adults,Nursing Home Long Stay Fees,21-Dec,"5,985.17"
460504,"HC-ONE LTD, Sunnyside Care Home",Adult Social Care,Adults,Nursing Home Long Stay Fees,21-Dec,"88,453.26"
460504,HEATHCOTES M LTD,Adult Social Care,Adults,Nursing Home Long Stay Fees,21-Dec,"29,311.96"
460504,HEATHCOTES THE ROOKERY,Adult Social Care,Adults,Nursing Home Long Stay Fees,21-Dec,"10,694.51"
460504,HEATON LODGE,Adult Social Care,Adults,Nursing Home Long Stay Fees,21-Dec,"3,299.55"
460504,HIGHGROVE REST HOME (BLACKPOOL) LTD,Adult Social Care,Adults,Nursing Home Long Stay Fees,21-Dec,"5,535.75"
460504,Holme Lea t/a Meridian Healthcare LTD,Adult Social Care,Adults,Nursing Home Long Stay Fees,21-Dec,"118,295.25"
460504,HURST HALL CARE HOME LTD,Adult Social Care,Adults,Nursing Home Long Stay Fees,21-Dec,"80,356.11"
460504,Ideal Carehomes Number One Limited,Adult Social Care,Adults,Nursing Home Long Stay Fees,21-Dec,"35,097.83"
460504,JVT CARE HOMES LTD T/A WATFORD HOUSE CARE HOME,Adult Social Care,Adults,Nursing Home Long Stay Fees,21-Dec,"3,115.63"
460504,Lakeview Health Care Limited,Adult Social Care,Adults,Nursing Home Long Stay Fees,21-Dec,"19,120.00"
460504,LAUREL BANK RESIDENTIAL CARE HOME LTD,Adult Social Care,Adults,Nursing Home Long Stay Fees,21-Dec,"13,480.59"
460504,Leicestershire County Care Ltd,Adult Social Care,Adults,Nursing Home Long Stay Fees,21-Dec,"3,166.43"
460504,LONGWOOD LODGE CARE LTD t/a Longwood Lodge Care Home,Adult Social Care,Adults,Nursing Home Long Stay Fees,21-Dec,"2,929.68"
460504,MARPLE DALE HALL LTD,Adult Social Care,Adults,Nursing Home Long Stay Fees,21-Dec,"9,366.52"
460504,Masterpalm Properties Ltd,Adult Social Care,Adults,Nursing Home Long Stay Fees,21-Dec,"3,033.57"
460504,Maypole Health Care Ltd,Adult Social Care,Adults,Nursing Home Long Stay Fees,21-Dec,"37,265.78"
460504,MBI SOCIAL CARE LTD TAS DOWNSHAW LODGE CARE HOME,Adult Social Care,Adults,Nursing Home Long Stay Fees,21-Dec,"3,791.71"
460504,MENTAL HEALTHCARE UK LTD,Adult Social Care,Adults,Nursing Home Long Stay Fees,21-Dec,"25,242.50"
460504,MERIDIAN HEALTH CARE LTD TAS GUIDE LANE,Adult Social Care,Adults,Nursing Home Long Stay Fees,21-Dec,"83,886.71"
460504,Millbrook Care Home t/a Meridian Healthcare LTD,Adult Social Care,Adults,Nursing Home Long Stay Fees,21-Dec,"63,391.94"
460504,MILLFIELD CARE HOME - QUALIA CARE,Adult Social Care,Adults,Nursing Home Long Stay Fees,21-Dec,"13,406.55"
460504,MOSS COTTAGE NURSING HOME,Adult Social Care,Adults,Nursing Home Long Stay Fees,21-Dec,"85,271.99"
460504,Next Chapter Healthcare Ltd,Adult Social Care,Adults,Nursing Home Long Stay Fees,21-Dec,"9,992.84"
460504,NYMS SERVICES LTD TAS PENNINE CARE CENTRE,Adult Social Care,Adults,Nursing Home Long Stay Fees,21-Dec,"63,833.45"
460504,OAKWOOD CARE CENTRE,Adult Social Care,Adults,Nursing Home Long Stay Fees,21-Dec,"61,446.44"
460504,PARKVIEW CARE HOME,Adult Social Care,Adults,Nursing Home Long Stay Fees,21-Dec,"13,217.48"
460504,PARTNERSHIP CARING LTD TAS FIRBANK HOUSE NURSING & RESIDENTIAL CARE HOME,Adult Social Care,Adults,Nursing Home Long Stay Fees,21-Dec,"98,439.76"
460504,Pendlebury Care Homes Ltd tas Regency Hall Care Home,Adult Social Care,Adults,Nursing Home Long Stay Fees,21-Dec,"30,634.42"
460504,POLEBANK HALL RESIDENTIAL CARE HOME LTD,Adult Social Care,Adults,Nursing Home Long Stay Fees,21-Dec,"20,566.28"
460504,PRIDELL CARE LTD,Adult Social Care,Adults,Nursing Home Long Stay Fees,21-Dec,"3,398.62"
460504,PROGRESS CARE & EDUCATION LTD,Adult Social Care,Adults,Nursing Home Long Stay Fees,21-Dec,"18,351.07"
460504,ROEFIELD SPECIALIST CARE LIMITED t/a THISTLE MANOR,Adult Social Care,Adults,Nursing Home Long Stay Fees,21-Dec,"30,036.03"
460504,Redacted Supplier,Adult Social Care,Adults,Nursing Home Long Stay Fees,21-Dec,"17,346.32"
460504,ROYAL MASONIC BENEVOLENT INSTITUTION,Adult Social Care,Adults,Nursing Home Long Stay Fees,21-Dec,"9,819.95"
460504,Sandon House t/a Meridian Healthcare LTD,Adult Social Care,Adults,Nursing Home Long Stay Fees,21-Dec,"81,353.56"
460504,SignHealth,Adult Social Care,Adults,Nursing Home Long Stay Fees,21-Dec,"11,004.16"
460504,South Yorkshire Housing Association,Adult Social Care,Adults,Nursing Home Long Stay Fees,21-Dec,"3,863.13"
460504,SPINAL UNIT ACTION GROUP,Adult Social Care,Adults,Nursing Home Long Stay Fees,21-Dec,"5,177.00"
460504,St Christopher�s Trust,Adult Social Care,Adults,Nursing Home Long Stay Fees,21-Dec,"12,324.31"
460504,ST GEORGE'S NURSING HOME (OLDHAM) LTD,Adult Social Care,Adults,Nursing Home Long Stay Fees,21-Dec,"50,128.88"
460504,ST LAWRENCES LODGE,Adult Social Care,Adults,Nursing Home Long Stay Fees,21-Dec,"16,830.57"
460504,STALEY HOUSE EPH,Adult Social Care,Adults,Nursing Home Long Stay Fees,21-Dec,"59,781.53"
460504,Stamford Court Nursing t/a Meridian Healthcare LTD,Adult Social Care,Adults,Nursing Home Long Stay Fees,21-Dec,"98,464.36"
460504,Sun Healthcare T/A Tapton Grove Care Home,Adult Social Care,Adults,Nursing Home Long Stay Fees,21-Dec,"5,131.96"
460504,SUNNY BANK PRS LTD,Adult Social Care,Adults,Nursing Home Long Stay Fees,21-Dec,"3,555.74"
460504,THE FIRS CARE HOME LTD,Adult Social Care,Adults,Nursing Home Long Stay Fees,21-Dec,"7,581.43"
460504,The Lakes Care Centre Ltd,Adult Social Care,Adults,Nursing Home Long Stay Fees,21-Dec,"99,131.61"
460504,THE LIGHT HOUSE (Bloomcare Group),Adult Social Care,Adults,Nursing Home Long Stay Fees,21-Dec,"28,979.87"
460504,The Sycamores t/a Meridian Health Care LTD,Adult Social Care,Adults,Nursing Home Long Stay Fees,21-Dec,"116,413.28"
460504,THE VICARAGE RESIDENTIAL CARE HOME,Adult Social Care,Adults,Nursing Home Long Stay Fees,21-Dec,"30,164.64"
460504,THORNCLIFFE GRANGE NURSING HOME,Adult Social Care,Adults,Nursing Home Long Stay Fees,21-Dec,"75,568.55"
460504,TRACS Limited,Adult Social Care,Adults,Nursing Home Long Stay Fees,21-Dec,"11,939.43"
460504,TREETOPS,Adult Social Care,Adults,Nursing Home Long Stay Fees,21-Dec,"209,428.42"
460504,Tulsi Homes Ltd T/A Clarkson House (new),Adult Social Care,Adults,Nursing Home Long Stay Fees,21-Dec,"48,401.20"
460504,VOYAGE CARE LIMITED,Adult Social Care,Adults,Nursing Home Long Stay Fees,21-Dec,"23,903.08"
460504,Western Park Leicester Limited t/a Western Park Nursing Home,Adult Social Care,Adults,Nursing Home Long Stay Fees,21-Dec,"3,170.72"
460504,WHITEFIELD HOUSE LTD,Adult Social Care,Adults,Nursing Home Long Stay Fees,21-Dec,"2,100.48"
460504,Woodrow House ( Cygnet Healthcare),Adult Social Care,Adults,Nursing Home Long Stay Fees,21-Dec,"60,339.82"
460504,Yew Trees t/a Meridian Healthcare LTD,Adult Social Care,Adults,Nursing Home Long Stay Fees,21-Dec,"122,742.09"
471019,HILTI (GB) LTD,Operations and Neighbourhoods,Operations and Neighbourhoods,General Materials,05-Oct,680
471029,ALTITUDE SERVICES,Operations and Neighbourhoods,Operations and Neighbourhoods,Sub-contractor Services,03-Oct,501.36
471029,ARCO LIMITED,Civil Engineers,Director of Place,Debits Goods Received,03-Oct,"1,297.03"
471029,ARCO LIMITED,Operations and Neighbourhoods,Operations and Neighbourhoods,General Materials,03-Oct,"1,554.95"
471029,BRAMHALL SURFACING LTD,Operations and Neighbourhoods,Operations and Neighbourhoods,Sub-contractor Services,03-Oct,"14,300.00"
471029,HILTI (GB) LTD,Operations and Neighbourhoods,Operations and Neighbourhoods,General Materials,05-Oct,970.3
471029,MARCHINGTON STONE,Operations and Neighbourhoods,Operations and Neighbourhoods,General Materials,03-Oct,555.09
471029,Redacted Supplier,Operations and Neighbourhoods,Operations and Neighbourhoods,Training Course Costs,03-Oct,"1,400.00"
471029,TARMAC CENTRAL LIMITED,Operations and Neighbourhoods,Operations and Neighbourhoods,General Materials,03-Oct,"5,340.58"
471029,TRAFFIC DIRECT LTD,Engineers Client,Director of Place,Sub-contractor Services,03-Oct,"1,240.00"
471029,TRAFFIC DIRECT LTD,Operations and Neighbourhoods,Operations and Neighbourhoods,Sub-contractor Services,03-Oct,"10,035.00"
471029,UBU ENVIRONMENTAL LTD,Operations and Neighbourhoods,Operations and Neighbourhoods,General Materials,03-Oct,"2,250.00"
471029,WOLSELEY UK LTD,Civil Engineers,Director of Place,Debits Goods Received,03-Oct,"1,130.88"
471029,WOLSELEY UK LTD,Operations and Neighbourhoods,Operations and Neighbourhoods,General Materials,03-Oct,333.82
471029,WOTMIX LIMITED,Operations and Neighbourhoods,Operations and Neighbourhoods,General Materials,03-Oct,637
471030,Alliance Automotive UK LV LTD trading as Auto Battery Services,Civil Engineers,Director of Place,Debits Goods Received,10-Oct,126
471030,Alliance Automotive UK LV LTD trading as Auto Battery Services,Operations and Neighbourhoods,Operations and Neighbourhoods,General Materials,10-Oct,732.5
471030,ARCO LIMITED,Civil Engineers,Director of Place,Debits Goods Received,10-Oct,689.08
471030,ARCO LIMITED,Operations and Neighbourhoods,Operations and Neighbourhoods,General Materials,10-Oct,133.71
471030,BRAMHALL SURFACING LTD,Operations and Neighbourhoods,Operations and Neighbourhoods,Sub-contractor Services,10-Oct,"44,640.55"
471030,BRIDGE ELECTRICALSUPPLIES LTD,Operations and Neighbourhoods,Operations and Neighbourhoods,General Materials,10-Oct,993
471030,CASTINGS SERVICES LTD,Civil Engineers,Director of Place,Debits Goods Received,10-Oct,"3,146.00"
471030,CASTINGS SERVICES LTD,Operations and Neighbourhoods,Operations and Neighbourhoods,General Materials,10-Oct,"6,916.00"
471030,GARIC LTD,Operations and Neighbourhoods,Operations and Neighbourhoods,General Materials,10-Oct,"1,980.80"
471030,JM VARDY ELECTRICAL LTD,Operations and Neighbourhoods,Operations and Neighbourhoods,Sub-contractor Services,10-Oct,"3,349.70"
471030,KEN TAYLOR SUPPLIES LTD,Civil Engineers,Director of Place,Debits Goods Received,10-Oct,-55.65
471030,KEN TAYLOR SUPPLIES LTD,Operations and Neighbourhoods,Operations and Neighbourhoods,General Materials,10-Oct,805.93
471030,MARCHINGTON STONE,Civil Engineers,Director of Place,Debits Goods Received,10-Oct,572.52
471030,Redacted Supplier,Operations and Neighbourhoods,Operations and Neighbourhoods,Training Course Costs,10-Oct,"1,300.00"
471030,TARMAC CENTRAL LIMITED,Operations and Neighbourhoods,Operations and Neighbourhoods,General Materials,10-Oct,"28,931.37"
471030,UBU ENVIRONMENTAL LTD,Operations and Neighbourhoods,Operations and Neighbourhoods,General Materials,10-Oct,"2,250.00"
471031,ARCO LIMITED,Civil Engineers,Director of Place,Debits Goods Received,16-Oct,533.95
471031,ARCO LIMITED,Operations and Neighbourhoods,Operations and Neighbourhoods,General Materials,16-Oct,180.63
471031,Assa Abloy Global Solutions UK Ltd t/a Traka,Operations and Neighbourhoods,Operations and Neighbourhoods,General Materials,16-Oct,"1,504.00"
471031,CADUK,Operations and Neighbourhoods,Operations and Neighbourhoods,General Materials,16-Oct,"1,850.00"
471031,CASTINGS SERVICES LTD,Civil Engineers,Director of Place,Debits Goods Received,16-Oct,"1,400.00"
471031,COMPASS MINERALS UK LTD,Civil Engineers,Director of Place,Debits Goods Received,16-Oct,"9,653.93"
471031,EAGLE CIVIL ENGINEERING LTD,Operations and Neighbourhoods,Operations and Neighbourhoods,General Materials,16-Oct,"3,257.42"
471031,GREENHAM TRADING LIMITED,Operations and Neighbourhoods,Operations and Neighbourhoods,General Materials,16-Oct,"1,610.98"
471031,KEN TAYLOR SUPPLIES LTD,Civil Engineers,Director of Place,Debits Goods Received,16-Oct,730.46
471031,KEN TAYLOR SUPPLIES LTD,Operations and Neighbourhoods,Operations and Neighbourhoods,General Materials,16-Oct,"1,130.21"
471031,"Larsen Manufacturing Ltd, t/a Larsen Building Products",Operations and Neighbourhoods,Operations and Neighbourhoods,General Materials,16-Oct,"2,636.10"
471031,MANCHESTER PLANT TRAINING LTD,Operations and Neighbourhoods,Operations and Neighbourhoods,Training Course Costs,16-Oct,"2,950.00"
471031,MetDesk Limited,Operations and Neighbourhoods,Operations and Neighbourhoods,General Materials,16-Oct,"6,560.86"
471031,NORTHWEST UTILITY SOLUTIONS LTD,Multiple Heads of Service,Multiple Strategic Directorates,Tax Retained Sub Contractors,16-Oct,"-1,575.00"
471031,NORTHWEST UTILITY SOLUTIONS LTD,Operations and Neighbourhoods,Operations and Neighbourhoods,Sub-contractor Services,16-Oct,"7,875.00"
471031,P.F.CUSACK(TOOL SUPPLIES) LTD,Civil Engineers,Director of Place,Debits Goods Received,16-Oct,"3,038.65"
471031,Saint-Gobain Building Distribution Limited t/a Benchmark Building Supplies,Civil Engineers,Director of Place,Debits Goods Received,16-Oct,"1,386.60"
471031,Saint-Gobain Building Distribution Limited t/a Benchmark Building Supplies,Operations and Neighbourhoods,Operations and Neighbourhoods,General Materials,16-Oct,19.22
471031,TARMAC CENTRAL LIMITED,Operations and Neighbourhoods,Operations and Neighbourhoods,General Materials,16-Oct,"1,420.32"
471031,TRANSPORT FOR GREATER MANCHESTER,Operations and Neighbourhoods,Operations and Neighbourhoods,Sub-contractor Services,16-Oct,640
471031,WOLSELEY UK LTD,Operations and Neighbourhoods,Operations and Neighbourhoods,General Materials,16-Oct,994.03
471031,WOTMIX LIMITED,Operations and Neighbourhoods,Operations and Neighbourhoods,General Materials,16-Oct,"1,456.50"
471032,ACORN LIGHTING SERVICES LTD,Operations and Neighbourhoods,Operations and Neighbourhoods,Sub-contractor Services,26-Oct,"3,520.00"
471032,ALTITUDE SERVICES,Operations and Neighbourhoods,Operations and Neighbourhoods,General Materials,26-Oct,"11,660.47"
471032,ALTITUDE SERVICES,Operations and Neighbourhoods,Operations and Neighbourhoods,Sub-contractor Services,26-Oct,"7,433.22"
471032,BRAMHALL SURFACING LTD,Operations and Neighbourhoods,Operations and Neighbourhoods,Sub-contractor Services,26-Oct,"37,975.35"
471032,CASTINGS SERVICES LTD,Civil Engineers,Director of Place,Debits Goods Received,26-Oct,"1,780.00"
471032,EAGLE CIVIL ENGINEERING LTD,Operations and Neighbourhoods,Operations and Neighbourhoods,General Materials,26-Oct,"13,476.23"
471032,EAGLE CIVIL ENGINEERING LTD,Operations and Neighbourhoods,Operations and Neighbourhoods,Sub-contractor Services,26-Oct,"7,490.93"
471032,FAIRWAY LANDSCAPES LTD,Operations and Neighbourhoods,Operations and Neighbourhoods,General Materials,26-Oct,"1,472.00"
471032,GLASDON UK LTD,Operations and Neighbourhoods,Operations and Neighbourhoods,General Materials,26-Oct,709.23
471032,GREENHAM TRADING LIMITED,Operations and Neighbourhoods,Operations and Neighbourhoods,General Materials,26-Oct,560.01
471032,Holroyds Skip Hire Limited,Operations and Neighbourhoods,Operations and Neighbourhoods,General Materials,26-Oct,"3,249.85"
471032,KEN TAYLOR SUPPLIES LTD,Civil Engineers,Director of Place,Debits Goods Received,26-Oct,137.5
471032,KEN TAYLOR SUPPLIES LTD,Operations and Neighbourhoods,Operations and Neighbourhoods,General Materials,26-Oct,483.35
471032,"Larsen Manufacturing Ltd, t/a Larsen Building Products",Operations and Neighbourhoods,Operations and Neighbourhoods,General Materials,26-Oct,516
471032,MALLATITE LTD,Civil Engineers,Director of Place,Debits Goods Received,26-Oct,"48,424.00"
471032,PORTAKABIN LTD,Operations and Neighbourhoods,Operations and Neighbourhoods,General Materials,26-Oct,899.42
471032,ROWAN ASHWORTH LIMITED,Operations and Neighbourhoods,Operations and Neighbourhoods,Tipping Facility Fees,26-Oct,"1,040.00"
471032,TARMAC CENTRAL LIMITED,Operations and Neighbourhoods,Operations and Neighbourhoods,General Materials,26-Oct,"1,272.16"
471032,UBU ENVIRONMENTAL LTD,Operations and Neighbourhoods,Operations and Neighbourhoods,General Materials,26-Oct,"1,800.00"
471033,ACORN LIGHTING SERVICES LTD,Operations and Neighbourhoods,Operations and Neighbourhoods,Sub-contractor Services,02-Nov,"13,640.00"
471033,AGGREGATE INDUSTRIES UK LIMITED,Operations and Neighbourhoods,Operations and Neighbourhoods,General Materials,02-Nov,"6,229.23"
471033,ALTITUDE SERVICES,Operations and Neighbourhoods,Operations and Neighbourhoods,General Materials,02-Nov,354.52
471033,ALTITUDE SERVICES,Operations and Neighbourhoods,Operations and Neighbourhoods,Sub-contractor Services,02-Nov,"19,681.16"
471033,AMBERON LTD,Operations and Neighbourhoods,Operations and Neighbourhoods,General Materials,02-Nov,"1,502.85"
471033,BRAMHALL SURFACING LTD,Operations and Neighbourhoods,Operations and Neighbourhoods,Sub-contractor Services,02-Nov,"19,142.81"
471033,EAGLE CIVIL ENGINEERING LTD,Operations and Neighbourhoods,Operations and Neighbourhoods,Sub-contractor Services,02-Nov,"9,569.87"
471033,Elite Force Safety Ltd,Operations and Neighbourhoods,Operations and Neighbourhoods,Training Course Costs,02-Nov,960
471033,GARIC LTD,Operations and Neighbourhoods,Operations and Neighbourhoods,General Materials,02-Nov,"2,796.80"
471033,INSTARMAC GROUP PLC,Civil Engineers,Director of Place,Debits Goods Received,02-Nov,"1,641.60"
471033,KEN TAYLOR SUPPLIES LTD,Civil Engineers,Director of Place,Debits Goods Received,02-Nov,113.7
471033,KEN TAYLOR SUPPLIES LTD,Engineers Client,Director of Place,Traffic Signs,02-Nov,385
471033,KEN TAYLOR SUPPLIES LTD,Operations and Neighbourhoods,Operations and Neighbourhoods,General Materials,02-Nov,"1,019.25"
471033,"Larsen Manufacturing Ltd, t/a Larsen Building Products",Operations and Neighbourhoods,Operations and Neighbourhoods,General Materials,02-Nov,"2,685.40"
471033,MALLATITE LTD,Civil Engineers,Director of Place,Debits Goods Received,02-Nov,"4,185.00"
471033,MANCHESTER PLANT TRAINING LTD,Operations and Neighbourhoods,Operations and Neighbourhoods,Training Course Costs,02-Nov,705
471033,MARWOOD ELECTRICAL CO,Operations and Neighbourhoods,Operations and Neighbourhoods,Sub-contractor Services,02-Nov,"34,809.25"
471033,NORTHWEST UTILITY SOLUTIONS LTD,Multiple Heads of Service,Multiple Strategic Directorates,Tax Retained Sub Contractors,02-Nov,"-1,575.00"
471033,NORTHWEST UTILITY SOLUTIONS LTD,Operations and Neighbourhoods,Operations and Neighbourhoods,Sub-contractor Services,02-Nov,"7,875.00"
471033,PG FABRICATIONS,Multiple Heads of Service,Multiple Strategic Directorates,Tax Retained Sub Contractors,02-Nov,-332
471033,PG FABRICATIONS,Operations and Neighbourhoods,Operations and Neighbourhoods,Sub-contractor Services,02-Nov,"2,580.00"
471033,ROWAN ASHWORTH LIMITED,Operations and Neighbourhoods,Operations and Neighbourhoods,Sub-contractor Services,02-Nov,"21,160.00"
471033,Saint-Gobain Building Distribution Limited t/a Benchmark Building Supplies,Civil Engineers,Director of Place,Debits Goods Received,02-Nov,"1,231.55"
471033,Saint-Gobain Building Distribution Limited t/a Benchmark Building Supplies,Operations and Neighbourhoods,Operations and Neighbourhoods,General Materials,02-Nov,"9,357.16"
471033,Sartorius UK Limited,Operations and Neighbourhoods,Operations and Neighbourhoods,General Materials,02-Nov,567
471033,TARMAC CENTRAL LIMITED,Operations and Neighbourhoods,Operations and Neighbourhoods,General Materials,02-Nov,"2,930.30"
471033,TRAFFIC DIRECT LTD,Operations and Neighbourhoods,Operations and Neighbourhoods,Sub-contractor Services,02-Nov,"1,600.00"
471033,UBU ENVIRONMENTAL LTD,Operations and Neighbourhoods,Operations and Neighbourhoods,Sub-contractor Services,02-Nov,"4,050.00"
471033,W & B FORMWORK 1990 LTD,Operations and Neighbourhoods,Operations and Neighbourhoods,Sub-contractor Services,07-Dec,"6,701.00"
471033,WOLSELEY UK LTD,Operations and Neighbourhoods,Operations and Neighbourhoods,General Materials,02-Nov,"1,000.16"
471034,AGGREGATE INDUSTRIES UK LIMITED,Operations and Neighbourhoods,Operations and Neighbourhoods,General Materials,06-Nov,"16,019.27"
471034,ALLROADS TRAINING,Operations and Neighbourhoods,Operations and Neighbourhoods,Training Course Costs,06-Nov,"1,640.00"
471034,ALTITUDE SERVICES,Operations and Neighbourhoods,Operations and Neighbourhoods,Sub-contractor Services,06-Nov,902.7
471034,ARCO LIMITED,Operations and Neighbourhoods,Operations and Neighbourhoods,General Materials,06-Nov,723.84
471034,BRAMHALL SURFACING LTD,Operations and Neighbourhoods,Operations and Neighbourhoods,Sub-contractor Services,06-Nov,"38,839.50"
471034,CASTINGS SERVICES LTD,Civil Engineers,Director of Place,Debits Goods Received,06-Nov,"1,400.00"
471034,CBS Building and Maintenance,Operations and Neighbourhoods,Operations and Neighbourhoods,General Materials,06-Nov,107.7
471034,CBS Building and Maintenance,Operations and Neighbourhoods,Operations and Neighbourhoods,Sub-contractor Services,06-Nov,442.09
471034,COMPASS MINERALS UK LTD,Civil Engineers,Director of Place,Debits Goods Received,06-Nov,"33,372.11"
471034,DIAMOND DECORATORS UK LTD,Operations and Neighbourhoods,Operations and Neighbourhoods,Sub-contractor Services,06-Nov,"1,015.00"
471034,EAGLE CIVIL ENGINEERING LTD,Operations and Neighbourhoods,Operations and Neighbourhoods,Sub-contractor Services,06-Nov,"2,839.60"
471034,FAIRWAY LANDSCAPES LTD,Operations and Neighbourhoods,Operations and Neighbourhoods,Sub-contractor Services,06-Nov,"16,035.00"
471034,"Larsen Manufacturing Ltd, t/a Larsen Building Products",Operations and Neighbourhoods,Operations and Neighbourhoods,General Materials,06-Nov,"2,400.00"
471034,M.C. & M.A. STEWART HAULAGE LTD,Operations and Neighbourhoods,Operations and Neighbourhoods,General Materials,06-Nov,540
471034,MAIN STREET SIGNS LIMITED,Operations and Neighbourhoods,Operations and Neighbourhoods,General Materials,06-Nov,559
471034,MULTEVO LIMITED,Operations and Neighbourhoods,Operations and Neighbourhoods,General Materials,06-Nov,307.08
471034,MULTEVO LIMITED,Operations and Neighbourhoods,Operations and Neighbourhoods,Sub-contractor Services,06-Nov,"1,392.60"
471034,NORTHWEST UTILITY SOLUTIONS LTD,Multiple Heads of Service,Multiple Strategic Directorates,Tax Retained Sub Contractors,06-Nov,"-3,210.00"
471034,NORTHWEST UTILITY SOLUTIONS LTD,Operations and Neighbourhoods,Operations and Neighbourhoods,Sub-contractor Services,06-Nov,"16,050.00"
471034,PG FABRICATIONS,Operations and Neighbourhoods,Operations and Neighbourhoods,Sub-contractor Services,06-Nov,900
471034,pro garden projects,Operations and Neighbourhoods,Operations and Neighbourhoods,Sub-contractor Services,06-Nov,"1,140.00"
471034,ROWAN ASHWORTH LIMITED,Operations and Neighbourhoods,Operations and Neighbourhoods,Tipping Facility Fees,06-Nov,960
471034,TARMAC CENTRAL LIMITED,Operations and Neighbourhoods,Operations and Neighbourhoods,General Materials,06-Nov,"17,385.25"
471034,TRAFFIC DIRECT LTD,Operations and Neighbourhoods,Operations and Neighbourhoods,General Materials,06-Nov,"1,160.00"
471034,TRAFFIC DIRECT LTD,Operations and Neighbourhoods,Operations and Neighbourhoods,Sub-contractor Services,06-Nov,"6,178.50"
471034,TRAFFIC DIRECT LTD,(blank),(blank),Sub-contractor Services,06-Nov,620
471034,TUDOR (UK) LTD T/A TUDOR ENVIRONMENTAL,Operations and Neighbourhoods,Operations and Neighbourhoods,General Materials,06-Nov,662.4
471034,WOTMIX LIMITED,Operations and Neighbourhoods,Operations and Neighbourhoods,General Materials,06-Nov,579
471035,AGGREGATE INDUSTRIES UK LIMITED,Operations and Neighbourhoods,Operations and Neighbourhoods,General Materials,13-Nov,"16,138.68"
471035,ALTITUDE SERVICES,Operations and Neighbourhoods,Operations and Neighbourhoods,General Materials,13-Nov,"1,256.31"
471035,ALTITUDE SERVICES,Operations and Neighbourhoods,Operations and Neighbourhoods,Sub-contractor Services,13-Nov,758.35
471035,BRAMHALL SURFACING LTD,Operations and Neighbourhoods,Operations and Neighbourhoods,General Materials,13-Nov,"43,028.37"
471035,BRAMHALL SURFACING LTD,Operations and Neighbourhoods,Operations and Neighbourhoods,Sub-contractor Services,13-Nov,"28,431.57"
471035,CENTREWIRE LTD,Engineers Client,Director of Place,Highway Construction,13-Nov,534
471035,COMPASS MINERALS UK LTD,Civil Engineers,Director of Place,Debits Goods Received,13-Nov,"6,791.73"
471035,"Larsen Manufacturing Ltd, t/a Larsen Building Products",Operations and Neighbourhoods,Operations and Neighbourhoods,General Materials,13-Nov,"2,647.70"
471035,MAIN STREET SIGNS LIMITED,Operations and Neighbourhoods,Operations and Neighbourhoods,General Materials,13-Nov,764
471035,MARWOOD ELECTRICAL CO,Operations and Neighbourhoods,Operations and Neighbourhoods,General Materials,13-Nov,"4,300.00"
471035,NORTHWEST UTILITY SOLUTIONS LTD,Multiple Heads of Service,Multiple Strategic Directorates,Tax Retained Sub Contractors,13-Nov,"-3,045.00"
471035,NORTHWEST UTILITY SOLUTIONS LTD,Operations and Neighbourhoods,Operations and Neighbourhoods,Sub-contractor Services,13-Nov,"15,225.00"
471035,TARMAC CENTRAL LIMITED,Operations and Neighbourhoods,Operations and Neighbourhoods,General Materials,13-Nov,"1,266.63"
471035,TRAFFIC DIRECT LTD,Operations and Neighbourhoods,Operations and Neighbourhoods,Sub-contractor Services,13-Nov,"6,648.50"
471035,UBU ENVIRONMENTAL LTD,Operations and Neighbourhoods,Operations and Neighbourhoods,General Materials,13-Nov,450
471035,UBU ENVIRONMENTAL LTD,Operations and Neighbourhoods,Operations and Neighbourhoods,Sub-contractor Services,13-Nov,"10,305.00"
471035,WOLSELEY UK LTD,Civil Engineers,Director of Place,Debits Goods Received,13-Nov,583.68
471035,WOLSELEY UK LTD,Operations and Neighbourhoods,Operations and Neighbourhoods,General Materials,13-Nov,"2,407.43"
471035,WOTMIX LIMITED,Operations and Neighbourhoods,Operations and Neighbourhoods,General Materials,13-Nov,968
471036,AGGREGATE INDUSTRIES UK LIMITED,Operations and Neighbourhoods,Operations and Neighbourhoods,General Materials,22-Nov,"7,549.79"
471036,BRAMHALL SURFACING LTD,Operations and Neighbourhoods,Operations and Neighbourhoods,General Materials,22-Nov,"12,295.60"
471036,BRAMHALL SURFACING LTD,Operations and Neighbourhoods,Operations and Neighbourhoods,Sub-contractor Services,22-Nov,"123,958.00"
471036,EAGLE CIVIL ENGINEERING LTD,Operations and Neighbourhoods,Operations and Neighbourhoods,Sub-contractor Services,22-Nov,"3,495.21"
471036,FAIRWAY LANDSCAPES LTD,Operations and Neighbourhoods,Operations and Neighbourhoods,Sub-contractor Services,22-Nov,"6,296.00"
471036,"Larsen Manufacturing Ltd, t/a Larsen Building Products",Operations and Neighbourhoods,Operations and Neighbourhoods,General Materials,22-Nov,"9,580.40"
471036,LIMELIGHT SIGNS LIMITED,Operations and Neighbourhoods,Operations and Neighbourhoods,General Materials,22-Nov,919.6
471036,MAIN STREET SIGNS LIMITED,Operations and Neighbourhoods,Operations and Neighbourhoods,General Materials,22-Nov,723.9
471036,MULTEVO LIMITED,Operations and Neighbourhoods,Operations and Neighbourhoods,General Materials,22-Nov,"1,392.60"
471036,NORTHWEST UTILITY SOLUTIONS LTD,Multiple Heads of Service,Multiple Strategic Directorates,Tax Retained Sub Contractors,22-Nov,"-1,695.00"
471036,NORTHWEST UTILITY SOLUTIONS LTD,Operations and Neighbourhoods,Operations and Neighbourhoods,Sub-contractor Services,22-Nov,"8,475.00"
471036,PG FABRICATIONS,Multiple Heads of Service,Multiple Strategic Directorates,Tax Retained Sub Contractors,22-Nov,-525.6
471036,PG FABRICATIONS,Operations and Neighbourhoods,Operations and Neighbourhoods,General Materials,22-Nov,174
471036,PG FABRICATIONS,Operations and Neighbourhoods,Operations and Neighbourhoods,Sub-contractor Services,22-Nov,"3,426.00"
471036,Signify Commercial UK Ltd,Operations and Neighbourhoods,Operations and Neighbourhoods,General Materials,22-Nov,"8,711.50"
471036,Stamford Products Limited,Operations and Neighbourhoods,Operations and Neighbourhoods,General Materials,24-Nov,"2,562.00"
471036,TARMAC CENTRAL LIMITED,Operations and Neighbourhoods,Operations and Neighbourhoods,General Materials,22-Nov,"2,281.20"
471036,TRAFFIC DIRECT LTD,Operations and Neighbourhoods,Operations and Neighbourhoods,Sub-contractor Services,22-Nov,"5,200.00"
471036,TRANSPORT FOR GREATER MANCHESTER,Operations and Neighbourhoods,Operations and Neighbourhoods,General Materials,22-Nov,640
471036,WOTMIX LIMITED,Operations and Neighbourhoods,Operations and Neighbourhoods,General Materials,22-Nov,813.75
471037,AGGREGATE INDUSTRIES UK LIMITED,Operations and Neighbourhoods,Operations and Neighbourhoods,General Materials,27-Nov,"9,827.60"
471037,ALTITUDE SERVICES,Operations and Neighbourhoods,Operations and Neighbourhoods,Sub-contractor Services,27-Nov,551.03
471037,AMBERON LTD,Operations and Neighbourhoods,Operations and Neighbourhoods,General Materials,27-Nov,"9,125.10"
471037,AMBERON LTD,Operations and Neighbourhoods,Operations and Neighbourhoods,Sub-contractor Services,27-Nov,"1,825.40"
471037,BRAMHALL SURFACING LTD,Operations and Neighbourhoods,Operations and Neighbourhoods,General Materials,27-Nov,"16,775.00"
471037,BRAMHALL SURFACING LTD,Operations and Neighbourhoods,Operations and Neighbourhoods,Sub-contractor Services,27-Nov,"1,278.80"
471037,BROXAP LIMITED,(blank),(blank),General Materials,27-Nov,994
471037,BROXAP LIMITED,(blank),(blank),Sub-contractor Services,27-Nov,160
471037,ELECTRICITY NORTH WEST LTD,Operations and Neighbourhoods,Operations and Neighbourhoods,Sub-contractor Services,27-Nov,"3,088.32"
471037,FAIRWAY LANDSCAPES LTD,Operations and Neighbourhoods,Operations and Neighbourhoods,General Materials,27-Nov,"4,918.00"
471037,FAIRWAY LANDSCAPES LTD,Operations and Neighbourhoods,Operations and Neighbourhoods,Sub-contractor Services,27-Nov,"1,900.00"
471037,GARIC LTD,Operations and Neighbourhoods,Operations and Neighbourhoods,General Materials,27-Nov,"1,337.60"
471037,KOMPAN LTD,Operations and Neighbourhoods,Operations and Neighbourhoods,General Materials,27-Nov,"6,225.00"
471037,"Larsen Manufacturing Ltd, t/a Larsen Building Products",Operations and Neighbourhoods,Operations and Neighbourhoods,General Materials,27-Nov,"5,036.10"
471037,MANCHESTER PLANT TRAINING LTD,Operations and Neighbourhoods,Operations and Neighbourhoods,Training Course Costs,27-Nov,"1,325.00"
471037,MULTEVO LIMITED,Operations and Neighbourhoods,Operations and Neighbourhoods,General Materials,27-Nov,"2,785.20"
471037,PG FABRICATIONS,Multiple Heads of Service,Multiple Strategic Directorates,Tax Retained Sub Contractors,27-Nov,-184.8
471037,PG FABRICATIONS,Operations and Neighbourhoods,Operations and Neighbourhoods,Sub-contractor Services,27-Nov,"1,155.00"
471037,TARMAC CENTRAL LIMITED,Operations and Neighbourhoods,Operations and Neighbourhoods,General Materials,27-Nov,"3,507.88"
471038,AGGREGATE INDUSTRIES UK LIMITED,Operations and Neighbourhoods,Operations and Neighbourhoods,General Materials,04-Dec,"7,668.00"
471038,AIUK t/a SRM,Operations and Neighbourhoods,Operations and Neighbourhoods,General Materials,04-Dec,736.35
471038,ALTITUDE SERVICES,Operations and Neighbourhoods,Operations and Neighbourhoods,General Materials,04-Dec,"1,739.00"
471038,ALTITUDE SERVICES,Operations and Neighbourhoods,Operations and Neighbourhoods,Sub-contractor Services,04-Dec,"4,152.08"
471038,ARCO LIMITED,Civil Engineers,Director of Place,Debits Goods Received,04-Dec,275.34
471038,ARCO LIMITED,Engineers Client,Director of Place,General Materials,04-Dec,95
471038,ARCO LIMITED,Operations and Neighbourhoods,Operations and Neighbourhoods,General Materials,04-Dec,330.37
471038,BRAMHALL SURFACING LTD,Operations and Neighbourhoods,Operations and Neighbourhoods,Sub-contractor Services,04-Dec,"25,990.64"
471038,BRIDGE ELECTRICALSUPPLIES LTD,Civil Engineers,Director of Place,Debits Goods Received,04-Dec,"1,455.00"
471038,BRIDGE ELECTRICALSUPPLIES LTD,Operations and Neighbourhoods,Operations and Neighbourhoods,General Materials,04-Dec,283
471038,LIMELIGHT SIGNS LIMITED,Operations and Neighbourhoods,Operations and Neighbourhoods,General Materials,04-Dec,602.25
471038,P.F.CUSACK(TOOL SUPPLIES) LTD,Civil Engineers,Director of Place,Debits Goods Received,04-Dec,688.45
471038,PORTAKABIN LTD,Operations and Neighbourhoods,Operations and Neighbourhoods,General Materials,04-Dec,"2,034.80"
471038,REDIWELD TRAFFIC PRODUCTS LTD,Operations and Neighbourhoods,Operations and Neighbourhoods,General Materials,04-Dec,"7,301.31"
471038,TARMAC CENTRAL LIMITED,Operations and Neighbourhoods,Operations and Neighbourhoods,General Materials,04-Dec,"6,274.31"
471038,WOTMIX LIMITED,Operations and Neighbourhoods,Operations and Neighbourhoods,General Materials,04-Dec,845
471039,AGGREGATE INDUSTRIES UK LIMITED,Operations and Neighbourhoods,Operations and Neighbourhoods,General Materials,11-Dec,"1,775.41"
471039,ALTITUDE SERVICES,Operations and Neighbourhoods,Operations and Neighbourhoods,General Materials,11-Dec,"13,137.54"
471039,ALTITUDE SERVICES,Operations and Neighbourhoods,Operations and Neighbourhoods,Sub-contractor Services,11-Dec,"1,943.11"
471039,BRAMHALL SURFACING LTD,Operations and Neighbourhoods,Operations and Neighbourhoods,General Materials,11-Dec,"44,551.97"
471039,BRAMHALL SURFACING LTD,Operations and Neighbourhoods,Operations and Neighbourhoods,Sub-contractor Services,11-Dec,"31,159.10"
471039,BRIDGE ELECTRICALSUPPLIES LTD,Operations and Neighbourhoods,Operations and Neighbourhoods,General Materials,11-Dec,687
471039,FAIRWAY LANDSCAPES LTD,Operations and Neighbourhoods,Operations and Neighbourhoods,Sub-contractor Services,11-Dec,"3,073.50"
471039,GARIC LTD,Operations and Neighbourhoods,Operations and Neighbourhoods,General Materials,11-Dec,"1,337.60"
471039,L & R ROADLINES LIMITED,Operations and Neighbourhoods,Operations and Neighbourhoods,General Materials,11-Dec,"28,996.17"
471039,L & R ROADLINES LIMITED,Operations and Neighbourhoods,Operations and Neighbourhoods,Sub-contractor Services,11-Dec,"4,674.61"
471039,MARCHINGTON STONE,Operations and Neighbourhoods,Operations and Neighbourhoods,General Materials,11-Dec,844.94
471039,NORTHWEST UTILITY SOLUTIONS LTD,Multiple Heads of Service,Multiple Strategic Directorates,Tax Retained Sub Contractors,11-Dec,"-4,740.00"
471039,NORTHWEST UTILITY SOLUTIONS LTD,Operations and Neighbourhoods,Operations and Neighbourhoods,General Materials,11-Dec,"8,475.00"
471039,NORTHWEST UTILITY SOLUTIONS LTD,Operations and Neighbourhoods,Operations and Neighbourhoods,Sub-contractor Services,11-Dec,"15,225.00"
471039,pro garden projects,Operations and Neighbourhoods,Operations and Neighbourhoods,Sub-contractor Services,11-Dec,510
471039,ROWAN ASHWORTH LIMITED,Operations and Neighbourhoods,Operations and Neighbourhoods,Sub-contractor Services,11-Dec,"10,051.00"
471039,ROWAN ASHWORTH LIMITED,Operations and Neighbourhoods,Operations and Neighbourhoods,Tipping Facility Fees,11-Dec,480
471039,TARMAC CENTRAL LIMITED,Operations and Neighbourhoods,Operations and Neighbourhoods,General Materials,11-Dec,"2,354.80"
471039,TRAFFIC DIRECT LTD,Operations and Neighbourhoods,Operations and Neighbourhoods,Sub-contractor Services,11-Dec,"5,200.00"
471039,UBU ENVIRONMENTAL LTD,Operations and Neighbourhoods,Operations and Neighbourhoods,Sub-contractor Services,11-Dec,"5,400.00"
471039,WOTMIX LIMITED,Operations and Neighbourhoods,Operations and Neighbourhoods,General Materials,11-Dec,775
471040,AGGREGATE INDUSTRIES UK LIMITED,Operations and Neighbourhoods,Operations and Neighbourhoods,General Materials,18-Dec,"10,204.31"
471040,ALTITUDE SERVICES,Operations and Neighbourhoods,Operations and Neighbourhoods,General Materials,18-Dec,"6,902.05"
471040,ALTITUDE SERVICES,Operations and Neighbourhoods,Operations and Neighbourhoods,Sub-contractor Services,18-Dec,207.99
471040,AMBERON LTD,Operations and Neighbourhoods,Operations and Neighbourhoods,Sub-contractor Services,18-Dec,"1,398.00"
471040,BRAMHALL SURFACING LTD,Operations and Neighbourhoods,Operations and Neighbourhoods,General Materials,18-Dec,"2,206.00"
471040,BRAMHALL SURFACING LTD,Operations and Neighbourhoods,Operations and Neighbourhoods,Sub-contractor Services,18-Dec,"67,186.00"
471040,COLAS LTD,Operations and Neighbourhoods,Operations and Neighbourhoods,General Materials,18-Dec,"1,597.50"
471040,EAGLE CIVIL ENGINEERING LTD,Operations and Neighbourhoods,Operations and Neighbourhoods,General Materials,18-Dec,"3,046.87"
471040,EAGLE CIVIL ENGINEERING LTD,Operations and Neighbourhoods,Operations and Neighbourhoods,Sub-contractor Services,18-Dec,"3,046.87"
471040,Holroyds Skip Hire Limited,Operations and Neighbourhoods,Operations and Neighbourhoods,General Materials,18-Dec,"1,250.00"
471040,INSTARMAC GROUP PLC,Civil Engineers,Director of Place,Debits Goods Received,18-Dec,"2,936.56"
471040,"Larsen Manufacturing Ltd, t/a Larsen Building Products",Operations and Neighbourhoods,Operations and Neighbourhoods,General Materials,18-Dec,"2,517.20"
471040,NORTHWEST UTILITY SOLUTIONS LTD,Multiple Heads of Service,Multiple Strategic Directorates,Tax Retained Sub Contractors,18-Dec,"-1,695.00"
471040,NORTHWEST UTILITY SOLUTIONS LTD,Operations and Neighbourhoods,Operations and Neighbourhoods,Sub-contractor Services,18-Dec,"8,475.00"
471040,PORTAKABIN LTD,Operations and Neighbourhoods,Operations and Neighbourhoods,General Materials,18-Dec,934.8
471040,ROWAN ASHWORTH LIMITED,Operations and Neighbourhoods,Operations and Neighbourhoods,Sub-contractor Services,18-Dec,"10,051.00"
471040,ROWAN ASHWORTH LIMITED,Operations and Neighbourhoods,Operations and Neighbourhoods,Tipping Facility Fees,18-Dec,880
471040,TARMAC CENTRAL LIMITED,Operations and Neighbourhoods,Operations and Neighbourhoods,General Materials,18-Dec,"2,559.03"
471040,WOLSELEY UK LTD,Civil Engineers,Director of Place,Debits Goods Received,18-Dec,"2,010.72"
471040,ZODION LTD,Operations and Neighbourhoods,Operations and Neighbourhoods,General Materials,18-Dec,572.5
471041,ABBEY INDUSTRIAL SOLUTIONS LTD,Operations and Neighbourhoods,Operations and Neighbourhoods,Sub-contractor Services,22-Dec,538.66
471041,AGGREGATE INDUSTRIES UK LIMITED,Operations and Neighbourhoods,Operations and Neighbourhoods,General Materials,22-Dec,"4,887.42"
471041,ALTITUDE SERVICES,Operations and Neighbourhoods,Operations and Neighbourhoods,General Materials,22-Dec,"7,112.52"
471041,BRIDGE ELECTRICALSUPPLIES LTD,Civil Engineers,Director of Place,Debits Goods Received,22-Dec,514.8
471041,BRIDGE ELECTRICALSUPPLIES LTD,Operations and Neighbourhoods,Operations and Neighbourhoods,General Materials,22-Dec,"1,018.00"
471041,FAIRWAY LANDSCAPES LTD,Operations and Neighbourhoods,Operations and Neighbourhoods,Sub-contractor Services,22-Dec,"33,573.25"
471041,MAIN STREET SIGNS LIMITED,Operations and Neighbourhoods,Operations and Neighbourhoods,General Materials,22-Dec,947
471041,NORTHWEST UTILITY SOLUTIONS LTD,Multiple Heads of Service,Multiple Strategic Directorates,Tax Retained Sub Contractors,22-Dec,"-3,450.00"
471041,NORTHWEST UTILITY SOLUTIONS LTD,Operations and Neighbourhoods,Operations and Neighbourhoods,Sub-contractor Services,22-Dec,"17,250.00"
471041,Saint-Gobain Building Distribution Limited t/a Benchmark Building Supplies,Operations and Neighbourhoods,Operations and Neighbourhoods,General Materials,22-Dec,"1,167.20"
471041,TARMAC CENTRAL LIMITED,Operations and Neighbourhoods,Operations and Neighbourhoods,General Materials,22-Dec,"2,460.82"
471041,UBU ENVIRONMENTAL LTD,Operations and Neighbourhoods,Operations and Neighbourhoods,Sub-contractor Services,22-Dec,"1,800.00"
471041,WOLSELEY UK LTD,Operations and Neighbourhoods,Operations and Neighbourhoods,General Materials,22-Dec,899.85
471041,WOTMIX LIMITED,Operations and Neighbourhoods,Operations and Neighbourhoods,General Materials,22-Dec,753
3250934,A & J MOTORSPARES,Operations and Neighbourhoods,Operations and Neighbourhoods,General Materials,05-Oct,"1,077.18"
3250934,A & J MOTORSPARES,Transport,Director of Place,General Materials,05-Oct,100
3250934,AEBI SCHMIDT UK LTD,Operations and Neighbourhoods,Operations and Neighbourhoods,General Materials,05-Oct,354.08
3250934,AEBI SCHMIDT UK LTD,Operations and Neighbourhoods,Operations and Neighbourhoods,Sub-contractor Services,05-Oct,215
3250934,DENNIS EAGLE LTD,Operations and Neighbourhoods,Operations and Neighbourhoods,Consumable Materials,05-Oct,1.35
3250934,DENNIS EAGLE LTD,Operations and Neighbourhoods,Operations and Neighbourhoods,General Materials,05-Oct,898.03
3250934,DENNIS EAGLE LTD,Transport,Director of Place,Debits Goods Received,05-Oct,"6,366.23"
3250934,ECON ENGINEERING LTD,Transport,Director of Place,Debits Goods Received,05-Oct,"1,578.13"
3250934,G B OILS TA CARLTON FUELS,Transport,Director of Place,Diesel Fuel,05-Oct,"25,622.00"
3250934,G B OILS TA CARLTON FUELS,Transport,Director of Place,Petrol Fuel,05-Oct,"3,022.00"
3250934,GUNN JCB LTD,Operations and Neighbourhoods,Operations and Neighbourhoods,Sub-contractor Services,05-Oct,"1,284.19"
3250934,INDUSTRIAL & HYDRAULIC SERVICES,Operations and Neighbourhoods,Operations and Neighbourhoods,Sub-contractor Services,05-Oct,"1,483.95"
3250934,JDS TRUCKS LIMITED,Operations and Neighbourhoods,Operations and Neighbourhoods,General Materials,05-Oct,"3,979.56"
3250934,SCARAB SWEEPERS LTD,Operations and Neighbourhoods,Operations and Neighbourhoods,General Materials,05-Oct,538.33
3250934,STOCKPORT TRUCK CENTRE LTD,Operations and Neighbourhoods,Operations and Neighbourhoods,Sub-contractor Services,05-Oct,386.09
3250934,STOCKPORT TRUCK CENTRE LTD,Operations and Neighbourhoods,Operations and Neighbourhoods,Vehicle Inspection/Testing Costs,05-Oct,330
3250934,Teletrac Navman (UK) LTD,Operations and Neighbourhoods,Operations and Neighbourhoods,General Equipment Repair & Maintenance,05-Oct,"5,385.33"
3250934,TRUCTYRE ATS,Operations and Neighbourhoods,Operations and Neighbourhoods,General Materials,05-Oct,516.41
3250934,TRUCTYRE ATS,Operations and Neighbourhoods,Operations and Neighbourhoods,Tyre Costs,05-Oct,"2,144.28"
3250934,TURNER GROUNDSCARE,Operations and Neighbourhoods,Operations and Neighbourhoods,General Materials,05-Oct,"1,695.13"
3250934,WASTE PARTS UK LTD,Transport,Director of Place,Debits Goods Received,05-Oct,"1,011.03"
3250935,AEBI SCHMIDT UK LTD,Operations and Neighbourhoods,Operations and Neighbourhoods,General Materials,12-Oct,709.54
3250935,Car Hire (Day of Swansea) Ltd t/a Days Rental,Operations and Neighbourhoods,Operations and Neighbourhoods,Additional Hire,12-Oct,831.6
3250935,Car Hire (Day of Swansea) Ltd t/a Days Rental,Operations and Neighbourhoods,Operations and Neighbourhoods,Tyre Costs,12-Oct,0
3250935,DENNIS EAGLE LTD,Operations and Neighbourhoods,Operations and Neighbourhoods,General Materials,12-Oct,13.74
3250935,DENNIS EAGLE LTD,Transport,Director of Place,Debits Goods Received,12-Oct,"3,128.77"
3250935,F. R. SHARROCK LIMITED,Operations and Neighbourhoods,Operations and Neighbourhoods,General Materials,12-Oct,757.62
3250935,HGV DIRECT LTD,Transport,Director of Place,Debits Goods Received,12-Oct,631.13
3250935,JOHNSONS APPARELMASTER LTD,Operations and Neighbourhoods,Operations and Neighbourhoods,Protective Clothing,12-Oct,872.28
3250935,JOHNSTON SWEEPERS LTD,Operations and Neighbourhoods,Operations and Neighbourhoods,Sub-contractor Services,12-Oct,"1,112.04"
3250935,MOTUS COMMERCIALS OLDHAM,Operations and Neighbourhoods,Operations and Neighbourhoods,General Materials,12-Oct,324.55
3250935,MOTUS COMMERCIALS OLDHAM,Transport,Director of Place,Debits Goods Received,12-Oct,"1,168.02"
3250935,RIVERSIDE TRUCK RENTAL LIMITED,Operations and Neighbourhoods,Operations and Neighbourhoods,Additional Hire,12-Oct,"14,386.20"
3250935,TRUCTYRE ATS,Operations and Neighbourhoods,Operations and Neighbourhoods,Tyre Costs,12-Oct,"1,086.76"
3250935,WHALE TANKERS LTD,Operations and Neighbourhoods,Operations and Neighbourhoods,Sub-contractor Services,12-Oct,"2,855.12"
3250936,A & J MOTORSPARES,Operations and Neighbourhoods,Operations and Neighbourhoods,Consumable Materials,19-Oct,119.8
3250936,A & J MOTORSPARES,Operations and Neighbourhoods,Operations and Neighbourhoods,General Materials,19-Oct,719.37
3250936,AEBI SCHMIDT UK LTD,Operations and Neighbourhoods,Operations and Neighbourhoods,General Materials,19-Oct,675.42
3250936,ALD Automotive Ltd,Operations and Neighbourhoods,Operations and Neighbourhoods,Core Hire,19-Oct,"6,669.28"
3250936,ARNOLD PLANT HIRE LTD,Operations and Neighbourhoods,Operations and Neighbourhoods,Additional Hire,19-Oct,966
3250936,Car Hire (Day of Swansea) Ltd t/a Days Rental,Operations and Neighbourhoods,Operations and Neighbourhoods,Additional Hire,19-Oct,"2,734.92"
3250936,Car Hire (Day of Swansea) Ltd t/a Days Rental,Operations and Neighbourhoods,Operations and Neighbourhoods,Tyre Costs,19-Oct,167.69
3250936,Crescent Motors Dukinfield Ltd,Operations and Neighbourhoods,Operations and Neighbourhoods,Sub-contractor Services,19-Oct,624.99
3250936,DENNIS EAGLE LTD,Operations and Neighbourhoods,Operations and Neighbourhoods,General Materials,19-Oct,402.89
3250936,DENNIS EAGLE LTD,Transport,Director of Place,Debits Goods Received,19-Oct,"3,348.14"
3250936,G B OILS TA CARLTON FUELS,Transport,Director of Place,Diesel Fuel,19-Oct,"26,174.40"
3250936,HGV DIRECT LTD,Operations and Neighbourhoods,Operations and Neighbourhoods,General Materials,19-Oct,134.1
3250936,HGV DIRECT LTD,Transport,Director of Place,Debits Goods Received,19-Oct,425.72
3250936,JOHNSTON SWEEPERS LTD,Operations and Neighbourhoods,Operations and Neighbourhoods,General Materials,19-Oct,"1,586.84"
3250936,LEEDS COMMERCIAL LTD T/A LC VEHICLE HIRE,Operations and Neighbourhoods,Operations and Neighbourhoods,Additional Hire,19-Oct,"1,890.00"
3250936,LEEDS COMMERCIAL LTD T/A LC VEHICLE HIRE,Operations and Neighbourhoods,Operations and Neighbourhoods,Replacement Hire,19-Oct,550
3250936,NORTH WEST TIPPERS LIMITED,Operations and Neighbourhoods,Operations and Neighbourhoods,General Materials,19-Oct,507.5
3250936,PETER DOUGLASS PLATFORMS,Operations and Neighbourhoods,Operations and Neighbourhoods,Additional Hire,19-Oct,"3,360.00"
3250936,VISION TECHNIQUES LTD,Operations and Neighbourhoods,Operations and Neighbourhoods,Sub-contractor Services,19-Oct,894.9
3250937,AC PLANT GLAZING LTD,Operations and Neighbourhoods,Operations and Neighbourhoods,Sub-contractor Services,26-Oct,559
3250937,AEBI SCHMIDT UK LTD,Operations and Neighbourhoods,Operations and Neighbourhoods,General Materials,26-Oct,"3,943.09"
3250937,AEBI SCHMIDT UK LTD,Transport,Director of Place,Debits Goods Received,26-Oct,"1,031.06"
3250937,BRENNTAG UK LIMITED,Transport,Director of Place,Fuel / Ad Blu,26-Oct,"2,075.00"
3250937,CALIBRATION &CONSULTANCYSERVICES (UK) LTD,Operations and Neighbourhoods,Operations and Neighbourhoods,General Equipment Repair & Maintenance,26-Oct,"1,882.97"
3250937,CALIBRATION &CONSULTANCYSERVICES (UK) LTD,Operations and Neighbourhoods,Operations and Neighbourhoods,General Materials,26-Oct,58.25
3250937,DENNIS EAGLE LTD,Operations and Neighbourhoods,Operations and Neighbourhoods,General Materials,26-Oct,623.06
3250937,G B OILS TA CARLTON FUELS,Transport,Director of Place,Diesel Fuel,26-Oct,"12,281.14"
3250937,HTF TYRE SERVICES LTD,Operations and Neighbourhoods,Operations and Neighbourhoods,Tyre Costs,26-Oct,"4,181.36"
3250937,Redacted Supplier,Operations and Neighbourhoods,Operations and Neighbourhoods,General Equipment Purchase,26-Oct,829.95
3250937,MELLOR COACHCRAFT,Operations and Neighbourhoods,Operations and Neighbourhoods,General Materials,26-Oct,530
3250937,MOTUS COMMERCIALS OLDHAM,Operations and Neighbourhoods,Operations and Neighbourhoods,General Materials,26-Oct,"1,203.15"
3250937,MULTEVO LIMITED,Operations and Neighbourhoods,Operations and Neighbourhoods,General Materials,26-Oct,550
3250937,Popcorn Rocks Limited t/a Green Motion,Operations and Neighbourhoods,Operations and Neighbourhoods,Additional Hire,26-Oct,"3,259.15"
3250937,VISION TECHNIQUES LTD,Operations and Neighbourhoods,Operations and Neighbourhoods,Sub-contractor Services,26-Oct,"2,310.96"
3250938,A & J MOTORSPARES,Operations and Neighbourhoods,Operations and Neighbourhoods,General Materials,02-Nov,610.61
3250938,ARNOLD PLANT HIRE LTD,Operations and Neighbourhoods,Operations and Neighbourhoods,Additional Hire,02-Nov,"1,012.00"
3250938,AUTOSMART INTERNATIONAL,Operations and Neighbourhoods,Operations and Neighbourhoods,Consumable Materials,02-Nov,17.99
3250938,AUTOSMART INTERNATIONAL,Operations and Neighbourhoods,Operations and Neighbourhoods,General Equipment Repair & Maintenance,02-Nov,597.03
3250938,DAWNSONGROUP ENVIROMENTAL MUNICIPAL CIVIL LIMITED T/A DAWSONGROUP EMC,Operations and Neighbourhoods,Operations and Neighbourhoods,Replacement Hire,02-Nov,"3,492.86"
3250938,DENNIS EAGLE LTD,Operations and Neighbourhoods,Operations and Neighbourhoods,General Materials,02-Nov,"1,586.73"
3250938,DENNIS EAGLE LTD,Transport,Director of Place,Debits Goods Received,02-Nov,"2,180.60"
3250938,F. R. SHARROCK LIMITED,Operations and Neighbourhoods,Operations and Neighbourhoods,Sub-contractor Services,02-Nov,596.96
3250938,F. R. SHARROCK LIMITED,Transport,Director of Place,Debits Goods Received,02-Nov,151.62
3250938,G B OILS TA CARLTON FUELS,Transport,Director of Place,Diesel Fuel,02-Nov,"26,039.90"
3250938,GARIC LTD,Operations and Neighbourhoods,Operations and Neighbourhoods,Additional Hire,02-Nov,"3,769.80"
3250938,GARIC LTD,Operations and Neighbourhoods,Operations and Neighbourhoods,Sub-contractor Services,02-Nov,140
3250938,GUNN JCB LTD,Operations and Neighbourhoods,Operations and Neighbourhoods,General Materials,02-Nov,73.25
3250938,GUNN JCB LTD,Operations and Neighbourhoods,Operations and Neighbourhoods,Sub-contractor Services,02-Nov,"4,329.95"
3250938,JDS TRUCKS LIMITED,Operations and Neighbourhoods,Operations and Neighbourhoods,General Materials,02-Nov,880.02
3250938,JOHNSONS APPARELMASTER LTD,Operations and Neighbourhoods,Operations and Neighbourhoods,Protective Clothing,02-Nov,872.28
3250938,JOHNSTON SWEEPERS LTD,Operations and Neighbourhoods,Operations and Neighbourhoods,General Materials,02-Nov,421.79
3250938,JOHNSTON SWEEPERS LTD,Transport,Director of Place,Debits Goods Received,02-Nov,95
3250938,MULTEVO LIMITED,Operations and Neighbourhoods,Operations and Neighbourhoods,Sub-contractor Services,02-Nov,"2,251.65"
3250938,Popcorn Rocks Limited t/a Green Motion,Operations and Neighbourhoods,Operations and Neighbourhoods,Additional Hire,02-Nov,"1,059.97"
3250938,TRUCTYRE ATS,Operations and Neighbourhoods,Operations and Neighbourhoods,Tyre Costs,02-Nov,810.82
3250938,WASTE PARTS UK LTD,Transport,Director of Place,Debits Goods Received,02-Nov,"2,024.33"
3250938,WHALE TANKERS LTD,Operations and Neighbourhoods,Operations and Neighbourhoods,General Materials,02-Nov,713.46
3250939,A & J MOTORSPARES,Operations and Neighbourhoods,Operations and Neighbourhoods,General Materials,09-Nov,872.33
3250939,AEBI SCHMIDT UK LTD,Operations and Neighbourhoods,Operations and Neighbourhoods,General Materials,09-Nov,667.65
3250939,Car Hire (Day of Swansea) Ltd t/a Days Rental,Operations and Neighbourhoods,Operations and Neighbourhoods,Additional Hire,09-Nov,"2,817.90"
3250939,DAWNSONGROUP ENVIROMENTAL MUNICIPAL CIVIL LIMITED T/A DAWSONGROUP EMC,Operations and Neighbourhoods,Operations and Neighbourhoods,Replacement Hire,09-Nov,"3,857.14"
3250939,DENNIS EAGLE LTD,Transport,Director of Place,Debits Goods Received,09-Nov,910.09
3250939,ECON ENGINEERING LTD,Operations and Neighbourhoods,Operations and Neighbourhoods,General Materials,09-Nov,697.32
3250939,ECON ENGINEERING LTD,Operations and Neighbourhoods,Operations and Neighbourhoods,Sub-contractor Services,09-Nov,780
3250939,HGV DIRECT LTD,Operations and Neighbourhoods,Operations and Neighbourhoods,General Materials,09-Nov,850
3250939,LEEDS COMMERCIAL LTD T/A LC VEHICLE HIRE,Operations and Neighbourhoods,Operations and Neighbourhoods,Additional Hire,09-Nov,"2,670.00"
3250939,LEEDS COMMERCIAL LTD T/A LC VEHICLE HIRE,Operations and Neighbourhoods,Operations and Neighbourhoods,Sub-contractor Services,09-Nov,121.13
3250939,LPW EUROPE LTD,Operations and Neighbourhoods,Operations and Neighbourhoods,General Equipment Repair & Maintenance,09-Nov,"1,260.00"
3250939,MANCHESTER BREAKDOWN SERVICES LTD,Operations and Neighbourhoods,Operations and Neighbourhoods,Sub-contractor Services,09-Nov,500
3250939,PETER DOUGLASS PLATFORMS,Operations and Neighbourhoods,Operations and Neighbourhoods,Additional Hire,09-Nov,"4,400.00"
3250939,RIVERSIDE TRUCK RENTAL LIMITED,Operations and Neighbourhoods,Operations and Neighbourhoods,Additional Hire,09-Nov,"5,280.00"
3250939,RIVERSIDE TRUCK RENTAL LIMITED,Operations and Neighbourhoods,Operations and Neighbourhoods,Replacement Hire,09-Nov,"3,938.00"
3250939,TOLLAND PRECISION ENGINEERING LTD,Operations and Neighbourhoods,Operations and Neighbourhoods,Sub-contractor Services,09-Nov,"1,370.00"
3250939,WASTE PARTS UK LTD,Transport,Director of Place,Debits Goods Received,09-Nov,500
3250939,WNV-Systems ltd,Operations and Neighbourhoods,Operations and Neighbourhoods,General Equipment Repair & Maintenance,09-Nov,"2,544.00"
3250940,A & J MOTORSPARES,Operations and Neighbourhoods,Operations and Neighbourhoods,General Materials,16-Nov,"2,777.59"
3250940,A & J MOTORSPARES,Transport,Director of Place,Debits Goods Received,16-Nov,179.9
3250940,A M Grindrod T/A A M G Narrowboat Handyman Service,Operations and Neighbourhoods,Operations and Neighbourhoods,General Materials,16-Nov,"1,575.10"
3250940,A M Grindrod T/A A M G Narrowboat Handyman Service,Operations and Neighbourhoods,Operations and Neighbourhoods,Sub-contractor Services,16-Nov,"3,059.96"
3250940,AEBI SCHMIDT UK LTD,Operations and Neighbourhoods,Operations and Neighbourhoods,General Materials,16-Nov,"3,032.74"
3250940,AEBI SCHMIDT UK LTD,Transport,Director of Place,Debits Goods Received,16-Nov,"2,726.74"
3250940,DENNIS EAGLE LTD,Operations and Neighbourhoods,Operations and Neighbourhoods,General Materials,16-Nov,187.1
3250940,DENNIS EAGLE LTD,Transport,Director of Place,Debits Goods Received,16-Nov,"4,455.14"
3250940,FREIGHT TRANSPORT ASSOCIATION,Operations and Neighbourhoods,Operations and Neighbourhoods,Subscriptions,16-Nov,"1,375.00"
3250940,FUCHS LUBRICANTS UK PLC,Transport,Director of Place,Debits Goods Received,16-Nov,"3,850.05"
3250940,G B OILS TA CARLTON FUELS,Transport,Director of Place,Diesel Fuel,16-Nov,"24,136.00"
3250940,JDS TRUCKS LIMITED,Operations and Neighbourhoods,Operations and Neighbourhoods,General Materials,16-Nov,758.29
3250940,JDS TRUCKS LIMITED,Transport,Director of Place,Debits Goods Received,16-Nov,"1,369.87"
3250940,LEEDS COMMERCIAL LTD T/A LC VEHICLE HIRE,Operations and Neighbourhoods,Operations and Neighbourhoods,Additional Hire,16-Nov,990
3250940,MOTUS COMMERCIALS OLDHAM,Operations and Neighbourhoods,Operations and Neighbourhoods,General Materials,16-Nov,"1,147.34"
3250940,MULTEVO LIMITED,Operations and Neighbourhoods,Operations and Neighbourhoods,General Materials,16-Nov,826.38
3250940,PEAK PARTS,Operations and Neighbourhoods,Operations and Neighbourhoods,Consumable Materials,16-Nov,802.44
3250940,PEAK PARTS,Operations and Neighbourhoods,Operations and Neighbourhoods,General Equipment Purchase,16-Nov,13.9
3250940,PEAK PARTS,Transport,Director of Place,Debits Goods Received,16-Nov,84.7
3250940,WNV-Systems ltd,Operations and Neighbourhoods,Operations and Neighbourhoods,General Equipment Repair & Maintenance,16-Nov,"1,482.88"
3250941,AEBI SCHMIDT UK LTD,Operations and Neighbourhoods,Operations and Neighbourhoods,General Materials,23-Nov,252.65
3250941,AEBI SCHMIDT UK LTD,Operations and Neighbourhoods,Operations and Neighbourhoods,Sub-contractor Services,23-Nov,129.5
3250941,AEBI SCHMIDT UK LTD,Transport,Director of Place,Debits Goods Received,23-Nov,"1,572.47"
3250941,AIR PRODUCTS PLC,Operations and Neighbourhoods,Operations and Neighbourhoods,General Equipment Repair & Maintenance,23-Nov,883.66
3250941,DENNIS EAGLE LTD,Operations and Neighbourhoods,Operations and Neighbourhoods,General Materials,23-Nov,435.92
3250941,DENNIS EAGLE LTD,Transport,Director of Place,Debits Goods Received,23-Nov,"3,262.78"
3250941,F. R. SHARROCK LIMITED,Operations and Neighbourhoods,Operations and Neighbourhoods,Sub-contractor Services,23-Nov,"7,795.45"
3250941,G B OILS TA CARLTON FUELS,Transport,Director of Place,Diesel Fuel,23-Nov,"8,172.73"
3250941,HSS HIRE SERVICE GROUP  PLC,Operations and Neighbourhoods,Operations and Neighbourhoods,Replacement Hire,23-Nov,"3,131.40"
3250941,INDUSTRIAL & HYDRAULIC SERVICES,Operations and Neighbourhoods,Operations and Neighbourhoods,Sub-contractor Services,23-Nov,583.68
3250941,JOHNSTON SWEEPERS LTD,Operations and Neighbourhoods,Operations and Neighbourhoods,General Materials,23-Nov,"1,258.31"
3250941,MANCHESTER BREAKDOWN SERVICES LTD,Operations and Neighbourhoods,Operations and Neighbourhoods,Sub-contractor Services,23-Nov,610
3250941,MOTUS COMMERCIALS OLDHAM,Operations and Neighbourhoods,Operations and Neighbourhoods,General Materials,23-Nov,"1,701.54"
3250941,MOTUS COMMERCIALS OLDHAM,Transport,Director of Place,Debits Goods Received,23-Nov,140.62
3250941,Popcorn Rocks Limited t/a Green Motion,Operations and Neighbourhoods,Operations and Neighbourhoods,Additional Hire,23-Nov,768.32
3250941,SEDDONS (PLANT&ENGINEER) LTD,Operations and Neighbourhoods,Operations and Neighbourhoods,General Materials,23-Nov,971.25
3250941,TRUCTYRE ATS,Operations and Neighbourhoods,Operations and Neighbourhoods,Tyre Costs,23-Nov,677.41
3250941,WASTE PARTS UK LTD,Transport,Director of Place,Debits Goods Received,23-Nov,"1,237.41"
3250942,AEBI SCHMIDT UK LTD,Operations and Neighbourhoods,Operations and Neighbourhoods,General Materials,30-Nov,"4,179.30"
3250942,AEBI SCHMIDT UK LTD,Operations and Neighbourhoods,Operations and Neighbourhoods,Sub-contractor Services,30-Nov,"1,966.11"
3250942,AEBI SCHMIDT UK LTD,Transport,Director of Place,Debits Goods Received,30-Nov,"2,285.23"
3250942,AUTOSMART INTERNATIONAL,Operations and Neighbourhoods,Operations and Neighbourhoods,Consumable Materials,30-Nov,201.5
3250942,AUTOSMART INTERNATIONAL,Operations and Neighbourhoods,Operations and Neighbourhoods,General Equipment Repair & Maintenance,30-Nov,388.49
3250942,DENNIS EAGLE LTD,Operations and Neighbourhoods,Operations and Neighbourhoods,General Materials,30-Nov,"3,519.56"
3250942,DENNIS EAGLE LTD,Operations and Neighbourhoods,Operations and Neighbourhoods,Sub-contractor Services,30-Nov,"7,485.00"
3250942,DENNIS EAGLE LTD,Transport,Director of Place,Debits Goods Received,30-Nov,"3,697.68"
3250942,G B OILS TA CARLTON FUELS,Transport,Director of Place,Diesel Fuel,30-Nov,"23,246.00"
3250942,G B OILS TA CARLTON FUELS,Transport,Director of Place,Petrol Fuel,30-Nov,"2,709.50"
3250942,HGV DIRECT LTD,Operations and Neighbourhoods,Operations and Neighbourhoods,General Materials,30-Nov,295.15
3250942,HGV DIRECT LTD,Transport,Director of Place,Debits Goods Received,30-Nov,"1,350.56"
3250942,HI-WAY COMPONENTS,Operations and Neighbourhoods,Operations and Neighbourhoods,Consumable Materials,30-Nov,8.4
3250942,HI-WAY COMPONENTS,Transport,Director of Place,Debits Goods Received,30-Nov,499.18
3250942,HTF TYRE SERVICES LTD,Operations and Neighbourhoods,Operations and Neighbourhoods,Tyre Costs,30-Nov,"7,286.49"
3250942,INDUSTRIAL & HYDRAULIC SERVICES,Operations and Neighbourhoods,Operations and Neighbourhoods,Sub-contractor Services,30-Nov,"1,233.43"
3250942,LEEDS COMMERCIAL LTD T/A LC VEHICLE HIRE,Operations and Neighbourhoods,Operations and Neighbourhoods,Workshop Recharges including Misuse & Damage Costs,30-Nov,"1,311.00"
3250942,LPW EUROPE LTD,Operations and Neighbourhoods,Operations and Neighbourhoods,General Equipment Repair & Maintenance,30-Nov,630
3250942,TERBERG MATEC UK LTD,Transport,Director of Place,Debits Goods Received,30-Nov,700.86
3250943,TRUCTYRE ATS,Operations and Neighbourhoods,Operations and Neighbourhoods,Tyre Costs,07-Dec,"2,340.32"
3250944,A & J MOTORSPARES,Operations and Neighbourhoods,Operations and Neighbourhoods,Consumable Materials,14-Dec,31.96
3250944,A & J MOTORSPARES,Operations and Neighbourhoods,Operations and Neighbourhoods,General Materials,14-Dec,"2,353.32"
3250944,A & J MOTORSPARES,Operations and Neighbourhoods,Operations and Neighbourhoods,Protective Clothing,14-Dec,97.13
3250944,AEBI SCHMIDT UK LTD,Operations and Neighbourhoods,Operations and Neighbourhoods,General Materials,14-Dec,415.41
3250944,AEBI SCHMIDT UK LTD,Transport,Director of Place,Debits Goods Received,14-Dec,647.48
3250944,ARNOLD PLANT HIRE LTD,Operations and Neighbourhoods,Operations and Neighbourhoods,Additional Hire,14-Dec,"2,025.00"
3250944,BEN LANE SERVICES,Operations and Neighbourhoods,Operations and Neighbourhoods,Sub-contractor Services,19-Dec,"1,052.50"
3250944,BRENNTAG UK LIMITED,Transport,Director of Place,Fuel / Ad Blu,14-Dec,"2,075.00"
3250944,Car Hire (Day of Swansea) Ltd t/a Days Rental,Operations and Neighbourhoods,Operations and Neighbourhoods,Additional Hire,14-Dec,"3,368.52"
3250944,DENNIS EAGLE LTD,Operations and Neighbourhoods,Operations and Neighbourhoods,General Materials,14-Dec,"4,308.67"
3250944,DENNIS EAGLE LTD,Transport,Director of Place,Debits Goods Received,14-Dec,"3,134.95"
3250944,ECON ENGINEERING LTD,Operations and Neighbourhoods,Operations and Neighbourhoods,General Materials,14-Dec,"1,713.46"
3250944,G B OILS TA CARLTON FUELS,Transport,Director of Place,Diesel Fuel,14-Dec,"10,298.04"
3250944,HGV DIRECT LTD,Operations and Neighbourhoods,Operations and Neighbourhoods,General Equipment Repair & Maintenance,14-Dec,0
3250944,HGV DIRECT LTD,Operations and Neighbourhoods,Operations and Neighbourhoods,General Materials,14-Dec,712.35
3250944,HGV DIRECT LTD,Transport,Director of Place,Debits Goods Received,14-Dec,"1,415.73"
3250944,HYDRAULIC AND TRANSMISSION SERVICES LIMITED,Operations and Neighbourhoods,Operations and Neighbourhoods,Sub-contractor Services,14-Dec,673
3250944,JDS TRUCKS LIMITED,Operations and Neighbourhoods,Operations and Neighbourhoods,General Materials,14-Dec,"3,930.36"
3250944,JDS TRUCKS LIMITED,Transport,Director of Place,Debits Goods Received,14-Dec,16.86
3250944,JOHNSONS APPARELMASTER LTD,Operations and Neighbourhoods,Operations and Neighbourhoods,Protective Clothing,14-Dec,"1,090.35"
3250944,LEEDS COMMERCIAL LTD T/A LC VEHICLE HIRE,Operations and Neighbourhoods,Operations and Neighbourhoods,Additional Hire,14-Dec,"5,060.00"
3250944,LEEDS COMMERCIAL LTD T/A LC VEHICLE HIRE,Operations and Neighbourhoods,Operations and Neighbourhoods,Replacement Hire,14-Dec,275
3250944,LEEDS COMMERCIAL LTD T/A LC VEHICLE HIRE,Operations and Neighbourhoods,Operations and Neighbourhoods,Sub-contractor Services,14-Dec,784.88
3250944,LEEDS COMMERCIAL LTD T/A LC VEHICLE HIRE,Operations and Neighbourhoods,Operations and Neighbourhoods,Workshop Recharges including Misuse & Damage Costs,14-Dec,0
3250944,ON BOARD POWER LTD,Operations and Neighbourhoods,Operations and Neighbourhoods,Sub-contractor Services,14-Dec,587.95
3250944,PETER DOUGLASS PLATFORMS,Operations and Neighbourhoods,Operations and Neighbourhoods,Additional Hire,14-Dec,"3,520.00"
3250944,RIVERSIDE TRUCK RENTAL LIMITED,Operations and Neighbourhoods,Operations and Neighbourhoods,Additional Hire,14-Dec,"5,280.00"
3250944,RIVERSIDE TRUCK RENTAL LIMITED,Operations and Neighbourhoods,Operations and Neighbourhoods,Replacement Hire,14-Dec,"2,685.00"
3250944,TERBERG MATEC UK LTD,Operations and Neighbourhoods,Operations and Neighbourhoods,General Materials,14-Dec,868.96
3250944,TERBERG MATEC UK LTD,Operations and Neighbourhoods,Operations and Neighbourhoods,Sub-contractor Services,14-Dec,481.67
3250944,TRUCTYRE ATS,Operations and Neighbourhoods,Operations and Neighbourhoods,Tyre Costs,14-Dec,690.54
3250944,WASTE PARTS UK LTD,Transport,Director of Place,Debits Goods Received,14-Dec,500
3250945,A & J MOTORSPARES,Operations and Neighbourhoods,Operations and Neighbourhoods,Consumable Materials,21-Dec,113.66
3250945,A & J MOTORSPARES,Operations and Neighbourhoods,Operations and Neighbourhoods,General Equipment Purchase,21-Dec,49.9
3250945,A & J MOTORSPARES,Operations and Neighbourhoods,Operations and Neighbourhoods,General Materials,21-Dec,"1,188.52"
3250945,AEBI SCHMIDT UK LTD,Operations and Neighbourhoods,Operations and Neighbourhoods,General Materials,21-Dec,709.54
3250945,DENNIS EAGLE LTD,Operations and Neighbourhoods,Operations and Neighbourhoods,General Materials,21-Dec,"2,511.12"
3250945,DENNIS EAGLE LTD,Operations and Neighbourhoods,Operations and Neighbourhoods,Sub-contractor Services,21-Dec,"5,749.50"
3250945,DENNIS EAGLE LTD,Transport,Director of Place,Debits Goods Received,21-Dec,330.79
3250945,G B OILS TA CARLTON FUELS,Transport,Director of Place,Diesel Fuel,21-Dec,"23,536.80"
3250945,LEEDS COMMERCIAL LTD T/A LC VEHICLE HIRE,Operations and Neighbourhoods,Operations and Neighbourhoods,Additional Hire,21-Dec,"1,100.00"
3250945,LEEDS COMMERCIAL LTD T/A LC VEHICLE HIRE,Operations and Neighbourhoods,Operations and Neighbourhoods,Replacement Hire,21-Dec,-275
3250945,LEEDS COMMERCIAL LTD T/A LC VEHICLE HIRE,Operations and Neighbourhoods,Operations and Neighbourhoods,Sub-contractor Services,21-Dec,80.59
3250945,LPW EUROPE LTD,Operations and Neighbourhoods,Operations and Neighbourhoods,General Equipment Repair & Maintenance,21-Dec,504
3250945,MULTEVO LIMITED,Operations and Neighbourhoods,Operations and Neighbourhoods,Sub-contractor Services,21-Dec,"1,598.03"
3250945,Popcorn Rocks Limited t/a Green Motion,Operations and Neighbourhoods,Operations and Neighbourhoods,Additional Hire,21-Dec,"4,818.32"
5410463,WATERLOO MEDICAL CENTRE,Population Health,Population Health,Local Enhanced Services,13-Dec,800
5482979,TAMESIDE SPORTS TRUST,Childrens Services,Children's Services,Short Breaks (Respite),01-Dec,648
5484786,Quest Software International Limited,Digital Tameside,Finance & IT,Computer Software,01-Dec,"1,726.00"
5487213,Nestlings Care Ltd,Childrens Services,Children's Services,Childrens Homes Outside Local Authority Fees,25-Oct,"32,195.71"
5487214,Nestlings Care Ltd,Childrens Services,Children's Services,Childrens Homes Outside Local Authority Fees,25-Oct,"32,195.71"
5489320,Nestlings Care Ltd,Childrens Services,Children's Services,Childrens Homes Outside Local Authority Fees,25-Oct,"32,195.71"
5492200,Nestlings Care Ltd,Childrens Services,Children's Services,Childrens Homes Outside Local Authority Fees,25-Oct,"29,080.00"
5494611,CARETECH COMMUNITY SERVICES LIMITED,Adult Social Care,Adults,Residential Home Long Stay Fees,21-Dec,"5,725.50"
5495669,LINK CARE SOLUTIONS LTD,Adult Social Care,Adults,Homecare Fees,13-Oct,505.31
5495675,LINK CARE SOLUTIONS LTD,Adult Social Care,Adults,Homecare Fees,25-Oct,"1,099.26"
5495688,LINK CARE SOLUTIONS LTD,Adult Social Care,Adults,Homecare Fees,25-Oct,531.9
5495706,LINK CARE SOLUTIONS LTD,Adult Social Care,Adults,Homecare Fees,25-Oct,536.33
5495717,LINK CARE SOLUTIONS LTD,Adult Social Care,Adults,Homecare Fees,25-Oct,638.28
5496115,GREATER MANCHESTER COMBINED AUTHORITY,Operations and Neighbourhoods,Operations and Neighbourhoods,Passenger Transport Levy,13-Dec,"904,800.00"
5496123,GREATER MANCHESTER COMBINED AUTHORITY,Operations and Neighbourhoods,Operations and Neighbourhoods,Passenger Transport Levy,13-Nov,"904,800.00"
5496128,GREATER MANCHESTER COMBINED AUTHORITY,Operations and Neighbourhoods,Operations and Neighbourhoods,Passenger Transport Levy,11-Oct,"904,800.00"
5496152,GREATER MANCHESTER COMBINED AUTHORITY,Operations and Neighbourhoods,Operations and Neighbourhoods,Passenger Transport Levy,13-Nov,"691,300.00"
5496153,GREATER MANCHESTER COMBINED AUTHORITY,Operations and Neighbourhoods,Operations and Neighbourhoods,Passenger Transport Levy,11-Oct,"691,300.00"
5496157,GREATER MANCHESTER COMBINED AUTHORITY,Operations and Neighbourhoods,Operations and Neighbourhoods,Passenger Transport Levy,13-Dec,"691,300.00"
5496208,GREATER MANCHESTER COMBINED AUTHORITY,Operations and Neighbourhoods,Operations and Neighbourhoods,Waste Levy - Domestic Waste Disposal Costs,18-Oct,"1,293,000.00"
5496210,GREATER MANCHESTER COMBINED AUTHORITY,Operations and Neighbourhoods,Operations and Neighbourhoods,Waste Levy - Domestic Waste Disposal Costs,16-Nov,"1,293,000.00"
5496211,GREATER MANCHESTER COMBINED AUTHORITY,Operations and Neighbourhoods,Operations and Neighbourhoods,Waste Levy - Domestic Waste Disposal Costs,18-Dec,"1,293,000.00"
5496387,Nestlings Care Ltd,Childrens Services,Children's Services,Childrens Homes Outside Local Authority Fees,25-Oct,"32,195.71"
5497542,Quest Software International Limited,Digital Tameside,Finance & IT,Computer Software,01-Dec,603.14
5499213,LINK CARE SOLUTIONS LTD,Adult Social Care,Adults,Homecare Fees,20-Oct,721.5
5499281,LINK CARE SOLUTIONS LTD,Adult Social Care,Adults,Homecare Fees,20-Oct,546
5499749,Foster Careline Ltd,Childrens Services,Children's Services,Foster Carer Agency Fees,08-Nov,"3,534.47"
5501861,HEM DES LLP,Place,Growth,Professional Services,14-Nov,"13,968.00"
5502055,Foster Careline Ltd,Childrens Services,Children's Services,Foster Carer Agency Fees,08-Nov,"3,652.29"
5502056,Foster Careline Ltd,Childrens Services,Children's Services,Foster Carer Agency Fees,08-Nov,"3,975.35"
5502348,CARETECH COMMUNITY SERVICES LIMITED,Adult Social Care,Adults,Residential Home Long Stay Fees,27-Nov,"13,816.08"
5502349,CARETECH COMMUNITY SERVICES LIMITED,Adult Social Care,Adults,Residential Home Long Stay Fees,27-Nov,"5,486.07"
5502910,Streetcars Manchester Limited,Education,Children's Services,Transport Of Ola Pupils,22-Nov,"1,445.00"
5502911,Streetcars Manchester Limited,Education,Children's Services,Transport Of Ola Pupils,22-Nov,"1,176.00"
5502912,Streetcars Manchester Limited,Education,Children's Services,Transport Of Ola Pupils,22-Nov,"1,870.00"
5502914,Streetcars Manchester Limited,Education,Children's Services,Transport Of Ola Pupils,22-Nov,"1,350.00"
5502967,LINK CARE SOLUTIONS LTD,Adult Social Care,Adults,Homecare Fees,20-Oct,682.5
5503592,NEW HORIZONS (STOCKPORT) LTD,Childrens Services,Children's Services,Childrens Homes Outside Local Authority Fees,10-Oct,"21,859.80"
5503919,TAMESIDE SPORTS TRUST,Childrens Services,Children's Services,Short Breaks (Respite),02-Nov,720
5504385,Streetcars Manchester Limited,Education,Children's Services,Transport Of Ola Pupils,22-Nov,"1,785.00"
5504386,Streetcars Manchester Limited,Education,Children's Services,Transport Of Ola Pupils,22-Nov,"2,530.00"
5504387,Streetcars Manchester Limited,Education,Children's Services,Transport Of Ola Pupils,22-Nov,"1,512.00"
5504815,Foster Careline Ltd,Childrens Services,Children's Services,Foster Carer Agency Fees,08-Nov,"2,122.50"
5504820,ADULLAM HOMES HOUSING ASSOC LTD,Operations and Neighbourhoods,Operations and Neighbourhoods,Supporting People Gross Contract,03-Nov,"13,778.00"
5505295,Foster Careline Ltd,Childrens Services,Children's Services,Foster Carer Agency Fees,08-Nov,"3,534.47"
5505296,Foster Careline Ltd,Childrens Services,Children's Services,Foster Carer Agency Fees,08-Nov,"3,847.11"
5505298,Foster Careline Ltd,Childrens Services,Children's Services,Foster Carer Agency Fees,08-Nov,"7,428.73"
5505537,Go To Investments Ltd t/a HALA GUEST HOUSE,(blank),(blank),#N/A,17-Oct,"7,982.00"
5505538,Go To Investments Ltd t/a HALA GUEST HOUSE,(blank),(blank),#N/A,17-Oct,"7,562.00"
5506136,Streetcars Manchester Limited,Education,Children's Services,Transport Of Ola Pupils,22-Nov,"1,710.00"
5506139,Streetcars Manchester Limited,Education,Children's Services,Transport Of Ola Pupils,22-Nov,"1,344.00"
5506143,Streetcars Manchester Limited,Education,Children's Services,Transport Of Ola Pupils,22-Nov,"2,145.00"
5506144,Streetcars Manchester Limited,Education,Children's Services,Transport Of Ola Pupils,22-Nov,"1,785.00"
5506168,EQUIFAX LTD,Hosted Services,Hosted Services,Professional Services,03-Oct,"1,411.62"
5506573,NEW HORIZONS (STOCKPORT) LTD,Childrens Services,Children's Services,Childrens Homes Outside Local Authority Fees,06-Oct,"22,588.46"
5506799,Cabinet Office,Corporate Costs,Corporate Costs,Contributions,31-Oct,"4,120.00"
5507486,Go To Investments Ltd t/a HALA GUEST HOUSE,(blank),(blank),#N/A,17-Oct,"11,237.00"
5508007,National Youth Advocacy Service,Childrens Services,Children's Services,Professional Services,25-Oct,"3,333.34"
5508024,Redacted Supplier,Childrens Services,Children's Services,Professional Services,09-Oct,"1,250.00"
5508318,The Mount Guest House Limited,(blank),(blank),#N/A,22-Dec,"19,275.00"
5508351,Jigsaw Homes Tameside,Operations and Neighbourhoods,Operations and Neighbourhoods,Supporting People Gross Contract,13-Oct,"35,642.00"
5508353,Jigsaw Homes Tameside,Operations and Neighbourhoods,Operations and Neighbourhoods,Supporting People Gross Contract,13-Oct,"215,147.50"
5508354,Cheery Blossom Supported Living,(blank),(blank),Living With Formal Support,24-Nov,"18,600.00"
5508573,G4S CASH SOLUTIONS (UK) LIMITED,Finance,Finance & IT,Security Services,14-Nov,729.07
5508790,Jigsaw Homes Tameside,Childrens Services,Children's Services,Non-Authority Accommodation Rental,13-Oct,"1,068.96"
5508796,Jigsaw Homes Tameside,Adult Social Care,Adults,Non-Authority Accommodation Rental,13-Oct,"4,784.96"
5509680,Redacted Supplier,Childrens Services,Children's Services,Professional Services,09-Oct,500
5509798,Somerset Council,Hosted Services,Hosted Services,Professional Consultancy Services,06-Oct,"10,052.67"
5510055,Streetcars Manchester Limited,Education,Children's Services,Transport Of Ola Pupils,22-Nov,"1,105.00"
5510056,Streetcars Manchester Limited,Education,Children's Services,Transport Of Ola Pupils,22-Nov,"1,218.00"
5510057,Streetcars Manchester Limited,Education,Children's Services,Transport Of Ola Pupils,22-Nov,"1,485.00"
5510058,Streetcars Manchester Limited,Education,Children's Services,Transport Of Ola Pupils,22-Nov,990
5510059,Streetcars Manchester Limited,Operations and Neighbourhoods,Operations and Neighbourhoods,Hired Transport,22-Nov,"2,000.00"
5510541,National Youth Advocacy Service,Childrens Services,Children's Services,Professional Services,25-Oct,"3,333.34"
5510671,N.W.A Housing Ltd,(blank),(blank),#N/A,03-Oct,"14,822.50"
5510787,Banya Family Placement Agency Limited,Childrens Services,Children's Services,Foster Carer Agency Fees,17-Nov,"3,021.32"
5510961,NATIONAL FOSTERING AGENCY LTD,Childrens Services,Children's Services,Foster Carer Agency Fees,03-Oct,"3,544.85"
5510970,Pell Frischmann Consultants Ltd,Engineers Client,Director of Place,External  Consultants,03-Oct,"2,511.00"
5511009,Pell Frischmann Consultants Ltd,(blank),(blank),External  Consultants,03-Oct,"4,777.70"
5511025,Acorns to Oaks Children's Care & Support Ltd,Childrens Services,Children's Services,Childrens Homes Outside Local Authority Fees,04-Oct,"19,885.71"
5511027,ASKEWS  AND HOLTS LIBRARY SERVICES LTD,Operations and Neighbourhoods,Operations and Neighbourhoods,Purchase Books,04-Oct,858.95
5511029,Cathmor,Childrens Services,Children's Services,Living With Formal Support,04-Oct,"5,956.34"
5511030,Cathmor,(blank),(blank),Living With Formal Support,04-Oct,771.44
5511031,Cathmor,(blank),(blank),Living With Formal Support,04-Oct,"5,978.66"
5511031,Cathmor,(blank),(blank),Semi independent - Weekly Living Allowances,04-Oct,297.6
5511036,CFS CARE LIMITED,Childrens Services,Children's Services,Living With Formal Support,04-Oct,"5,686.29"
5511038,CFS CARE LIMITED,(blank),(blank),Living With Formal Support,04-Oct,"6,018.43"
5511038,CFS CARE LIMITED,(blank),(blank),Semi independent - Weekly Living Allowances,04-Oct,268.8
5511039,CFS CARE LIMITED,(blank),(blank),Living With Formal Support,04-Oct,"6,018.43"
5511039,CFS CARE LIMITED,(blank),(blank),Semi independent - Weekly Living Allowances,04-Oct,67.2
5511040,CFS CARE LIMITED,Childrens Services,Children's Services,Living With Formal Support,04-Oct,"5,630.14"
5511043,Precision Resource Group Ltd t/a Panoramic Associates,Education,Children's Services,Agency Staff,04-Oct,"1,600.00"
5511044,Optima Health and Social Care Ltd,Childrens Services,Children's Services,Homecare Fees,04-Oct,"1,890.00"
5511045,TUDOR (UK) LTD T/A TUDOR ENVIRONMENTAL,Operations and Neighbourhoods,Operations and Neighbourhoods,Professional Weedspraying Services,04-Oct,"3,488.00"
5511051,FOSTERING SOLUTIONS LTD,Childrens Services,Children's Services,Foster Carer Agency Fees,04-Oct,"3,389.39"
5511052,FOSTERING SOLUTIONS LTD,Childrens Services,Children's Services,Foster Carer Agency Fees,04-Oct,"3,778.31"
5511053,FOSTERING SOLUTIONS LTD,Childrens Services,Children's Services,Foster Carer Agency Fees,04-Oct,"3,848.70"
5511054,FOSTERING SOLUTIONS LTD,Childrens Services,Children's Services,Foster Carer Agency Fees,04-Oct,"3,411.00"
5511055,FOSTERING SOLUTIONS LTD,Childrens Services,Children's Services,Foster Carer Agency Fees,04-Oct,"3,411.00"
5511056,FOSTERING SOLUTIONS LTD,Childrens Services,Children's Services,Foster Carer Agency Fees,04-Oct,"3,639.00"
5511057,FOSTERING SOLUTIONS LTD,Childrens Services,Children's Services,Foster Carer Agency Fees,04-Oct,"3,626.06"
5511058,FOSTERING SOLUTIONS LTD,Childrens Services,Children's Services,Foster Carer Agency Fees,04-Oct,"3,389.39"
5511059,FOSTERING SOLUTIONS LTD,Childrens Services,Children's Services,Foster Carer Agency Fees,04-Oct,"3,686.48"
5511061,iCare Solutions Manchester,Childrens Services,Children's Services,Homecare Fees,04-Oct,"1,302.00"
5511062,iCare Solutions Manchester,Childrens Services,Children's Services,Homecare Fees,04-Oct,"1,200.00"
5511063,iCare Solutions Manchester,Childrens Services,Children's Services,Homecare Fees,04-Oct,924
5511072,APS Group,Operations and Neighbourhoods,Operations and Neighbourhoods,Professional Medical Services,04-Oct,953.92
5511073,Furniture Resource Centre Ltd,Operations and Neighbourhoods,Operations and Neighbourhoods,"Fixtures, Fittings & Furniture Purchase",04-Oct,628.78
5511074,Furniture Resource Centre Ltd,Operations and Neighbourhoods,Operations and Neighbourhoods,"Fixtures, Fittings & Furniture Purchase",04-Oct,955.12
5511075,CFS CARE LIMITED,(blank),(blank),Living With Formal Support,04-Oct,"7,850.00"
5511077,Redacted Supplier,Education,Children's Services,Professional Services,04-Oct,700
5511078,Furniture Resource Centre Ltd,Operations and Neighbourhoods,Operations and Neighbourhoods,"Fixtures, Fittings & Furniture Purchase",04-Oct,519.21
5511079,Redacted Supplier,Education,Children's Services,Professional Services,04-Oct,700
5511080,Furniture Resource Centre Ltd,Operations and Neighbourhoods,Operations and Neighbourhoods,"Fixtures, Fittings & Furniture Purchase",04-Oct,576.56
5511081,Redacted Supplier,Education,Children's Services,Professional Services,04-Oct,512.5
5511083,Beacon Counselling,People and Workforce Development,Governance,Professional Medical Services,04-Oct,"2,120.00"
5511084,KB Extruders Ltd,Operations and Neighbourhoods,Operations and Neighbourhoods,Purchase Wheeled Bins,04-Oct,"1,972.80"
5511085,FRESH START INDEPENDENCE PROJECT LTD,Childrens Services,Children's Services,Living With Formal Support,04-Oct,"1,650.00"
5511087,Care 4 Every Child Ltd,Childrens Services,Children's Services,Childrens Homes Outside Local Authority Fees,04-Oct,"23,735.47"
5511089,DOMAIN CARE NORTH WEST LTD,Adult Social Care,Adults,Residential Home Long Stay Fees,04-Oct,"16,368.00"
5511090,SpeedAdmin ApS,Education,Children's Services,Licences,04-Oct,"1,553.06"
5511093,Steve Smith Carpets Limited,Adult Social Care,Adults,"Fixtures, Fittings & Furniture Purchase",04-Oct,"2,220.00"
5511094,Milk Education Limited,Education,Children's Services,Agency Staff,04-Oct,"1,042.50"
5511126,TURNING POINT SERVICES LIMITED,Adult Social Care,Adults,Homecare Fees,13-Oct,"220,708.91"
5511128,ELECTORAL REFORM SERVICES,Governance,Governance,Printing And Stationery,04-Oct,660.8
5511130,ANIMAL WARDENS LTD,Operations and Neighbourhoods,Operations and Neighbourhoods,General Equipment Purchase,04-Oct,779.5
5511135,West Yorkshire Support,Adult Social Care,Adults,Homecare Fees,04-Oct,"24,985.50"
5511137,Attenti Consulting,Childrens Services,Children's Services,Professional Consultancy Services,04-Oct,"36,355.90"
5511141,Attenti Consulting,Childrens Services,Children's Services,Professional Consultancy Services,18-Oct,600
5511142,Attenti Consulting,Childrens Services,Children's Services,Professional Consultancy Services,18-Oct,500
5511143,Attenti Consulting,Childrens Services,Children's Services,Professional Consultancy Services,18-Oct,500
5511144,Attenti Consulting,Childrens Services,Children's Services,Professional Consultancy Services,18-Oct,500
5511147,THE ADOLESCENT & CHILDRENS TRUST,Childrens Services,Children's Services,Foster Carer Agency Fees,04-Oct,"3,082.64"
5511149,THE ADOLESCENT & CHILDRENS TRUST,Childrens Services,Children's Services,Foster Carer Agency Fees,04-Oct,"3,082.64"
5511150,THE ADOLESCENT & CHILDRENS TRUST,Childrens Services,Children's Services,Foster Carer Agency Fees,04-Oct,"2,946.24"
5511152,Vcare24 Ltd,Childrens Services,Children's Services,Professional Services,04-Oct,"1,105.50"
5511157,Redacted Supplier,Education,Children's Services,Professional Services,04-Oct,"2,200.00"
5511159,DOMAIN CARE NORTH WEST LTD,Adult Social Care,Adults,Day Care Fees,04-Oct,"2,002.74"
5511162,DURHAM COUNTY COUNCIL,Childrens Services,Children's Services,Childrens Homes Outside Local Authority Fees,04-Oct,"42,780.00"
5511167,THE ADOLESCENT & CHILDRENS TRUST,Childrens Services,Children's Services,Foster Carer Agency Fees,04-Oct,"4,599.78"
5511168,DAISY CORPORATE SERVICES TRADING LIMITED,Digital Tameside,Finance & IT,Telephone Landline Costs,04-Oct,965.14
5511169,M-R-S COMMUNICATIONS LTD,Operations and Neighbourhoods,Operations and Neighbourhoods,Security Services,04-Oct,"1,321.62"
5511174,CFS CARE LIMITED,(blank),(blank),Living With Formal Support,05-Oct,"5,314.29"
5511174,CFS CARE LIMITED,(blank),(blank),Semi independent - Weekly Living Allowances,05-Oct,268.8
5511176,Silverthorn Associates Limited,Hosted Services,Hosted Services,Subscriptions,05-Oct,"20,000.00"
5511181,FCL Fostering,Childrens Services,Children's Services,Foster Carer Agency Fees,05-Oct,"4,178.70"
5511182,Supporting Futures LTD,Childrens Services,Children's Services,Childrens Homes Outside Local Authority Fees,05-Oct,"24,556.34"
5511183,Home Instead Senior Care,Adult Social Care,Adults,Residential Home Long Stay Fees,05-Oct,"1,580.50"
5511184,Home Instead Senior Care,Adult Social Care,Adults,Homecare Fees,05-Oct,"1,650.00"
5511187,Wizard Liverpool Propco Limited t/a True Student Liverpool,Childrens Services,Children's Services,University Accomodation,05-Oct,"1,015.40"
5511188,Next Stage 'A Way Forward' Youth Development LTD,(blank),(blank),Living With Formal Support,05-Oct,"5,192.50"
5511192,HEXAGON CARE SERVICES LTD,Education,Children's Services,Independent School Fees,05-Oct,"15,666.66"
5511193,CITY CARE SOLUTIONS LTD,Adult Social Care,Adults,Homecare Fees,05-Oct,"8,524.75"
5511194,Vcare24 Ltd,Childrens Services,Children's Services,Professional Services,05-Oct,"1,494.40"
5511195,Alternative Approach,(blank),(blank),Living With Formal Support,05-Oct,"15,699.95"
5511197,Grace Live In Carers Ltd t/a Grace 24/7 Care,(blank),(blank),Living With Formal Support,05-Oct,"9,698.66"
5511198,SALISBURY SUPPORT 4 AUTISM,Adult Social Care,Adults,Homecare Fees,05-Oct,"13,918.88"
5511199,Vcare24 Ltd,Childrens Services,Children's Services,Professional Services,05-Oct,"1,486.40"
5511200,FRONTLINE SECURITY 24/7 LTD t/a UK CARE LTD,Childrens Services,Children's Services,Transport Of Pupils,16-Oct,776.87
5511202,The Foster Care Charity,Childrens Services,Children's Services,Foster Carer Agency Fees,05-Oct,"3,353.25"
5511209,Bright Opportunities,Adult Social Care,Adults,Day Care Fees,05-Oct,"1,770.00"
5511211,Alternative Approach,(blank),(blank),Living With Formal Support,05-Oct,"2,564.50"
5511212,Alternative Approach,(blank),(blank),Living With Formal Support,05-Oct,"3,590.30"
5511213,DURHAM COUNTY COUNCIL,Childrens Services,Children's Services,Professional Services,05-Oct,763.5
5511214,Bright Opportunities,Adult Social Care,Adults,Day Care Fees,05-Oct,"1,470.00"
5511220,KNIGHT FRANK LLP,(blank),(blank),Fees,05-Oct,"13,325.00"
5511221,KNIGHT FRANK LLP,(blank),(blank),Fees,05-Oct,"10,400.00"
5511223,FRESHWORKS,Digital Tameside,Finance & IT,Computer Software,05-Oct,"28,944.21"
5511238,FRESHWORKS,Digital Tameside,Finance & IT,Computer Software,05-Oct,"2,784.00"
5511240,Transunion Internal UK Limited,Hosted Services,Hosted Services,Professional Services,05-Oct,"16,800.00"
5511246,SignHealth,Adult Social Care,Adults,Homecare Fees,05-Oct,704.2
5511250,LANCASHIRE COUNTY COUNCIL,Operations and Neighbourhoods,Operations and Neighbourhoods,Professional Services,05-Oct,591.3
5511252,K P DODD CONSTRUCTION LTD,Housing,Director of Place,Minor Works - Building,05-Oct,500
5511253,Redacted Supplier,Education,Children's Services,Professional Services,05-Oct,"2,475.00"
5511254,Amara Care Ltd,Adult Social Care,Adults,Homecare Fees,05-Oct,"11,141.40"
5511255,K P DODD CONSTRUCTION LTD,Housing,Director of Place,Minor Works - Building,05-Oct,500
5511258,Redacted Supplier,Education,Children's Services,Other Local Authorities Fees,05-Oct,"50,373.76"
5511259,Redacted Supplier,Education,Children's Services,Other Local Authorities Fees,05-Oct,"35,512.42"
5511259,Redacted Supplier,Education,Children's Services,Post 16 FE College Fees,05-Oct,"15,948.14"
5511260,Redacted Supplier,Education,Children's Services,Other Local Authorities Fees,05-Oct,"101,604.46"
5511261,Synectics Security Limited,Place,Growth,Repairs & Maintenance Heavy Catering Equipment,05-Oct,"1,736.00"
5511264,Redacted Supplier,Education,Children's Services,Non-Maintained School Fees,05-Oct,"22,641.19"
5511264,Redacted Supplier,Education,Children's Services,Other Local Authorities Fees,05-Oct,"55,345.74"
5511273,PROGRESSIVE CARE LTD,Childrens Services,Children's Services,Mother and Baby Assessment Placements,06-Oct,"3,975.00"
5511283,COVEBERRY LIMITED,Adult Social Care,Adults,Homecare Fees,06-Oct,"2,280.00"
5511287,ALPHA PLUS FOSTERING LIMITED,Childrens Services,Children's Services,Foster Carer Agency Fees,06-Oct,"1,844.10"
5511289,R B L ASHTON UNDER LYNE BRANCH,Corporate Costs,Corporate Costs,Event Related Activity,06-Oct,605
5511291,Banya Family Placement Agency Limited,Childrens Services,Children's Services,Foster Carer Agency Fees,17-Nov,"4,074.73"
5511292,ALPHA PLUS FOSTERING LIMITED,Childrens Services,Children's Services,Foster Carer Agency Fees,06-Oct,"1,881.75"
5511293,YOUNG PEOPLE FIRST LIMITED,(blank),(blank),Living With Formal Support,06-Oct,"1,172.64"
5511293,YOUNG PEOPLE FIRST LIMITED,(blank),(blank),Semi independent - Weekly Living Allowances,06-Oct,67.2
5511296,ALPHA PLUS FOSTERING LIMITED,Childrens Services,Children's Services,Foster Carer Agency Fees,06-Oct,"2,258.10"
5511297,TREASURED MEMORIES LTD,Operations and Neighbourhoods,Operations and Neighbourhoods,Plaques,06-Oct,674.65
5511298,The Fostering Team Limited,Childrens Services,Children's Services,Foster Carer Agency Fees,06-Oct,"5,785.80"
5511299,The Fostering Team Limited,Childrens Services,Children's Services,Foster Carer Agency Fees,06-Oct,"3,914.10"
5511300,The Fostering Team Limited,Childrens Services,Children's Services,Foster Carer Agency Fees,06-Oct,"3,327.00"
5511301,The Fostering Team Limited,Childrens Services,Children's Services,Foster Carer Agency Fees,06-Oct,"3,360.60"
5511303,The Fostering Team Limited,Childrens Services,Children's Services,Foster Carer Agency Fees,06-Oct,"7,151.10"
5511304,The Fostering Team Limited,Childrens Services,Children's Services,Foster Carer Agency Fees,06-Oct,"5,727.94"
5511312,Musuem & Gallery Transport & Technical Services Ltd,(blank),(blank),Other Works,06-Oct,899
5511313,THREE CIRCLES FOSTERING LTD,Childrens Services,Children's Services,Foster Carer Agency Fees,06-Oct,"3,677.57"
5511314,BRG Interim Solutions Ltd t/a British Resourcing Group,Place,Growth,Agency Staff,08-Nov,"4,875.00"
5511316,Inicio Group Ltd,Childrens Services,Children's Services,Living With Formal Support,09-Oct,"4,810.11"
5511318,Inicio Group Ltd,(blank),(blank),Living With Formal Support,06-Oct,"5,978.58"
5511320,SHOW RACISM THE RED CARD,Operations and Neighbourhoods,Operations and Neighbourhoods,Project Costs,06-Oct,"12,000.00"
5511321,Inicio Group Ltd,(blank),(blank),Living With Formal Support,06-Oct,"3,535.71"
5511323,Inicio Group Ltd,(blank),(blank),Living With Formal Support,06-Oct,"5,978.58"
5511325,Inicio Group Ltd,(blank),(blank),Living With Formal Support,06-Oct,"1,282.24"
5511327,THREE CIRCLES FOSTERING LTD,Childrens Services,Children's Services,Foster Carer Agency Fees,06-Oct,"5,546.79"
5511331,THREE CIRCLES FOSTERING LTD,Childrens Services,Children's Services,Foster Carer Agency Fees,06-Oct,"5,301.00"
5511335,THREE CIRCLES FOSTERING LTD,Childrens Services,Children's Services,Foster Carer Agency Fees,06-Oct,"3,534.00"
5511338,THREE CIRCLES FOSTERING LTD,Childrens Services,Children's Services,Foster Carer Agency Fees,06-Oct,"3,463.32"
5511340,THREE CIRCLES FOSTERING LTD,Childrens Services,Children's Services,Foster Carer Agency Fees,06-Oct,"3,309.83"
5511342,THREE CIRCLES FOSTERING LTD,Childrens Services,Children's Services,Foster Carer Agency Fees,06-Oct,"3,309.83"
5511344,THREE CIRCLES FOSTERING LTD,Childrens Services,Children's Services,Foster Carer Agency Fees,06-Oct,"6,620.67"
5511346,THREE CIRCLES FOSTERING LTD,Childrens Services,Children's Services,Foster Carer Agency Fees,06-Oct,"3,509.46"
5511348,THREE CIRCLES FOSTERING LTD,Childrens Services,Children's Services,Foster Carer Agency Fees,06-Oct,"3,509.46"
5511349,THREE CIRCLES FOSTERING LTD,Childrens Services,Children's Services,Foster Carer Agency Fees,06-Oct,"3,604.06"
5511352,THREE CIRCLES FOSTERING LTD,Childrens Services,Children's Services,Foster Carer Agency Fees,06-Oct,"3,677.57"
5511354,THREE CIRCLES FOSTERING LTD,Childrens Services,Children's Services,Foster Carer Agency Fees,06-Oct,"3,475.94"
5511356,THREE CIRCLES FOSTERING LTD,Childrens Services,Children's Services,Foster Carer Agency Fees,06-Oct,"3,907.81"
5511357,THREE CIRCLES FOSTERING LTD,Childrens Services,Children's Services,Foster Carer Agency Fees,06-Oct,"4,310.55"
5511358,THREE CIRCLES FOSTERING LTD,Childrens Services,Children's Services,Foster Carer Agency Fees,06-Oct,"4,045.72"
5511360,THREE CIRCLES FOSTERING LTD,Childrens Services,Children's Services,Foster Carer Agency Fees,06-Oct,"3,439.05"
5511361,G4S CASH SOLUTIONS (UK) LIMITED,Finance,Finance & IT,Security Services,13-Nov,626.2
5511370,CITY LIFT SERVICES (NW) LTD,Adult Social Care,Adults,General Equipment Repair & Maintenance,06-Oct,"2,150.00"
5511371,Valour Private Ltd t/a Valour Healthcare Services,Adult Social Care,Adults,Homecare Fees,06-Oct,"5,908.50"
5511373,Valour Private Ltd t/a Valour Healthcare Services,Adult Social Care,Adults,Homecare Fees,06-Oct,"5,421.00"
5511376,Imail Comms Limited,Exchequer,Governance,Printing And Stationery,06-Oct,"3,201.27"
5511377,Precision Resource Group Ltd t/a Panoramic Associates,Education,Children's Services,Agency Staff,06-Oct,960
5511381,"Vivid Resourcing, a division of G2V Recruitment Group Ltd T/A Vivid Resourcing",Finance,Finance & IT,Agency Staff,06-Oct,"2,300.00"
5511390,Redacted Supplier,Adult Social Care,Adults,Day Care Fees,06-Oct,"2,768.50"
5511395,Precision Resource Group Ltd t/a Panoramic Associates,Education,Children's Services,Agency Staff,06-Oct,"1,880.00"
5511399,RELX (UK) t/a LEXISNEXIS,Governance,Governance,Text Books Periodicals and Newspapers,06-Oct,583
5511402,N.W.A Housing Ltd,(blank),(blank),#N/A,06-Oct,"13,992.44"
5511405,ACORN CARE & EDUCATION LTD (SALES),Education,Children's Services,Independent School Fees,24-Nov,"24,652.50"
5511415,Shield Support Hub Limited,(blank),(blank),Living With Formal Support,06-Oct,"6,667.92"
5511415,Shield Support Hub Limited,(blank),(blank),Semi independent - Weekly Living Allowances,06-Oct,268.8
5511417,NEW HORIZONS (STOCKPORT) LTD,Childrens Services,Children's Services,Childrens Homes Outside Local Authority Fees,06-Oct,"20,357.10"
5511419,NEW HORIZONS (STOCKPORT) LTD,Childrens Services,Children's Services,Childrens Homes Outside Local Authority Fees,06-Oct,"20,357.10"
5511420,Vestacare (UK) Limited,Adult Social Care,Adults,Day Care Fees,06-Oct,"1,357.24"
5511422,KEYS PCE LTD,Childrens Services,Children's Services,Childrens Homes Outside Local Authority Fees,06-Oct,"18,808.16"
5511423,Redacted Supplier,Education,Children's Services,Independent School Fees,06-Oct,"4,410.00"
5511424,Carrington West Ltd,Place,Growth,Agency Staff,26-Oct,912.12
5511432,Law Morgan Limited T/A Morgan Law,Finance,Finance & IT,Agency Staff,06-Oct,996.98
5511439,EQUIFAX LTD,Hosted Services,Hosted Services,Professional Services,06-Oct,"1,444.84"
5511455,RedQuadrant Ltd,Hosted Services,Hosted Services,Professional Consultancy Services,06-Oct,"2,500.00"
5511456,ON365,Digital Tameside,Finance & IT,Network Equipment/Setup,06-Oct,"4,290.00"
5511457,Redacted Supplier,Operations and Neighbourhoods,Operations and Neighbourhoods,Professional Entertainment Services,06-Oct,954
5511458,TUDOR (UK) LTD T/A TUDOR ENVIRONMENTAL,Operations and Neighbourhoods,Operations and Neighbourhoods,General Materials,06-Oct,"3,495.86"
5511460,ROUTES HEALTHCARE (NORTH) LIMITED,Adult Social Care,Adults,Homecare Fees,06-Oct,"7,719.92"
5511461,James Brunt Artist Ltd,Operations and Neighbourhoods,Operations and Neighbourhoods,Professional Entertainment Services,06-Oct,"1,119.99"
5511462,RH ENVIRONMENTAL,Operations and Neighbourhoods,Operations and Neighbourhoods,Professional Services,06-Oct,"1,888.00"
5511463,XMA LIMITED,Digital Tameside,Finance & IT,IT Equipment,06-Oct,"4,993.00"
5511464,ALPHA BIOLABS,Childrens Services,Children's Services,Professional Services,06-Oct,"2,082.80"
5511466,THE DIOCESE OF SALFORD,Operations and Neighbourhoods,Operations and Neighbourhoods,Other Accommodation Related Costs,06-Oct,"13,615.17"
5511467,Future Focused Care,Childrens Services,Children's Services,Childrens Homes Outside Local Authority Fees,06-Oct,"19,264.20"
5511474,JENOPTIK UK LIMITED,Operations and Neighbourhoods,Operations and Neighbourhoods,Fees,06-Oct,"1,841.00"
5511476,Northumbria Healthcare NHS Foundation Trust,(blank),(blank),Debits,09-Oct,"2,164.66"
5511481,BOOTS UK LTD,Population Health,Population Health,Local Enhanced Services,06-Oct,511.4
5511482,Northumbria Healthcare NHS Foundation Trust,(blank),(blank),Debits,10-Oct,"32,375.24"
5511517,BIBLIOTHECA LTD,Operations and Neighbourhoods,Operations and Neighbourhoods,General Equipment Purchase,06-Oct,510
5511521,DOMAIN CARE NORTH WEST LTD,Adult Social Care,Adults,Residential Home Long Stay Fees,06-Oct,"1,636.80"
5511523,DOMAIN CARE NORTH WEST LTD,Adult Social Care,Adults,Residential Home Long Stay Fees,06-Oct,"1,584.00"
5511524,DOMAIN CARE NORTH WEST LTD,Adult Social Care,Adults,Residential Home Long Stay Fees,06-Oct,"1,531.20"
5511526,MPH Inspection Services ltd,Engineers Client,Director of Place,Street Lighting Works,06-Oct,"21,945.75"
5511527,CARE NEEDS LTD,Adult Social Care,Adults,Homecare Fees,06-Oct,"8,970.00"
5511531,SURECARE TAMESIDE & OLDHAM,Adult Social Care,Adults,Homecare Fees,06-Oct,"5,931.25"
5511534,CARE NEEDS LTD,Adult Social Care,Adults,Homecare Fees,06-Oct,"8,814.00"
5511539,Precision Resource Group Ltd t/a Panoramic Associates,Education,Children's Services,Agency Staff,06-Oct,"2,350.00"
5511541,Local Creative Project Ltd,(blank),(blank),Project Costs,06-Oct,"4,583.40"
5511543,Precision Resource Group Ltd t/a Panoramic Associates,Education,Children's Services,Agency Staff,06-Oct,"1,600.00"
5511567,Access UK Ltd,Education,Children's Services,Computer Software Maintenance Costs,06-Oct,"19,120.83"
5511567,Access UK Ltd,Population Health,Population Health,Computer Software Maintenance Costs,06-Oct,"1,319.17"
5511582,NATIONAL FOSTERING AGENCY LTD,Childrens Services,Children's Services,Foster Carer Agency Fees,06-Oct,"3,136.25"
5511583,BHR Pharmaceuticals Ltd,(blank),(blank),Purchase General Office Equipment,06-Oct,881.94
5511584,NATIONAL FOSTERING AGENCY LTD,Childrens Services,Children's Services,Foster Carer Agency Fees,06-Oct,"3,073.53"
5511585,COVEBERRY LIMITED,Adult Social Care,Adults,Homecare Fees,08-Dec,"7,707.22"
5511587,COVEBERRY LIMITED,Adult Social Care,Adults,Homecare Fees,06-Oct,"2,356.00"
5511588,Memories Memorials Ltd,Operations and Neighbourhoods,Operations and Neighbourhoods,Building Works,06-Oct,540
5511589,COVEBERRY LIMITED,Adult Social Care,Adults,Homecare Fees,06-Oct,"7,458.60"
5511590,ARCO LIMITED,Adult Social Care,Adults,Protective Clothing,09-Oct,650.1
5511592,NATIONAL FOSTERING AGENCY LTD,Childrens Services,Children's Services,Foster Carer Agency Fees,06-Oct,"3,073.53"
5511597,INSPIRE COMMUNITY SERVICES LIMITED,Childrens Services,Children's Services,Living With Formal Support,06-Oct,"4,829.49"
5511597,INSPIRE COMMUNITY SERVICES LIMITED,Childrens Services,Children's Services,Semi independent - Weekly Living Allowances,06-Oct,297.6
5511601,INSPIRE COMMUNITY SERVICES LIMITED,Childrens Services,Children's Services,Living With Formal Support,06-Oct,"4,829.49"
5511601,INSPIRE COMMUNITY SERVICES LIMITED,Childrens Services,Children's Services,Semi independent - Weekly Living Allowances,06-Oct,297.6
5511602,INSPIRE COMMUNITY SERVICES LIMITED,Childrens Services,Children's Services,Living With Formal Support,06-Oct,"4,829.49"
5511602,INSPIRE COMMUNITY SERVICES LIMITED,Childrens Services,Children's Services,Semi independent - Weekly Living Allowances,06-Oct,297.6
5511604,INSPIRE COMMUNITY SERVICES LIMITED,Childrens Services,Children's Services,Living With Formal Support,06-Oct,"4,829.49"
5511604,INSPIRE COMMUNITY SERVICES LIMITED,Childrens Services,Children's Services,Semi independent - Weekly Living Allowances,06-Oct,297.6
5511609,Leeds Beckett University,Childrens Services,Children's Services,University Accomodation,06-Oct,"1,197.07"
5511613,ANGLIA DNA SERVICES LTD,Childrens Services,Children's Services,Professional Services,06-Oct,735.25
5511614,Optelec LTD,Adult Social Care,Adults,IT Equipment,06-Oct,"1,599.20"
5511615,Redacted Supplier,(blank),(blank),Event Related Activity,06-Oct,"2,250.00"
5511623,Anglian Water Business (National) t/a Wave Utilities,Place,Growth,Water (Metered and Rates),06-Oct,643.99
5511624,Hoarders Helping Hoarders,Quality and Safeguarding,Quality and Safeguarding,Training Course Costs,06-Oct,540
5511625,ECLIPSE GEOSPATIAL LTD,Hosted Services,Hosted Services,Professional Services,06-Oct,"1,456.73"
5511627,OVE ARUP & PARTNERS LTD,(blank),(blank),Consultancies,06-Oct,"8,000.00"
5511648,ASKEWS  AND HOLTS LIBRARY SERVICES LTD,Operations and Neighbourhoods,Operations and Neighbourhoods,Purchase Books,11-Oct,"1,536.18"
5511649,Randstad Solutions Ltd,Education,Children's Services,Agency Staff,11-Oct,643.6
5511651,Randstad Solutions Ltd,Education,Children's Services,Agency Staff,11-Oct,643.6
5511656,Home Grown Ginger,Operations and Neighbourhoods,Operations and Neighbourhoods,Professional Entertainment Services,11-Oct,"1,320.00"
5511659,CHILD ACTION NORTHWEST,Adult Social Care,Adults,Professional Services,13-Oct,"1,538.33"
5511660,Foster Careline Ltd,Childrens Services,Children's Services,Foster Carer Agency Fees,11-Oct,"3,531.34"
5511661,Foster Careline Ltd,Childrens Services,Children's Services,Foster Carer Agency Fees,11-Oct,"3,652.29"
5511662,MARTHALL TREE PRODUCTS LTD,Operations and Neighbourhoods,Operations and Neighbourhoods,General Materials,11-Oct,657.6
5511663,MARTHALL TREE PRODUCTS LTD,Operations and Neighbourhoods,Operations and Neighbourhoods,General Materials,11-Oct,"2,439.75"
5511664,MARTHALL TREE PRODUCTS LTD,Operations and Neighbourhoods,Operations and Neighbourhoods,General Materials,11-Oct,670.5
5511669,FRESH START INDEPENDENCE PROJECT LTD,Childrens Services,Children's Services,Living With Formal Support,12-Oct,"1,650.00"
5511670,FRESH START INDEPENDENCE PROJECT LTD,(blank),(blank),Living With Formal Support,11-Oct,"8,957.13"
5511670,FRESH START INDEPENDENCE PROJECT LTD,(blank),(blank),Semi independent - Weekly Living Allowances,11-Oct,364.8
5511671,CHILD ACTION NORTHWEST,Childrens Services,Children's Services,Professional Services,06-Nov,822.84
5511673,HOMES FOR LIFE LTD,Adult Social Care,Adults,Non-Authority Accommodation Rental,11-Oct,949.13
5511675,HOMES FOR LIFE LTD,Adult Social Care,Adults,Non-Authority Accommodation Rental,11-Oct,"1,112.33"
5511676,HUGH MASON PROPERTIES LIMITED,Adult Social Care,Adults,Non-Authority Accommodation Rental,11-Oct,"3,103.57"
5511678,WESLEY PROPERTIES (NORTHERN) LTD,Adult Social Care,Adults,Non-Authority Accommodation Rental,11-Oct,"1,601.98"
5511679,CROFT INVESTMENTS LTD,Adult Social Care,Adults,Non-Authority Accommodation Rental,10-Oct,"2,367.53"
5511681,STAMFORD PROPERTIES,Adult Social Care,Adults,Non-Authority Accommodation Rental,11-Oct,"1,190.83"
5511682,HAMILTON PROPERTIES,Adult Social Care,Adults,Non-Authority Accommodation Rental,10-Oct,"1,842.99"
5511687,NORTHERN PROPERTIES LTD,Adult Social Care,Adults,Non-Authority Accommodation Rental,11-Oct,"2,372.55"
5511689,HUGH MASON PROPERTIES LIMITED,Adult Social Care,Adults,Non-Authority Accommodation Rental,11-Oct,"2,987.84"
5511692,HOMES FOR LIFE LTD,Adult Social Care,Adults,Non-Authority Accommodation Rental,11-Oct,"1,077.99"
5511694,HOMES FOR LIFE LTD,Adult Social Care,Adults,Non-Authority Accommodation Rental,11-Oct,"1,077.99"
5511697,HOMES FOR LIFE LTD,Adult Social Care,Adults,Non-Authority Accommodation Rental,11-Oct,978.33
5511698,HUGH MASON PROPERTIES LIMITED,Adult Social Care,Adults,Non-Authority Accommodation Rental,11-Oct,"2,991.86"
5511701,HOMES FOR LIFE LTD,Adult Social Care,Adults,Non-Authority Accommodation Rental,11-Oct,"49,146.56"
5511825,ORACLE CARE LTD,Childrens Services,Children's Services,Childrens Homes Outside Local Authority Fees,12-Oct,"3,487.25"
5511836,Xoom X Ltd,Childrens Services,Children's Services,Hired Transport,12-Oct,580.4
5511841,Inicio Group Ltd,Childrens Services,Children's Services,Living With Formal Support,06-Oct,"1,465.41"
5511841,Inicio Group Ltd,(blank),(blank),Living With Formal Support,06-Oct,"2,747.66"
5511851,Identity Care Housing Ltd,(blank),(blank),Living With Formal Support,11-Oct,"6,461.40"
5511860,PHS GROUP PLC,Place,Growth,Personal Hygiene Costs,11-Oct,769.12
5511862,PHS GROUP PLC,Place,Growth,Personal Hygiene Costs,16-Oct,769.12
5511864,PHS GROUP PLC,Place,Growth,Personal Hygiene Costs,16-Oct,769.12
5511867,PHS GROUP PLC,Place,Growth,Personal Hygiene Costs,16-Oct,805.08
5511868,PHS GROUP PLC,Place,Growth,Personal Hygiene Costs,16-Oct,769.12
5511872,Horizon Supported accommodation Ltd (formerly Key 2 Futures),(blank),(blank),Living With Formal Support,11-Oct,"19,814.27"
5511878,NACD LTD,Operations and Neighbourhoods,Operations and Neighbourhoods,Professional Services,11-Oct,"1,981.00"
5511881,PHS GROUP PLC,Place,Growth,Personal Hygiene Costs,16-Oct,769.12
5511884,CARTER BROWN - THE EXPERT SERVICE LIMITED,Childrens Services,Children's Services,Professional Child Services,11-Oct,"2,058.30"
5511887,Exclusec Security Solutions Ltd,Operations and Neighbourhoods,Operations and Neighbourhoods,Security Services,11-Oct,"24,576.00"
5511890,NPOWER LIMITED,Adult Social Care,Adults,Electricity,11-Oct,"1,314.13"
5511891,Constellia Public Ltd,(blank),(blank),Professional Consultancy Services,11-Oct,"54,457.14"
5511893,Zeno Ltd,Adult Social Care,Adults,Homecare Fees,11-Oct,"11,523.88"
5511896,CHELSEA AND WESTMINSTER HOSPITAL NHS FOUNDATION TRUST,(blank),(blank),Professional Services,11-Oct,579.83
5511898,LDM UK Ltd,Policy and Communications,Governance,Printing And Stationery,11-Oct,"7,250.00"
5511918,SARABEC LIMITED,Adult Social Care,Adults,IT Equipment,12-Oct,567.67
5511931,Cheshire Pension Fund,Corporate Costs,Corporate Costs,Professional Services,27-Oct,"4,419.19"
5511941,Redacted Supplier,Education,Children's Services,Independent School Fees,12-Oct,"9,381.89"
5511942,Oxford Computer Consultants Limited,People and Workforce Development,Governance,Computer Software,12-Oct,"15,599.40"
5511945,Oxford Computer Consultants Limited,People and Workforce Development,Governance,Computer Software,12-Oct,"1,336.00"
5511950,Oxford Computer Consultants Limited,People and Workforce Development,Governance,Computer Software,12-Oct,"18,240.00"
5511951,KEYS PCE LTD,Education,Children's Services,Independent School Fees,12-Oct,"11,160.00"
5511953,KEYS PCE LTD,Education,Children's Services,Independent School Fees,12-Oct,"20,925.00"
5511956,KEYS PCE LTD,Education,Children's Services,Independent School Fees,12-Oct,"9,207.00"
5511957,KEYS PCE LTD,Education,Children's Services,Independent School Fees,12-Oct,"20,925.00"
5511959,TREASURED MEMORIES LTD,Operations and Neighbourhoods,Operations and Neighbourhoods,Plaques,12-Oct,789.3
5511960,Redacted Supplier,Corporate Costs,Corporate Costs,Event Related Activity,12-Oct,"1,571.50"
5511971,PAYPARTNERS LTD (MONTHLY),Childrens Services,Children's Services,Direct Payments,12-Oct,744.08
5511972,Kuiper Industries Ltd,Hosted Services,Hosted Services,Computer Software Maintenance Costs,12-Oct,845.4
5511979,CITY CARE SOLUTIONS LTD,Adult Social Care,Adults,Homecare Fees,12-Oct,"9,115.08"
5511980,Vita Liverpool Operating Company Limited t/a Vita Student,Childrens Services,Children's Services,University Accomodation,12-Oct,"8,322.30"
5511983,Imail Comms Limited,Exchequer,Governance,Printing And Stationery,12-Oct,"3,342.27"
5511984,SURECARE TAMESIDE & OLDHAM,Adult Social Care,Adults,Homecare Fees,12-Oct,"5,424.25"
5511996,TEAM NETSOL LTD,Exchequer,Governance,Computer Software Maintenance Costs,12-Oct,"1,936.51"
5512005,Market Curators,(blank),(blank),Miscellaneous Insurance,12-Oct,"5,407.50"
5512006,Timeout Childrens Homes Ltd,Childrens Services,Children's Services,Childrens Homes Outside Local Authority Fees,12-Oct,"23,327.50"
5512007,STOCKPORT CP  SOCIETY,Adult Social Care,Adults,Day Care Fees,12-Oct,"2,793.75"
5512010,NLA Media Access Limited,Policy and Communications,Governance,"Marketing, Publicity and Recruitment",12-Oct,"3,975.00"
5512047,Redacted Supplier,Education,Children's Services,Independent School Fees,13-Oct,"21,695.00"
5512048,Redacted Supplier,Education,Children's Services,Independent School Fees,13-Oct,"21,695.00"
5512050,Complex Care Professionals Ltd,Adult Social Care,Adults,Homecare Fees,04-Oct,"1,687.90"
5512051,Redacted Supplier,Education,Children's Services,Independent School Fees,13-Oct,"21,695.00"
5512075,MARTHALL TREE PRODUCTS LTD,Operations and Neighbourhoods,Operations and Neighbourhoods,General Materials,13-Oct,510
5512076,PeopleScout Limited,People and Workforce Development,Governance,Project Expenditure Home Office,13-Oct,"1,640.00"
5512080,PROFILE SECURITY SERVICES LIMITED,Operations and Neighbourhoods,Operations and Neighbourhoods,Security Services,13-Oct,"6,697.86"
5512082,SMS Coaching LTD,Education,Children's Services,Independent School Fees,13-Oct,"47,285.00"
5512083,CARE HAVEN UK LTD T/A PENARTH GROUP,Education,Children's Services,Independent School Fees,13-Oct,"16,442.25"
5512084,GRANART LIMITED,Operations and Neighbourhoods,Operations and Neighbourhoods,Plaques,13-Oct,"2,272.00"
5512085,iCare Solutions Manchester,Adult Social Care,Adults,Homecare Fees,13-Oct,"15,099.50"
5512086,Redacted Supplier,Education,Children's Services,Independent School Fees,13-Oct,"1,237.50"
5512091,Go To Investments Ltd t/a HALA GUEST HOUSE,(blank),(blank),#N/A,13-Oct,"11,302.00"
5512092,Go To Investments Ltd t/a HALA GUEST HOUSE,(blank),(blank),#N/A,13-Oct,"11,927.00"
5512093,Go To Investments Ltd t/a HALA GUEST HOUSE,(blank),(blank),#N/A,13-Oct,"11,762.00"
5512095,Go To Investments Ltd t/a HALA GUEST HOUSE,(blank),(blank),#N/A,13-Oct,"12,332.00"
5512100,Complex Care Professionals Ltd,Adult Social Care,Adults,Homecare Fees,05-Oct,"1,519.00"
5512102,Complex Care Professionals Ltd,Adult Social Care,Adults,Homecare Fees,05-Oct,"1,457.82"
5512103,Complex Care Professionals Ltd,Adult Social Care,Adults,Homecare Fees,04-Oct,"1,461.96"
5512117,CITY LIFT SERVICES (NW) LTD,Adult Social Care,Adults,General Equipment Repair & Maintenance,13-Oct,"2,775.00"
5512127,STOCKPORT CP  SOCIETY,Adult Social Care,Adults,Day Care Fees,13-Oct,"1,430.08"
5512128,STOCKPORT CP  SOCIETY,Adult Social Care,Adults,Day Care Fees,13-Oct,"1,430.08"
5512132,Furniture Resource Centre Ltd,Operations and Neighbourhoods,Operations and Neighbourhoods,"Fixtures, Fittings & Furniture Purchase",13-Oct,679.69
5512136,CREATIVE SUPPORT LTD,Adult Social Care,Adults,Homecare Fees,04-Oct,593.6
5512141,CARE HAVEN UK LTD T/A PENARTH GROUP,Education,Children's Services,Independent School Fees,13-Oct,"13,811.49"
5512143,Redacted Supplier,Education,Children's Services,Post 16 FE College Fees,13-Oct,"6,219.00"
5512145,KILLGERM CHEMICALS LTD,Operations and Neighbourhoods,Operations and Neighbourhoods,General Equipment Purchase,13-Oct,782.64
5512146,BOOTS UK LTD,Population Health,Population Health,Local Enhanced Services,13-Oct,"2,362.11"
5512148,Redmore Environmental Ltd,Place,Growth,Miscellaneous Insurance,13-Oct,795
5512151,ROAD SAFETY SERVICES LTD,Operations and Neighbourhoods,Operations and Neighbourhoods,Professional Entertainment Services,13-Oct,"1,364.00"
5512156,Furniture Resource Centre Ltd,Operations and Neighbourhoods,Operations and Neighbourhoods,"Fixtures, Fittings & Furniture Purchase",13-Oct,628.78
5512161,Furniture Resource Centre Ltd,Operations and Neighbourhoods,Operations and Neighbourhoods,"Fixtures, Fittings & Furniture Purchase",13-Oct,628.78
5512165,COMFORT CALL LIMITED,Adult Social Care,Adults,Homecare Fees,04-Oct,"37,067.23"
5512166,CARELINE HOMECARE LTD,Adult Social Care,Adults,Homecare Fees,04-Oct,"32,035.19"
5512167,"Vivid Resourcing, a division of G2V Recruitment Group Ltd T/A Vivid Resourcing",Finance,Finance & IT,Agency Staff,13-Oct,"2,875.00"
5512168,Attenti Consulting,Childrens Services,Children's Services,Agency Staff,13-Oct,"5,400.00"
5512169,Attenti Consulting,Childrens Services,Children's Services,Agency Staff,13-Oct,"5,310.00"
5512170,Attenti Consulting,Childrens Services,Children's Services,Agency Staff,13-Oct,"2,160.00"
5512171,Attenti Consulting,Childrens Services,Children's Services,Agency Staff,13-Oct,"6,000.00"
5512172,Attenti Consulting,Childrens Services,Children's Services,Agency Staff,13-Oct,"4,800.00"
5512173,Attenti Consulting,Childrens Services,Children's Services,Agency Staff,13-Oct,"3,840.00"
5512174,Attenti Consulting,Childrens Services,Children's Services,Agency Staff,13-Oct,"3,840.00"
5512175,Attenti Consulting,Childrens Services,Children's Services,Agency Staff,13-Oct,"6,000.00"
5512176,FAMILY CARE FOSTERING LTD,Childrens Services,Children's Services,Foster Carer Agency Fees,13-Oct,"4,010.52"
5512177,Fairfield Care Services,Adult Social Care,Adults,Day Care Fees,13-Oct,"2,703.36"
5512191,Millbrook Healthcare Ltd,Adult Social Care,Adults,Joint Loans Store Fee,13-Oct,"104,557.16"
5512192,Millbrook Healthcare Ltd,Adult Social Care,Adults,Joint Loans Store Fee,13-Oct,"12,918.99"
5512194,FORBES SOLICITORS,Finance,Finance & IT,Public Liability Insurance,13-Oct,778.32
5512201,CREATIVE SUPPORT LTD,Adult Social Care,Adults,Residential Home Long Stay Fees,05-Oct,"1,123.44"
5512202,NEW IMAGE (PUBLIC RELATIONS) LTD,(blank),(blank),Professional Entertainment Services,13-Oct,"2,500.00"
5512203,KONICA MINOLTA BUSINESS SOLUTIONS (UK) LTD,Digital Tameside,Finance & IT,Printing And Stationery,13-Oct,"4,830.97"
5512204,Law Morgan Limited T/A Morgan Law,Finance,Finance & IT,Agency Staff,13-Oct,"4,984.90"
5512217,FOSTERING PEOPLE LTD,Childrens Services,Children's Services,Foster Carer Agency Fees,13-Oct,"4,277.10"
5512218,FOSTERING PEOPLE LTD,Childrens Services,Children's Services,Foster Carer Agency Fees,13-Oct,"4,031.10"
5512220,FOSTERING PEOPLE LTD,Childrens Services,Children's Services,Foster Carer Agency Fees,13-Oct,"3,987.30"
5512221,FOSTERING PEOPLE LTD,Childrens Services,Children's Services,Foster Carer Agency Fees,13-Oct,"3,987.30"
5512222,EMBLEM PRINT PRODUCTS LTD,Operations and Neighbourhoods,Operations and Neighbourhoods,General Materials,12-Oct,"1,451.52"
5512223,BEDSPACE RESOURCE LTD,Adult Social Care,Adults,Residential Home Long Stay Fees,13-Oct,"1,940.00"
5512237,FOSTER CARE ASSOCIATES LTD (FCA),Childrens Services,Children's Services,Foster Carer Agency Fees,13-Oct,"4,333.80"
5512238,FOSTER CARE ASSOCIATES LTD (FCA),Childrens Services,Children's Services,Foster Carer Agency Fees,13-Oct,"4,333.80"
5512241,CATHOLIC BLIND INSTITUTE,Education,Children's Services,Non-Maintained School Fees,13-Oct,"10,622.70"
5512242,FOSTER CARE ASSOCIATES LTD (FCA),Childrens Services,Children's Services,Foster Carer Agency Fees,13-Oct,"6,472.98"
5512243,FOSTER CARE ASSOCIATES LTD (FCA),Childrens Services,Children's Services,Foster Carer Agency Fees,13-Oct,"4,184.40"
5512245,FOSTER CARE ASSOCIATES LTD (FCA),Childrens Services,Children's Services,Foster Carer Agency Fees,13-Oct,"3,862.03"
5512246,FOSTER CARE ASSOCIATES LTD (FCA),Childrens Services,Children's Services,Foster Carer Agency Fees,13-Oct,"3,938.98"
5512248,FOSTER CARE ASSOCIATES LTD (FCA),Childrens Services,Children's Services,Foster Carer Agency Fees,13-Oct,"3,862.03"
5512250,AMAZON COM INT'L SALES INC.,Digital Tameside,Finance & IT,Mobile Telephones,13-Oct,582
5512262,INSPIREDSPACES TAMESIDE LTD,(blank),(blank),Security Services,10-Oct,"5,819.34"
5512269,Shield Support Hub Limited,Childrens Services,Children's Services,Living With Formal Support,13-Oct,"6,000.00"
5512269,Shield Support Hub Limited,Childrens Services,Children's Services,Semi independent - Weekly Living Allowances,13-Oct,201.6
5512275,Stannybrook Property Consultants Ltd,(blank),(blank),Fees,13-Oct,"1,500.00"
5512281,INSPIREDSPACES TAMESIDE LTD,Place,Growth,Building Repairs,17-Oct,"1,036.83"
5512287,TRANSPORT FOR GREATER MANCHESTER,Education,Children's Services,Bus Pass Fees,13-Oct,"37,794.69"
5512289,TURNING POINT SERVICES LIMITED,Adult Social Care,Adults,Homecare Fees,13-Oct,"220,708.91"
5512291,TURNING POINT SERVICES LIMITED,Adult Social Care,Adults,Homecare Fees,13-Oct,"220,708.91"
5512292,TURNING POINT SERVICES LIMITED,Adult Social Care,Adults,Homecare Fees,13-Oct,"220,708.91"
5512293,REGENDA LIMITED,Adult Social Care,Adults,Non-Authority Accommodation Rental,13-Oct,"19,034.12"
5512295,REGENDA LIMITED,Adult Social Care,Adults,Non-Authority Accommodation Rental,13-Oct,"2,287.31"
5512297,TURNING POINT SERVICES LIMITED,Adult Social Care,Adults,Homecare Fees,13-Oct,"220,708.91"
5512301,ROUTES HEALTHCARE (NORTH) LIMITED,Adult Social Care,Adults,Homecare Fees,13-Oct,"7,147.93"
5512308,RNIB Enterprises,Adult Social Care,Adults,IT Equipment,13-Oct,"2,190.00"
5512319,Three Angels Healthcare,Adult Social Care,Adults,Homecare Fees,13-Oct,"9,397.60"
5512327,TAMESIDE AND GLOSSOP INTEGRATED CARE NHS FOUNDATION TRUST,Adult Social Care,Adults,External Secondments,04-Oct,"4,165.96"
5512328,TAMESIDE AND GLOSSOP INTEGRATED CARE NHS FOUNDATION TRUST,Adult Social Care,Adults,External Secondments,04-Oct,"4,165.96"
5512365,Furniture Resource Centre Ltd,Operations and Neighbourhoods,Operations and Neighbourhoods,"Fixtures, Fittings & Furniture Purchase",13-Oct,734.02
5512373,SMI Group,Operations and Neighbourhoods,Operations and Neighbourhoods,Protective Clothing,13-Oct,578.7
5512381,COLOUR DATA UK LTD,Digital Tameside,Finance & IT,IT Equipment,13-Oct,747.95
5512393,Ocean View LTD,Childrens Services,Children's Services,Childrens Homes Outside Local Authority Fees,13-Oct,"16,400.00"
5512394,DIRECT CARE (TAMESIDE) LTD,Adult Social Care,Adults,Homecare Fees,06-Oct,"43,590.68"
5512397,RHOMBUS CARE GROUP LIMITED,Adult Social Care,Adults,Homecare Fees,13-Oct,"39,223.50"
5512398,CITY LIFT SERVICES (NW) LTD,Adult Social Care,Adults,General Equipment Repair & Maintenance,13-Oct,750
5512399,CAMPEY TURF CARE SYSTEMS,Operations and Neighbourhoods,Operations and Neighbourhoods,General Equipment Repair & Maintenance,13-Oct,688.48
5512400,XMA LIMITED,Digital Tameside,Finance & IT,IT Equipment,16-Oct,"61,861.00"
5512403,RHOMBUS CARE GROUP LIMITED,Adult Social Care,Adults,Homecare Fees,18-Oct,"12,324.60"
5512404,N.W.A Housing Ltd,(blank),(blank),#N/A,13-Oct,"14,229.60"
5512405,SUTCLIFFE PLAY LTD,Operations and Neighbourhoods,Operations and Neighbourhoods,General Materials,13-Oct,"3,626.00"
5512407,SECOND CHANCE HOUSING,Adult Social Care,Adults,Homecare Fees,13-Dec,"1,222.50"
5512412,CHILD ACTION NORTHWEST,Adult Social Care,Adults,Professional Services,13-Oct,"1,538.33"
5512415,CHILD ACTION NORTHWEST,Childrens Services,Children's Services,Professional Services,06-Nov,822.84
5512416,BEDSPACE RESOURCE LTD,Adult Social Care,Adults,Residential Home Long Stay Fees,13-Oct,"2,071.29"
5512423,BEDSPACE RESOURCE LTD,Adult Social Care,Adults,Residential Home Long Stay Fees,13-Oct,"1,940.00"
5512424,UK FOSTERING LTD,Childrens Services,Children's Services,Foster Carer Agency Fees,18-Oct,"3,347.69"
5512425,BEDSPACE RESOURCE LTD,Adult Social Care,Adults,Residential Home Long Stay Fees,13-Oct,"1,940.00"
5512428,BEDSPACE RESOURCE LTD,Adult Social Care,Adults,Residential Home Long Stay Fees,13-Oct,"1,500.00"
5512429,TURNING POINT SERVICES LIMITED,Adult Social Care,Adults,Homecare Fees,13-Oct,"220,708.91"
5512434,COVEBERRY LIMITED,Adult Social Care,Adults,Homecare Fees,08-Dec,"7,458.60"
5512436,COVEBERRY LIMITED,Adult Social Care,Adults,Homecare Fees,08-Dec,"2,356.00"
5512439,COVEBERRY LIMITED,Adult Social Care,Adults,Homecare Fees,08-Dec,"1,243.10"
5512443,COVEBERRY LIMITED,Adult Social Care,Adults,Homecare Fees,08-Dec,"2,280.00"
5512446,COVEBERRY LIMITED,Adult Social Care,Adults,Homecare Fees,08-Dec,"7,707.22"
5512447,COVEBERRY LIMITED,Adult Social Care,Adults,Homecare Fees,08-Dec,"2,356.00"
5512449,COVEBERRY LIMITED,Adult Social Care,Adults,Homecare Fees,08-Dec,"7,458.60"
5512450,COVEBERRY LIMITED,Adult Social Care,Adults,Homecare Fees,08-Dec,"2,280.00"
5512451,COVEBERRY LIMITED,Adult Social Care,Adults,Homecare Fees,08-Dec,"7,707.22"
5512487,Redacted Supplier,Education,Children's Services,Professional Services,18-Oct,"3,575.00"
5512489,Brook,Population Health,Population Health,Contributions,18-Oct,"1,366.26"
5512491,Global Grooves,(blank),(blank),Professional Entertainment Services,18-Oct,"7,000.00"
5512494,NEW BRIDGE HORIZONS,Adult Social Care,Adults,Day Care Fees,18-Oct,"1,104.60"
5512499,NEW BRIDGE HORIZONS,Adult Social Care,Adults,Day Care Fees,18-Oct,"2,301.80"
5512503,NEW BRIDGE HORIZONS,Adult Social Care,Adults,Day Care Fees,18-Oct,"1,774.29"
5512504,Imail Comms Limited,Education,Children's Services,Professional Services,18-Oct,"1,636.97"
5512506,NEW BRIDGE HORIZONS,Adult Social Care,Adults,Homecare Fees,18-Oct,"2,342.60"
5512509,NEW BRIDGE HORIZONS,Adult Social Care,Adults,Day Care Fees,18-Oct,"1,624.80"
5512515,CITY CARE SOLUTIONS LTD,Adult Social Care,Adults,Homecare Fees,18-Oct,"8,282.67"
5512524,DERBYSHIRE COUNTY COUNCIL,Education,Children's Services,Other Local Authorities Fees,02-Oct,"6,255.00"
5512527,Constellia Public Ltd,(blank),(blank),Professional Consultancy Services,18-Oct,"54,457.14"
5512530,Constellia Public Ltd,(blank),(blank),Professional Consultancy Services,18-Oct,"66,353.73"
5512536,Global Grooves,(blank),(blank),Professional Entertainment Services,18-Oct,"3,000.00"
5512537,Redacted Supplier,Adult Social Care,Adults,Day Care Fees,18-Oct,"1,344.00"
5512538,Global Grooves,Operations and Neighbourhoods,Operations and Neighbourhoods,Professional Entertainment Services,18-Oct,"1,000.00"
5512542,Pennine Medical Supplies Ltd T/A Pennine Workwear,Operations and Neighbourhoods,Operations and Neighbourhoods,Protective Clothing,18-Oct,"1,958.03"
5512543,STOCKPORT CP  SOCIETY,Adult Social Care,Adults,Day Care Fees,18-Oct,"1,481.13"
5512547,DESTIN SOLUTIONS LTD,Exchequer,Governance,Subscriptions,18-Oct,"5,000.00"
5512551,DOMAIN CARE NORTH WEST LTD,Adult Social Care,Adults,Day Care Fees,18-Oct,"2,002.74"
5512552,ASKEWS  AND HOLTS LIBRARY SERVICES LTD,Operations and Neighbourhoods,Operations and Neighbourhoods,Purchase Books,18-Oct,"2,671.04"
5512557,TELEFONICA O2 (UK) LTD,Digital Tameside,Finance & IT,Mobile Telephones,18-Oct,"12,606.30"
5512559,Pentest People Limited,Digital Tameside,Finance & IT,Security Services,18-Oct,"4,050.00"
5512560,NEW BRIDGE HORIZONS,Adult Social Care,Adults,Homecare Fees,18-Oct,"2,756.00"
5512561,NEW BRIDGE HORIZONS,Adult Social Care,Adults,Homecare Fees,18-Oct,689
5512562,FRESH START INDEPENDENCE PROJECT LTD,Childrens Services,Children's Services,Living With Formal Support,18-Oct,"1,650.00"
5512563,FRESH START INDEPENDENCE PROJECT LTD,(blank),(blank),Living With Formal Support,18-Oct,"1,650.00"
5512563,FRESH START INDEPENDENCE PROJECT LTD,(blank),(blank),Semi independent - Weekly Living Allowances,18-Oct,67.2
5512566,North West Leaving Care,Childrens Services,Children's Services,Living With Formal Support,18-Oct,"3,210.71"
5512567,North West Leaving Care,Childrens Services,Children's Services,Living With Formal Support,18-Oct,"3,210.71"
5512568,North West Leaving Care,Childrens Services,Children's Services,Living With Formal Support,18-Oct,"1,346.43"
5512571,N A Brown Ltd,Operations and Neighbourhoods,Operations and Neighbourhoods,General Materials,18-Oct,"1,785.24"
5512573,TAMESIDE AND GLOSSOP INTEGRATED CARE NHS FOUNDATION TRUST,Digital Tameside,Finance & IT,Professional Services,02-Oct,"5,302.15"
5512579,Richmond Fellowship,Adult Social Care,Adults,Residential Home Long Stay Fees,19-Oct,"4,200.00"
5512614,Furniture Resource Centre Ltd,Operations and Neighbourhoods,Operations and Neighbourhoods,"Fixtures, Fittings & Furniture Purchase",19-Oct,679.69
5512628,NPOWER LIMITED,Operations and Neighbourhoods,Operations and Neighbourhoods,Electricity,19-Oct,"147,159.17"
5512629,Richmond Fellowship,Adult Social Care,Adults,Residential Home Long Stay Fees,19-Oct,"6,438.68"
5512630,Richmond Fellowship,Adult Social Care,Adults,Residential Home Long Stay Fees,19-Oct,"6,438.68"
5512632,Richmond Fellowship,Adult Social Care,Adults,Residential Home Long Stay Fees,19-Oct,"8,048.35"
5512633,Richmond Fellowship,Adult Social Care,Adults,Residential Home Long Stay Fees,19-Oct,"6,438.68"
5512639,Vcare24 Ltd,Childrens Services,Children's Services,Professional Services,19-Oct,"1,497.60"
5512642,Redacted Supplier,Education,Children's Services,Independent School Fees,13-Oct,"17,253.98"
5512643,Redacted Supplier,Education,Children's Services,Independent School Fees,13-Oct,"12,000.64"
5512647,iCare Solutions Manchester,Adult Social Care,Adults,Homecare Fees,19-Oct,"15,075.13"
5512648,The Networking People (TNP) Ltd,Digital Tameside,Finance & IT,Network Maintenance/Rental,19-Oct,"23,680.79"
5512649,The Networking People (TNP) Ltd,GMPF (FX),GMPF (FX),Network Equipment/Setup,19-Oct,"10,892.60"
5512651,Attenti Consulting,Childrens Services,Children's Services,Agency Staff,19-Oct,"4,800.00"
5512652,Randstad Solutions Ltd,Education,Children's Services,Agency Staff,19-Oct,643.6
5512654,Randstad Solutions Ltd,Education,Children's Services,Agency Staff,19-Oct,643.6
5512656,Randstad Solutions Ltd,Education,Children's Services,Agency Staff,19-Oct,579.24
5512658,TELEFONICA O2 (UK) LTD,Digital Tameside,Finance & IT,Mobile Telephones,19-Oct,639
5512663,VIP-SYSTEM LIMITED,Operations and Neighbourhoods,Operations and Neighbourhoods,Taxi Lamination Fees,19-Oct,"4,113.45"
5512664,THE COPYRIGHT LICENSING AGENCY LTD,Corporate Costs,Corporate Costs,Licences,19-Oct,"10,415.12"
5512665,Attenti Consulting,Childrens Services,Children's Services,Agency Staff,19-Oct,"4,800.00"
5512667,JENOPTIK UK LIMITED,Operations and Neighbourhoods,Operations and Neighbourhoods,Fees,19-Oct,"1,358.00"
5512668,HECTARE 8 CONTRACTS LTD T/A COMPLETE WEED CONTROL (MANCHESTER),Operations and Neighbourhoods,Operations and Neighbourhoods,General Materials,19-Oct,"4,340.00"
5512670,ASSOCIATION OF DIRECTORS OF PUBLIC HEALTH,Population Health,Population Health,Contributions,19-Oct,"5,150.00"
5512671,HARDSCAPE PRODUCTS LTD,Engineers Client,Director of Place,Highway Construction,19-Oct,"14,587.34"
5512672,HARDSCAPE PRODUCTS LTD,Engineers Client,Director of Place,Highway Construction,19-Oct,"15,159.62"
5512674,Redacted Supplier,Education,Children's Services,Other Local Authorities Fees,19-Oct,"13,176.00"
5512678,Redacted Supplier,Education,Children's Services,Independent School Fees,19-Oct,"4,303.00"
5512679,Redacted Supplier,Education,Children's Services,Independent School Fees,19-Oct,"2,196.00"
5512680,SURECARE TAMESIDE & OLDHAM,Adult Social Care,Adults,Homecare Fees,19-Oct,"5,502.25"
5512686,Inspire Sports Coach Ltd,(blank),(blank),Community Based Activities,19-Oct,"1,180.00"
5512687,PROFILE SECURITY SERVICES LIMITED,Operations and Neighbourhoods,Operations and Neighbourhoods,Security Services,19-Oct,"4,535.83"
5512689,Inspire Sports Coach Ltd,(blank),(blank),Community Based Activities,19-Oct,"1,180.00"
5512690,Inspire Sports Coach Ltd,(blank),(blank),Community Based Activities,19-Oct,"1,180.00"
5512697,Pre Paid Financial Services,Exchequer,Governance,Fees,19-Oct,"1,341.50"
5512698,Bexley Beaumont,People and Workforce Development,Governance,Legal Fees,19-Oct,"4,650.00"
5512702,MATTHEWS ENVIRONMENTAL SOLUTIONS LTD,Operations and Neighbourhoods,Operations and Neighbourhoods,Building Works,03-Oct,"10,737.45"
5512714,PETERS LIMITED (PETERS BOOKSELLING SERVICES),Operations and Neighbourhoods,Operations and Neighbourhoods,Purchase Books,13-Oct,"5,305.17"
5512716,PETERS LIMITED (PETERS BOOKSELLING SERVICES),Education,Children's Services,Purchase Books,13-Oct,"1,969.94"
5512728,Hyde Accessible Transport Limited,Education,Children's Services,Transport Of Pupils,04-Oct,"1,350.00"
5512739,Hyde Accessible Transport Limited,Education,Children's Services,Transport Of Pupils,04-Oct,"2,250.00"
5512800,Hyde Accessible Transport Limited,Education,Children's Services,Transport Of Pupils,04-Oct,"2,760.00"
5512815,Hyde Accessible Transport Limited,Education,Children's Services,Transport Of Ola Pupils,04-Oct,"2,250.00"
5512822,Furniture Resource Centre Ltd,Operations and Neighbourhoods,Operations and Neighbourhoods,"Fixtures, Fittings & Furniture Purchase",20-Oct,650.88
5512825,Furniture Resource Centre Ltd,Operations and Neighbourhoods,Operations and Neighbourhoods,"Fixtures, Fittings & Furniture Purchase",20-Oct,"1,092.21"
5512830,Holden Knight Healthcare Temp Ltd,Childrens Services,Children's Services,Agency Staff,30-Oct,912
5512832,Furniture Resource Centre Ltd,Operations and Neighbourhoods,Operations and Neighbourhoods,"Fixtures, Fittings & Furniture Purchase",20-Oct,679.69
5512834,LONICERA RESOURCES LTD,Adult Social Care,Adults,Professional Services,20-Oct,"1,961.00"
5512836,LONICERA RESOURCES LTD,(blank),(blank),Professional Services,20-Oct,"3,886.00"
5512838,Exclusec Security Solutions Ltd,Operations and Neighbourhoods,Operations and Neighbourhoods,Security Services,04-Oct,"23,040.00"
5512839,BT GLOBAL SERVICES,Digital Tameside,Finance & IT,Telephone Landline Costs,20-Oct,"4,660.76"
5512846,Footsteps Psychology,Education,Children's Services,Professional Services,20-Oct,"3,300.00"
5512852,ORACLE CARE LTD,Childrens Services,Children's Services,Childrens Homes Outside Local Authority Fees,20-Oct,551.6
5512855,Prospero Group Limited,Childrens Services,Children's Services,Professional Medical Services,24-Nov,"2,010.00"
5512858,ALPHA BIOLABS,Childrens Services,Children's Services,Professional Medical Services,20-Oct,770
5512866,M20 Property LLP,Place,Growth,Fees,20-Oct,"1,200.00"
5512870,Redacted Supplier,(blank),(blank),Professional Photography Services,20-Oct,500
5512873,N.W.A Housing Ltd,(blank),(blank),#N/A,20-Oct,"14,703.92"
5512874,The Mount Guest House Limited,(blank),(blank),#N/A,05-Oct,"23,405.00"
5512876,The Mount Guest House Limited,(blank),(blank),#N/A,03-Oct,"24,225.00"
5512877,The Mount Guest House Limited,(blank),(blank),#N/A,03-Oct,"22,715.00"
5512878,The Mount Guest House Limited,(blank),(blank),#N/A,03-Oct,"21,975.00"
5512880,ALPHA BIOLABS,Childrens Services,Children's Services,Professional Medical Services,20-Oct,"1,228.90"
5512882,Attenti Consulting,Childrens Services,Children's Services,Agency Staff,20-Oct,"7,200.00"
5512883,Attenti Consulting,Childrens Services,Children's Services,Agency Staff,20-Oct,"4,800.00"
5512886,UNITED UTILITIES,Childrens Services,Children's Services,Water (Metered and Rates),20-Oct,675.09
5512891,UNITED UTILITIES,Childrens Services,Children's Services,Water (Metered and Rates),20-Oct,609.93
5512892,CIPFA BUSINESS LIMITED,Engineers Client,Director of Place,Survey/Surveyors Fees,20-Oct,"1,125.00"
5512893,S & S MARQUEES,(blank),(blank),Other Works,20-Oct,"1,720.50"
5512894,"Vivid Resourcing, a division of G2V Recruitment Group Ltd T/A Vivid Resourcing",Finance,Finance & IT,Agency Staff,20-Oct,"2,875.00"
5512897,Optima Health,People and Workforce Development,Governance,Fees,20-Oct,"7,664.95"
5512898,CARE NEEDS LTD,Adult Social Care,Adults,Homecare Fees,20-Oct,"8,385.00"
5512899,CARE NEEDS LTD,Adult Social Care,Adults,Homecare Fees,20-Oct,"8,580.00"
5512901,Imail Comms Limited,Exchequer,Governance,Printing And Stationery,20-Oct,"2,668.44"
5512902,BRG Interim Solutions Ltd t/a British Resourcing Group,Place,Growth,Agency Staff,02-Nov,"2,957.50"
5512903,Redacted Supplier,Childrens Services,Children's Services,Professional Consultancy Services,20-Oct,"1,672.95"
5512904,TONGUE TIED (MANCHESTER) LTD,Childrens Services,Children's Services,Professional Services,20-Oct,699
5512921,Creative Support Rents,Adult Social Care,Adults,Residential Home Long Stay Fees,30-Oct,"6,178.92"
5512923,Law Morgan Limited T/A Morgan Law,Finance,Finance & IT,Agency Staff,20-Oct,"4,984.90"
5512924,ULVERSCROFT LARGE PRINT  BOOKS LTD,Operations and Neighbourhoods,Operations and Neighbourhoods,Purchase Books,20-Oct,"1,352.73"
5512930,AUTISM INITIATIVES (UK),Adult Social Care,Adults,Residential Home Long Stay Fees,20-Oct,"1,781.92"
5512932,AUTISM INITIATIVES (UK),Adult Social Care,Adults,Residential Home Long Stay Fees,20-Oct,"3,074.56"
5512934,AUTISM INITIATIVES (UK),Adult Social Care,Adults,Residential Home Long Stay Fees,20-Oct,"1,076.80"
5512935,Furniture Resource Centre Ltd,Operations and Neighbourhoods,Operations and Neighbourhoods,"Fixtures, Fittings & Furniture Purchase",20-Oct,885.95
5512936,AUTISM INITIATIVES (UK),Adult Social Care,Adults,Homecare Fees,20-Oct,"3,074.56"
5512941,ARCO LIMITED,Adult Social Care,Adults,Protective Clothing,20-Oct,"1,379.40"
5512944,Furniture Resource Centre Ltd,Operations and Neighbourhoods,Operations and Neighbourhoods,"Fixtures, Fittings & Furniture Purchase",20-Oct,679.69
5512951,Furniture Resource Centre Ltd,Operations and Neighbourhoods,Operations and Neighbourhoods,"Fixtures, Fittings & Furniture Purchase",20-Oct,576.56
5512961,P MCGUINNESS & CO LTD,(blank),(blank),Engineers -External,20-Oct,"1,680.00"
5512967,P MCGUINNESS & CO LTD,(blank),(blank),Engineers -External,20-Oct,"2,428.00"
5512970,P MCGUINNESS & CO LTD,(blank),(blank),Engineers -External,20-Oct,590
5512973,K P DODD CONSTRUCTION LTD,Housing,Director of Place,Minor Works - Building,20-Oct,500
5512976,CITY LIFT SERVICES (NW) LTD,Adult Social Care,Adults,General Equipment Repair & Maintenance,20-Oct,"2,460.00"
5512981,MHR International UK Limited,People and Workforce Development,Governance,Labour Costs IT Services,20-Oct,"8,862.25"
5512982,MHR International UK Limited,People and Workforce Development,Governance,Labour Costs IT Services,20-Oct,"24,497.50"
5512983,Footsteps A Path To Change 08 Ltd,Childrens Services,Children's Services,Childrens Homes Outside Local Authority Fees,20-Oct,"20,509.60"
5512991,FOUNTAINS & FEATURES LIMITED,Operations and Neighbourhoods,Operations and Neighbourhoods,General Materials,20-Oct,"1,032.00"
5512995,ROUTES HEALTHCARE (NORTH) LIMITED,Adult Social Care,Adults,Homecare Fees,20-Oct,"7,375.69"
5512996,Paramount Children's Services,Childrens Services,Children's Services,Childrens Homes Outside Local Authority Fees,20-Oct,"27,835.71"
5512998,Northern Care Alliance NHS Foundation Trust,Hosted Services,Hosted Services,Professional Services,20-Oct,"8,822.17"
5512999,CARELINE HOMECARE LTD,Adult Social Care,Adults,Homecare Fees,12-Oct,"30,139.63"
5513000,TRAVELERS INSURANCE COMPANY LTD,Finance,Finance & IT,Public Liability Insurance,20-Oct,"20,602.00"
5513004,Evergreen Psychology Ltd t/a Hayley Armstrong,Education,Children's Services,Professional Services,20-Oct,"1,100.00"
5513008,ATHENA STRATEGY LIMITED,Quality and Safeguarding,Quality and Safeguarding,Professional Services,30-Oct,"9,500.00"
5513009,COMFORT CALL LIMITED,Adult Social Care,Adults,Homecare Fees,12-Oct,"39,029.73"
5513012,Redacted Supplier,Childrens Services,Children's Services,Professional Services,20-Oct,"2,567.00"
5513026,Complex Care Professionals Ltd,Adult Social Care,Adults,Homecare Fees,25-Oct,568.2
5513027,Complex Care Professionals Ltd,Adult Social Care,Adults,Homecare Fees,25-Oct,"1,398.40"
5513028,Complex Care Professionals Ltd,Adult Social Care,Adults,Homecare Fees,25-Oct,"1,748.00"
5513029,Complex Care Professionals Ltd,Adult Social Care,Adults,Homecare Fees,13-Nov,699.32
5513030,CFS CARE LIMITED,Childrens Services,Children's Services,Living With Formal Support,26-Oct,"5,502.86"
5513030,CFS CARE LIMITED,(blank),(blank),Semi independent - Weekly Living Allowances,26-Oct,268.8
5513031,CFS CARE LIMITED,Childrens Services,Children's Services,Living With Formal Support,25-Oct,"2,751.43"
5513031,CFS CARE LIMITED,(blank),(blank),Semi independent - Weekly Living Allowances,25-Oct,134.4
5513032,CFS CARE LIMITED,(blank),(blank),Living With Formal Support,20-Oct,"6,018.43"
5513032,CFS CARE LIMITED,(blank),(blank),Semi independent - Weekly Living Allowances,20-Oct,268.8
5513035,NPOWER LIMITED,Operations and Neighbourhoods,Operations and Neighbourhoods,Electricity,20-Oct,965
5513038,Avoira Limited,Digital Tameside,Finance & IT,Telephone Landline Costs,20-Oct,"5,829.60"
5513039,iCare Solutions Manchester,Adult Social Care,Adults,Homecare Fees,20-Oct,"16,037.13"
5513040,iCare Solutions Manchester,Adult Social Care,Adults,Homecare Fees,20-Oct,"15,494.38"
5513041,iCare Solutions Manchester,Adult Social Care,Adults,Homecare Fees,20-Oct,"15,938.00"
5513042,iCare Solutions Manchester,Adult Social Care,Adults,Homecare Fees,20-Oct,"16,131.38"
5513076,CARETECH COMMUNITY SERVICES LIMITED,Adult Social Care,Adults,Homecare Fees,26-Oct,"3,401.83"
5513077,Hyde Accessible Transport Limited,Education,Children's Services,Transport Of Pupils,04-Oct,"6,975.00"
5513084,K P DODD CONSTRUCTION LTD,Housing,Director of Place,Mandatory Adaptations Grant (DFG),03-Oct,"6,016.45"
5513085,HEXAGON CARE SERVICES LTD,Childrens Services,Children's Services,Childrens Homes Outside Local Authority Fees,25-Oct,"15,290.27"
5513086,Furniture Resource Centre Ltd,Operations and Neighbourhoods,Operations and Neighbourhoods,"Fixtures, Fittings & Furniture Purchase",20-Oct,805.07
5513087,K P DODD CONSTRUCTION LTD,Housing,Director of Place,Mandatory Adaptations Grant (DFG),03-Oct,"7,527.73"
5513089,Redacted Supplier,Education,Children's Services,Professional Services,20-Oct,"1,100.00"
5513091,HEXAGON CARE SERVICES LTD,Childrens Services,Children's Services,Childrens Homes Outside Local Authority Fees,20-Oct,"20,624.61"
5513092,HEXAGON CARE SERVICES LTD,Childrens Services,Children's Services,Childrens Homes Outside Local Authority Fees,20-Oct,"24,128.57"
5513095,Valour Private Ltd t/a Valour Healthcare Services,Adult Social Care,Adults,Homecare Fees,20-Oct,"5,235.75"
5513096,Valour Private Ltd t/a Valour Healthcare Services,Adult Social Care,Adults,Homecare Fees,20-Oct,"4,806.75"
5513098,HEXAGON CARE SERVICES LTD,Childrens Services,Children's Services,Childrens Homes Outside Local Authority Fees,20-Oct,"21,590.31"
5513101,VISION BEYOND AUTISM CIC,Education,Children's Services,Independent School Fees,20-Oct,"14,979.79"
5513103,TROJAN CONSULTANTS LTD,Exchequer,Governance,Licences,20-Oct,"18,701.00"
5513104,Precision Resource Group Ltd t/a Panoramic Associates,Education,Children's Services,Agency Staff,20-Oct,"2,350.00"
5513105,Evergreen Psychology Ltd t/a Hayley Armstrong,Education,Children's Services,Professional Services,20-Oct,"1,100.00"
5513106,The Sovereign Trust,Education,Children's Services,Other Local Authorities Fees,04-Oct,"2,371.05"
5513107,Redacted Supplier,Tameside Investment Partnership,Director of Place,Professional Services,06-Oct,"1,984.00"
5513108,Redacted Supplier,Tameside Investment Partnership,Director of Place,Professional Services,06-Oct,"3,630.00"
5513109,Redacted Supplier,Education,Children's Services,Independent School Fees,20-Oct,"24,467.31"
5513112,Redacted Supplier,Asset & Investment Partnership Management,Growth,PFI FM Fees and Insurance Costs,06-Oct,"8,000.00"
5513113,CGL Services,Population Health,Population Health,Professional Services,20-Oct,"247,416.67"
5513117,Smartway Health and Social Care Limited,Adult Social Care,Adults,Homecare Fees,06-Oct,"6,630.00"
5513119,Academy HQ cic,(blank),(blank),Community Based Activities,20-Oct,995
5513120,Academy HQ cic,(blank),(blank),Community Based Activities,20-Oct,"1,050.00"
5513121,Academy HQ cic,(blank),(blank),Community Based Activities,20-Oct,"1,050.00"
5513122,Attenti Consulting,Childrens Services,Children's Services,Agency Staff,24-Oct,"4,800.00"
5513123,SUTCLIFFE PLAY LTD,Operations and Neighbourhoods,Operations and Neighbourhoods,General Equipment Purchase,20-Oct,"3,626.00"
5513125,Attenti Consulting,Childrens Services,Children's Services,Agency Staff,24-Oct,"2,160.00"
5513127,Attenti Consulting,Childrens Services,Children's Services,Agency Staff,24-Oct,"1,080.00"
5513128,Mark Hancock Limited,Education,Children's Services,Professional Services,20-Oct,"1,100.00"
5513130,CITY LIFT SERVICES (NW) LTD,Housing,Director of Place,Minor Works - Building,25-Oct,900
5513132,STRUCTEC (NW) LTD,Housing,Director of Place,Mandatory Adaptations Grant (DFG),05-Oct,"6,778.17"
5513135,CFS CARE LIMITED,(blank),(blank),Living With Formal Support,20-Oct,"5,142.86"
5513135,CFS CARE LIMITED,(blank),(blank),Semi independent - Weekly Living Allowances,20-Oct,268.8
5513136,CFS CARE LIMITED,(blank),(blank),Living With Formal Support,20-Oct,"1,553.14"
5513136,CFS CARE LIMITED,(blank),(blank),Semi independent - Weekly Living Allowances,20-Oct,67.2
5513142,GLASDON UK LTD,Operations and Neighbourhoods,Operations and Neighbourhoods,General Materials,20-Oct,725.51
5513143,EXPERIAN LTD,GMPF (FX),GMPF (FX),IT Equipment,20-Oct,791.1
5513145,M NELSON & SON,Multiple Heads of Service,Multiple Strategic Directorates,CIS Labour Credits,24-Oct,-750
5513145,M NELSON & SON,Multiple Heads of Service,Multiple Strategic Directorates,CIS Labour Debits,24-Oct,750
5513145,M NELSON & SON,Operations and Neighbourhoods,Operations and Neighbourhoods,Building Works,24-Oct,"1,000.00"
5513146,M NELSON & SON,Multiple Heads of Service,Multiple Strategic Directorates,CIS Labour Credits,24-Oct,"-1,280.00"
5513146,M NELSON & SON,Multiple Heads of Service,Multiple Strategic Directorates,CIS Labour Debits,24-Oct,"1,280.00"
5513146,M NELSON & SON,Operations and Neighbourhoods,Operations and Neighbourhoods,Building Works,24-Oct,"1,520.00"
5513152,INSPIREDSPACES TAMESIDE LTD,Place,Growth,Fees,06-Oct,786.12
5513152,INSPIREDSPACES TAMESIDE LTD,Place,Growth,Minor Works - Building,06-Oct,"39,305.74"
5513164,Richmond Fellowship,Adult Social Care,Adults,Residential Home Long Stay Fees,25-Oct,"6,438.68"
5513178,Cromwood Housing Ltd,(blank),(blank),#N/A,04-Oct,"6,568.14"
5513182,Cromwood Housing Ltd,(blank),(blank),#N/A,04-Oct,"10,427.63"
5513191,Constellia Public Ltd,Place,Growth,Miscellaneous Insurance,25-Oct,"18,671.40"
5513194,National Youth Advocacy Service,Childrens Services,Children's Services,Professional Services,25-Oct,"4,166.66"
5513203,N.W.A Housing Ltd,(blank),(blank),#N/A,25-Oct,"13,933.15"
5513205,Vcare24 Ltd,Childrens Services,Children's Services,Professional Services,25-Oct,"1,003.20"
5513208,Complex Care Professionals Ltd,Adult Social Care,Adults,Homecare Fees,16-Oct,"1,793.64"
5513210,Claire Osbourne T/A Think Bricks Education,Education,Children's Services,Professional Services,25-Oct,"4,875.00"
5513212,ASKEWS  AND HOLTS LIBRARY SERVICES LTD,Operations and Neighbourhoods,Operations and Neighbourhoods,Purchase Books,25-Oct,"2,282.20"
5513213,Complex Care Professionals Ltd,Adult Social Care,Adults,Homecare Fees,16-Oct,"1,687.33"
5513216,TEAM VIEWER,Digital Tameside,Finance & IT,Computer Software,25-Oct,"7,053.00"
5513217,Complex Care Professionals Ltd,Adult Social Care,Adults,Homecare Fees,16-Oct,668.5
5513219,Zeno Ltd,Adult Social Care,Adults,Homecare Fees,25-Oct,"11,523.88"
5513220,Redacted Supplier,Education,Children's Services,Independent School Fees,25-Oct,"17,179.17"
5513221,KIRWIN MACLEAN ASSOCIATES,(blank),(blank),Training Course Costs,25-Oct,"2,000.00"
5513222,Redacted Supplier,Education,Children's Services,Independent School Fees,25-Oct,"15,804.84"
5513226,Redacted Supplier,Education,Children's Services,Independent School Fees,25-Oct,"17,179.17"
5513227,HOMESHINE CLEANERS LTD,Adult Social Care,Adults,Residential Home Short Stay Fees,05-Oct,750
5513228,Redacted Supplier,Childrens Services,Children's Services,Professional Consultancy Services,25-Oct,"1,948.40"
5513230,Reflexion Care Group Ltd T/A New Reflexions,Childrens Services,Children's Services,Childrens Homes Outside Local Authority Fees,25-Oct,"26,414.46"
5513232,National Youth Advocacy Service,Childrens Services,Children's Services,Professional Services,10-Nov,"3,333.34"
5513233,ANEW APPROACH COMMUNITY INTEREST COMPANY,Operations and Neighbourhoods,Operations and Neighbourhoods,"Marketing, Publicity and Recruitment",05-Oct,"68,033.50"
5513235,Complex Care Professionals Ltd,Adult Social Care,Adults,Homecare Fees,16-Oct,891.52
5513236,Complex Care Professionals Ltd,Adult Social Care,Adults,Homecare Fees,16-Oct,742.84
5513237,Complex Care Professionals Ltd,Adult Social Care,Adults,Homecare Fees,16-Oct,668.5
5513238,Complex Care Professionals Ltd,Adult Social Care,Adults,Homecare Fees,16-Oct,"1,687.33"
5513240,Complex Care Professionals Ltd,Adult Social Care,Adults,Homecare Fees,16-Oct,891.52
5513243,Complex Care Professionals Ltd,Adult Social Care,Adults,Homecare Fees,16-Oct,742.84
5513246,Trace Solutions Limited,Place,Growth,Professional Services,26-Oct,"1,492.50"
5513248,Complex Care Professionals Ltd,Adult Social Care,Adults,Homecare Fees,16-Oct,668.5
5513249,Reach Publishing Services Limited,Policy and Communications,Governance,"Marketing, Publicity and Recruitment",25-Oct,"16,900.00"
5513252,GREATER MANCHESTER COMBINED AUTHORITY,Hosted Services,Hosted Services,Indirect Employee Pay Expenditure,07-Nov,"54,923.00"
5513254,FRESH START INDEPENDENCE PROJECT LTD,Childrens Services,Children's Services,Living With Formal Support,25-Oct,"1,650.00"
5513255,SCAN COMPUTERS INTERNATIONAL LTD,Digital Tameside,Finance & IT,IT Equipment,25-Oct,"1,333.24"
5513256,FRESH START INDEPENDENCE PROJECT LTD,(blank),(blank),Living With Formal Support,25-Oct,"1,650.00"
5513256,FRESH START INDEPENDENCE PROJECT LTD,(blank),(blank),Semi independent - Weekly Living Allowances,25-Oct,67.2
5513257,TAMESIDE AND GLOSSOP INTEGRATED CARE NHS FOUNDATION TRUST,Digital Tameside,Finance & IT,Professional Services,05-Oct,"10,604.31"
5513259,FOUNTAINS & FEATURES LIMITED,(blank),(blank),Specialist Works,25-Oct,"42,470.00"
5513261,TURNING POINT,Adult Social Care,Adults,Residential Home Long Stay Fees,25-Oct,"2,536.80"
5513267,CITY CARE SOLUTIONS LTD,Adult Social Care,Adults,Homecare Fees,25-Oct,"8,240.42"
5513268,The Veterans Food Co,Operations and Neighbourhoods,Operations and Neighbourhoods,Food & Refreshments,25-Oct,"2,666.00"
5513293,NOMIX ENVIRO LTD,Operations and Neighbourhoods,Operations and Neighbourhoods,General Materials,26-Oct,"4,025.00"
5513302,PG FABRICATIONS,Multiple Heads of Service,Multiple Strategic Directorates,CIS Labour Credits,12-Oct,-434
5513302,PG FABRICATIONS,Multiple Heads of Service,Multiple Strategic Directorates,CIS Labour Debits,12-Oct,434
5513302,PG FABRICATIONS,Operations and Neighbourhoods,Operations and Neighbourhoods,General Materials,12-Oct,"2,170.00"
5513305,AVC WISE LTD,People and Workforce Development,Governance,Contributions,18-Oct,"1,780.23"
5513306,SARABEC LIMITED,Adult Social Care,Adults,IT Equipment,26-Oct,"1,510.74"
5513307,Rivergate Developments Ltd,Housing,Director of Place,Mandatory Adaptations Grant (DFG),02-Oct,"6,721.44"
5513310,The Mount Guest House Limited,(blank),(blank),#N/A,06-Oct,"24,345.00"
5513311,Odlings Ltd t/a The Columbaria Company,Operations and Neighbourhoods,Operations and Neighbourhoods,General Equipment Purchase,02-Oct,540
5513312,Redacted Supplier,Education,Children's Services,Professional Services,10-Oct,550
5513313,Redacted Supplier,Education,Children's Services,Professional Services,26-Oct,"5,225.00"
5513314,Redacted Supplier,Education,Children's Services,Professional Services,10-Oct,550
5513315,BACK CARE SOLUTIONS LTD,Childrens Services,Children's Services,General Equipment Purchase,26-Oct,985
5513315,BACK CARE SOLUTIONS LTD,Childrens Services,Children's Services,IT Equipment,26-Oct,128.09
5513317,Furniture Resource Centre Ltd,Operations and Neighbourhoods,Operations and Neighbourhoods,"Fixtures, Fittings & Furniture Purchase",26-Oct,776.08
5513318,KEYS PCE LTD,Education,Children's Services,Independent School Fees,26-Oct,"4,830.44"
5513320,APS Group,Operations and Neighbourhoods,Operations and Neighbourhoods,Professional Medical Services,26-Oct,714.67
5513321,Furniture Resource Centre Ltd,Operations and Neighbourhoods,Operations and Neighbourhoods,"Fixtures, Fittings & Furniture Purchase",26-Oct,679.69
5513322,Furniture Resource Centre Ltd,Operations and Neighbourhoods,Operations and Neighbourhoods,"Fixtures, Fittings & Furniture Purchase",26-Oct,"1,011.15"
5513326,Richmond Fellowship,Adult Social Care,Adults,Residential Home Long Stay Fees,26-Oct,"1,971.19"
5513328,Richmond Fellowship,Adult Social Care,Adults,Residential Home Long Stay Fees,26-Oct,"1,971.18"
5513372,iCare Solutions Manchester,Adult Social Care,Adults,Homecare Fees,27-Oct,"14,868.75"
5513373,West Yorkshire Support,Adult Social Care,Adults,Homecare Fees,27-Oct,"25,818.35"
5513374,BRG Interim Solutions Ltd t/a British Resourcing Group,Place,Growth,Agency Staff,02-Nov,"2,600.00"
5513376,ABOUT TAMESIDE,Policy and Communications,Governance,"Marketing, Publicity and Recruitment",04-Oct,590
5513378,TAMESIDE SPORTS TRUST,Adult Social Care,Adults,Professional Services,06-Oct,"124,103.50"
5513379,CIVICA UK LIMITED,Operations and Neighbourhoods,Operations and Neighbourhoods,Computer Software,27-Oct,"41,000.00"
5513395,INSPIREDSPACES TAMESIDE LTD,Place,Growth,Building Repairs,25-Oct,"12,947.27"
5513395,INSPIREDSPACES TAMESIDE LTD,Place,Growth,Fees,25-Oct,258.95
5513396,HC Assessment Ltd,Adult Social Care,Adults,Professional Services,27-Oct,"2,506.95"
5513397,INSPIREDSPACES TAMESIDE LTD,(blank),(blank),Refurbish Accommodation Works,05-Oct,"106,594.52"
5513399,INSPIREDSPACES TAMESIDE LTD,(blank),(blank),Fees,05-Oct,"24,523.93"
5513401,INSPIREDSPACES TAMESIDE LTD,(blank),(blank),Fees,05-Oct,"2,854.15"
5513403,INSPIREDSPACES TAMESIDE LTD,Asset & Investment Partnership Management,Growth,PFI FM Fees and Insurance Costs,05-Oct,567.76
5513405,INSPIREDSPACES TAMESIDE LTD,(blank),(blank),Fees,05-Oct,987.43
5513408,INSPIREDSPACES TAMESIDE LTD,(blank),(blank),Fees,05-Oct,"2,484.17"
5513410,INSPIREDSPACES TAMESIDE LTD,Asset & Investment Partnership Management,Growth,PFI FM Fees and Insurance Costs,05-Oct,"1,657.89"
5513413,AFFINITY WORKFORCE SOLUTIONS LIMITED T/A Monarch Education,Education,Children's Services,Independent School Fees,27-Oct,630
5513415,Imail Comms Limited,Exchequer,Governance,Printing And Stationery,27-Oct,"5,068.09"
5513416,INSPIREDSPACES TAMESIDE LTD,(blank),(blank),External  Consultants,11-Oct,"1,722.73"
5513420,STEP AHEAD RESOURCE SERVICES,(blank),(blank),Living With Formal Support,06-Oct,"1,300.00"
5513422,National Youth Advocacy Service,Childrens Services,Children's Services,Professional Services,27-Oct,"3,333.34"
5513423,National Youth Advocacy Service,Childrens Services,Children's Services,Professional Services,27-Oct,"3,333.34"
5513424,STEP AHEAD RESOURCE SERVICES,Childrens Services,Children's Services,Living With Formal Support,06-Oct,928.57
5513424,STEP AHEAD RESOURCE SERVICES,(blank),(blank),Living With Formal Support,06-Oct,371.43
5513426,STEP AHEAD RESOURCE SERVICES,Childrens Services,Children's Services,Living With Formal Support,09-Oct,"1,300.00"
5513428,STEP AHEAD RESOURCE SERVICES,(blank),(blank),Living With Formal Support,06-Oct,"1,300.00"
5513429,Attenti Consulting,Childrens Services,Children's Services,Agency Staff,27-Oct,"2,700.00"
5513430,STEP AHEAD RESOURCE SERVICES,(blank),(blank),Living With Formal Support,20-Oct,"1,300.00"
5513431,Attenti Consulting,Childrens Services,Children's Services,Agency Staff,27-Oct,"4,800.00"
5513432,Attenti Consulting,Childrens Services,Children's Services,Agency Staff,27-Oct,"6,000.00"
5513433,Attenti Consulting,Childrens Services,Children's Services,Agency Staff,27-Oct,"4,800.00"
5513435,STEP AHEAD RESOURCE SERVICES,(blank),(blank),Living With Formal Support,09-Oct,"1,300.00"
5513444,Northern Community Pathways Limited,(blank),(blank),Living With Formal Support,30-Oct,"5,100.00"
5513444,Northern Community Pathways Limited,(blank),(blank),Semi independent - Weekly Living Allowances,30-Oct,268.8
5513448,Smartway Health and Social Care Limited,Adult Social Care,Adults,Homecare Fees,06-Oct,"6,298.50"
5513452,ALPHA BIOLABS,Childrens Services,Children's Services,Professional Medical Services,27-Oct,535
5513454,Redacted Supplier,Childrens Services,Children's Services,Childrens Homes Outside Local Authority Fees,27-Oct,"20,571.30"
5513456,Redacted Supplier,Childrens Services,Children's Services,Childrens Homes Outside Local Authority Fees,27-Oct,"20,571.30"
5513458,Redacted Supplier,Adult Social Care,Adults,Homecare Fees,27-Oct,"4,229.10"
5513465,Go To Investments Ltd t/a HALA GUEST HOUSE,(blank),(blank),#N/A,27-Oct,"11,572.00"
5513466,Go To Investments Ltd t/a HALA GUEST HOUSE,(blank),(blank),#N/A,27-Oct,"11,152.00"
5513470,Social Work Solutions NW Limited,Adult Social Care,Adults,Professional Services,06-Oct,556.75
5513471,Bloom Procurement Services Limited,Place,Growth,Professional Services,11-Oct,"2,631.58"
5513472,YOUNG PEOPLE FIRST LIMITED,(blank),(blank),Living With Formal Support,27-Oct,"6,285.71"
5513472,YOUNG PEOPLE FIRST LIMITED,(blank),(blank),Semi independent - Weekly Living Allowances,27-Oct,201.6
5513473,Aitkens Sportsturf Ltd,Operations and Neighbourhoods,Operations and Neighbourhoods,General Materials,27-Oct,"2,109.00"
5513474,"Vivid Resourcing, a division of G2V Recruitment Group Ltd T/A Vivid Resourcing",Finance,Finance & IT,Agency Staff,27-Oct,"2,875.00"
5513475,SURECARE TAMESIDE & OLDHAM,Adult Social Care,Adults,Homecare Fees,27-Oct,"5,297.50"
5513478,Precision Resource Group Ltd t/a Panoramic Associates,Education,Children's Services,Agency Staff,27-Oct,"2,350.00"
5513481,Key 2 Moving on Limited,(blank),(blank),Living With Formal Support,27-Oct,"17,975.00"
5513482,TAMESIDE AND GLOSSOP INTEGRATED CARE NHS FOUNDATION TRUST,Adult Social Care,Adults,Agency Staff,16-Oct,"10,587.93"
5513484,PERSON CENTRED CARE SERVICES LIMITED,Adult Social Care,Adults,Homecare Fees,06-Oct,"7,363.79"
5513485,CITY LIFT SERVICES (NW) LTD,Housing,Director of Place,Minor Works - Building,27-Oct,"1,050.00"
5513487,INSPIREDSPACES TAMESIDE LTD,Place,Growth,Building Repairs,26-Oct,"10,560.26"
5513487,INSPIREDSPACES TAMESIDE LTD,Place,Growth,Fees,26-Oct,211.21
5513490,ORANGE PSYCHOLOGY LTD,Education,Children's Services,Professional Services,27-Oct,"7,150.00"
5513494,The Purple Company (UK) Ltd,People and Workforce Development,Governance,Printing And Stationery,27-Oct,"1,250.00"
5513499,DIRECT CARE (TAMESIDE) LTD,Adult Social Care,Adults,Homecare Fees,18-Oct,"41,832.52"
5513502,Oxford Innovation LTD - ASHTON OLD BATHS,(blank),(blank),Electricity,27-Oct,"6,397.98"
5513506,BRANAS ISAF LTD,Childrens Services,Children's Services,Childrens Homes Outside Local Authority Fees,27-Oct,"29,450.00"
5513512,MOSSCARE HOUSING LTD,Adult Social Care,Adults,Non-Authority Accommodation Rental,31-Oct,"34,539.66"
5513551,Sandcastle Care LTD,Childrens Services,Children's Services,Childrens Homes Outside Local Authority Fees,27-Oct,"27,568.46"
5513554,Sandcastle Care LTD,Childrens Services,Children's Services,Childrens Homes Outside Local Authority Fees,27-Oct,"27,568.46"
5513571,TPR Care Services Ltd,Childrens Services,Children's Services,Living With Formal Support,02-Oct,"1,244.20"
5513571,TPR Care Services Ltd,(blank),(blank),Living With Formal Support,02-Oct,177.74
5513579,JACKSON & TAYLOR LTD,Housing,Director of Place,Mandatory Adaptations Grant (DFG),06-Oct,"5,330.72"
5513580,JACKSON & TAYLOR LTD,Housing,Director of Place,Mandatory Adaptations Grant (DFG),06-Oct,"6,266.45"
5513581,JACKSON & TAYLOR LTD,Housing,Director of Place,Mandatory Adaptations Grant (DFG),06-Oct,"5,290.89"
5513582,JACKSON & TAYLOR LTD,Housing,Director of Place,Mandatory Adaptations Grant (DFG),06-Oct,"6,298.08"
5513583,Northern Community Pathways Limited,Childrens Services,Children's Services,Living With Formal Support,02-Nov,"2,800.00"
5513584,Northern Community Pathways Limited,Childrens Services,Children's Services,Living With Formal Support,30-Oct,"2,762.64"
5513585,Kayes Wholesale Ltd T/A Kayes of Cardiff,Operations and Neighbourhoods,Operations and Neighbourhoods,General Materials,27-Oct,511.1
5513589,OCTAGON CARE LTD,Childrens Services,Children's Services,Childrens Homes Outside Local Authority Fees,27-Oct,"23,028.57"
5513592,Olive Branch Fostering LTD,Childrens Services,Children's Services,Foster Carer Agency Fees,30-Oct,"2,568.40"
5513593,Olive Branch Fostering LTD,Childrens Services,Children's Services,Foster Carer Agency Fees,30-Oct,"1,219.99"
5513594,Olive Branch Fostering LTD,Childrens Services,Children's Services,Foster Carer Agency Fees,30-Oct,"3,169.29"
5513595,Olive Branch Fostering LTD,Childrens Services,Children's Services,Foster Carer Agency Fees,02-Nov,"2,995.50"
5513596,Olive Branch Fostering LTD,Childrens Services,Children's Services,Foster Carer Agency Fees,30-Oct,"3,182.06"
5513597,Olive Branch Fostering LTD,Childrens Services,Children's Services,Residential Home Long Stay Fees,30-Oct,"3,182.06"
5513598,Olive Branch Fostering LTD,Childrens Services,Children's Services,Foster Carer Agency Fees,30-Oct,"3,214.20"
5513603,Headsets4Business Limited,Digital Tameside,Finance & IT,IT Equipment,06-Oct,"5,420.00"
5513605,K P DODD CONSTRUCTION LTD,Housing,Director of Place,Mandatory Adaptations Grant (DFG),11-Oct,"1,850.00"
5513608,K P DODD CONSTRUCTION LTD,Housing,Director of Place,Mandatory Adaptations Grant (DFG),02-Oct,"7,244.22"
5513609,Redacted Supplier,Childrens Services,Children's Services,Childrens Homes Outside Local Authority Fees,30-Oct,"18,000.00"
5513610,Redacted Supplier,Childrens Services,Children's Services,Childrens Homes Outside Local Authority Fees,30-Oct,"13,928.57"
5513611,Redacted Supplier,Childrens Services,Children's Services,Childrens Homes Outside Local Authority Fees,27-Oct,"20,814.33"
5513612,K P DODD CONSTRUCTION LTD,Housing,Director of Place,Mandatory Adaptations Grant (DFG),11-Oct,"4,175.56"
5513613,Redacted Supplier,Childrens Services,Children's Services,Childrens Homes Outside Local Authority Fees,30-Oct,"20,142.90"
5513614,Redacted Supplier,Childrens Services,Children's Services,Childrens Homes Outside Local Authority Fees,27-Oct,"14,392.86"
5513615,ATLAS TRADING GROUP LTD,Operations and Neighbourhoods,Operations and Neighbourhoods,General Equipment Purchase,09-Oct,732.24
5513616,GRIP STEEL  REINFORCEMENTS LTD,Operations and Neighbourhoods,Operations and Neighbourhoods,General Equipment Purchase,11-Oct,980
5513617,LEEDS CITY COUNCIL,Childrens Services,Children's Services,Professional Services,12-Oct,"24,000.00"
5513618,K P DODD CONSTRUCTION LTD,Housing,Director of Place,Mandatory Adaptations Grant (DFG),03-Oct,"1,528.96"
5513619,Redacted Supplier,Childrens Services,Children's Services,Childrens Homes Outside Local Authority Fees,27-Oct,"33,480.00"
5513620,Redacted Supplier,Childrens Services,Children's Services,Childrens Homes Outside Local Authority Fees,27-Oct,"15,660.54"
5513621,Redacted Supplier,Childrens Services,Children's Services,Childrens Homes Outside Local Authority Fees,15-Nov,"26,350.00"
5513622,Redacted Supplier,Childrens Services,Children's Services,Childrens Homes Outside Local Authority Fees,27-Oct,"26,350.00"
5513623,Redacted Supplier,Childrens Services,Children's Services,Childrens Homes Outside Local Authority Fees,27-Oct,"17,692.01"
5513624,Redacted Supplier,Childrens Services,Children's Services,Childrens Homes Outside Local Authority Fees,27-Oct,"21,921.43"
5513627,APOLLO HOME HEALTHCARE LTD,Childrens Services,Children's Services,Homecare Fees,05-Oct,552.72
5513629,Brook,Population Health,Population Health,Contributions,03-Oct,791.66
5513630,Rivergate Developments Ltd,Housing,Director of Place,Mandatory Adaptations Grant (DFG),06-Oct,"1,615.00"
5513634,DIRECT HEALTHCARE GROUP LTD,Housing,Director of Place,Mandatory Adaptations Grant (DFG),27-Oct,"5,019.00"
5513635,DIRECT HEALTHCARE GROUP LTD,Housing,Director of Place,Mandatory Adaptations Grant (DFG),27-Oct,"5,477.00"
5513638,Residential Child Care Community (North West) Ltd,Childrens Services,Children's Services,Childrens Homes Outside Local Authority Fees,30-Oct,"23,016.00"
5513639,Redacted Supplier,Education,Children's Services,Professional Services,27-Oct,"1,100.00"
5513640,Law Morgan Limited T/A Morgan Law,Finance,Finance & IT,Agency Staff,27-Oct,"4,984.90"
5513641,ACTION TOGETHER CIO,(blank),(blank),Professional Services,27-Oct,"150,000.00"
5513642,Attenti Consulting,Childrens Services,Children's Services,Agency Staff,27-Oct,"3,840.00"
5513643,Attenti Consulting,Childrens Services,Children's Services,Agency Staff,27-Oct,"2,880.00"
5513645,STRUCTEC (NW) LTD,Housing,Director of Place,Mandatory Adaptations Grant (DFG),06-Oct,"7,219.11"
5513647,TAMESIDE AND GLOSSOP INTEGRATED CARE NHS FOUNDATION TRUST,Childrens Services,Children's Services,Professional Services,06-Oct,"1,980.00"
5513650,Park Lane Minibuses LTD,Education,Children's Services,Transport Of Pupils,06-Oct,"3,215.18"
5513651,Park Lane Minibuses LTD,Education,Children's Services,Transport Of Pupils,06-Oct,"3,021.00"
5513652,Park Lane Minibuses LTD,Education,Children's Services,Transport Of Pupils,06-Oct,"2,660.00"
5513653,Northern Community Pathways Limited,Adult Social Care,Adults,Homecare Fees,30-Oct,"2,484.40"
5513654,Park Lane Minibuses LTD,Education,Children's Services,Transport Of Pupils,06-Oct,"2,603.00"
5513655,Park Lane Minibuses LTD,Education,Children's Services,Transport Of Pupils,06-Oct,"2,412.00"
5513657,Park Lane Minibuses LTD,Education,Children's Services,Transport Of Post 16 Pupils,06-Oct,"2,006.00"
5513658,Park Lane Minibuses LTD,Education,Children's Services,Transport Of Ola Pupils,06-Oct,"2,880.00"
5513659,CARETECH COMMUNITY SERVICES LIMITED,Adult Social Care,Adults,Homecare Fees,24-Nov,"15,970.23"
5513660,CARETECH COMMUNITY SERVICES LIMITED,Adult Social Care,Adults,Residential Home Long Stay Fees,27-Oct,"14,343.04"
5513661,CARETECH COMMUNITY SERVICES LIMITED,Adult Social Care,Adults,Residential Home Long Stay Fees,27-Oct,"8,644.66"
5513662,CARETECH COMMUNITY SERVICES LIMITED,Adult Social Care,Adults,Residential Home Long Stay Fees,27-Oct,"4,755.36"
5513663,CARETECH COMMUNITY SERVICES LIMITED,Adult Social Care,Adults,Residential Home Long Stay Fees,27-Oct,"6,792.23"
5513664,CARETECH COMMUNITY SERVICES LIMITED,Adult Social Care,Adults,Residential Home Long Stay Fees,27-Oct,"5,292.50"
5513665,CARETECH COMMUNITY SERVICES LIMITED,Adult Social Care,Adults,Residential Home Long Stay Fees,27-Oct,"3,704.85"
5513666,CARETECH COMMUNITY SERVICES LIMITED,Adult Social Care,Adults,Residential Home Long Stay Fees,27-Oct,"4,260.60"
5513667,CARETECH COMMUNITY SERVICES LIMITED,Adult Social Care,Adults,Residential Home Long Stay Fees,27-Oct,"3,704.85"
5513668,CARETECH COMMUNITY SERVICES LIMITED,Adult Social Care,Adults,Homecare Fees,27-Oct,"3,969.95"
5513669,CARETECH COMMUNITY SERVICES LIMITED,Adult Social Care,Adults,Residential Home Long Stay Fees,27-Oct,"4,017.20"
5513670,CARETECH COMMUNITY SERVICES LIMITED,Adult Social Care,Adults,Residential Home Long Stay Fees,27-Oct,"2,393.51"
5513671,CARETECH COMMUNITY SERVICES LIMITED,Adult Social Care,Adults,Residential Home Long Stay Fees,27-Oct,"5,909.97"
5513672,CARETECH COMMUNITY SERVICES LIMITED,Adult Social Care,Adults,Residential Home Long Stay Fees,27-Oct,"9,366.43"
5513673,CARETECH COMMUNITY SERVICES LIMITED,Adult Social Care,Adults,Residential Home Long Stay Fees,27-Oct,"4,939.81"
5513674,CARETECH COMMUNITY SERVICES LIMITED,Adult Social Care,Adults,Residential Home Long Stay Fees,27-Oct,"2,767.33"
5513675,CARETECH COMMUNITY SERVICES LIMITED,Adult Social Care,Adults,Residential Home Long Stay Fees,27-Oct,"8,644.66"
5513676,CARETECH COMMUNITY SERVICES LIMITED,Adult Social Care,Adults,Residential Home Long Stay Fees,27-Oct,"6,298.98"
5513677,CARETECH COMMUNITY SERVICES LIMITED,Adult Social Care,Adults,Residential Home Long Stay Fees,27-Oct,"7,196.52"
5513678,CARETECH COMMUNITY SERVICES LIMITED,Adult Social Care,Adults,Residential Home Long Stay Fees,27-Oct,"8,027.18"
5513679,CARETECH COMMUNITY SERVICES LIMITED,Adult Social Care,Adults,Residential Home Long Stay Fees,27-Oct,"8,027.18"
5513680,CARETECH COMMUNITY SERVICES LIMITED,Adult Social Care,Adults,Residential Home Long Stay Fees,27-Oct,"6,792.23"
5513681,CARETECH COMMUNITY SERVICES LIMITED,Adult Social Care,Adults,Residential Home Long Stay Fees,27-Oct,"6,792.23"
5513682,CARETECH COMMUNITY SERVICES LIMITED,Adult Social Care,Adults,Residential Home Long Stay Fees,27-Oct,"6,792.23"
5513683,CARETECH COMMUNITY SERVICES LIMITED,Adult Social Care,Adults,Residential Home Long Stay Fees,27-Oct,"6,730.68"
5513697,SANKOFA SPECIALIST CARE LIMITED,Childrens Services,Children's Services,Childrens Homes Outside Local Authority Fees,04-Oct,"45,857.14"
5513700,TPR Care Services Ltd,(blank),(blank),Living With Formal Support,04-Oct,"1,544.20"
5513702,TPR Care Services Ltd,Childrens Services,Children's Services,Living With Formal Support,04-Oct,"1,544.20"
5513703,TPR Care Services Ltd,(blank),(blank),Living With Formal Support,04-Oct,"1,544.20"
5513704,STAMFORD CARS UK LTD,Education,Children's Services,Transport Of Pupils,10-Oct,"1,045.00"
5513705,STAMFORD CARS UK LTD,Education,Children's Services,Transport Of Pupils,10-Oct,900
5513706,STAMFORD CARS UK LTD,Education,Children's Services,Transport Of Pupils,10-Oct,"2,280.00"
5513707,STAMFORD CARS UK LTD,Education,Children's Services,Transport Of Pupils,10-Oct,"2,280.00"
5513708,STAMFORD CARS UK LTD,Education,Children's Services,Transport Of Post 16 Pupils,10-Oct,"1,890.00"
5513709,STAMFORD CARS UK LTD,Education,Children's Services,Transport Of Pupils,10-Oct,"2,280.00"
5513710,STAMFORD CARS UK LTD,Education,Children's Services,Transport Of Ola Pupils,10-Oct,"1,980.00"
5513711,STAMFORD CARS UK LTD,Education,Children's Services,Transport Of Post 16 Pupils,10-Oct,"1,680.00"
5513712,STAMFORD CARS UK LTD,Education,Children's Services,Transport Of Pupils,10-Oct,"1,235.00"
5513713,STAMFORD CARS UK LTD,Education,Children's Services,Transport Of Post 16 Pupils,10-Oct,"2,080.00"
5513714,CARETECH COMMUNITY SERVICES LIMITED,Adult Social Care,Adults,Residential Home Long Stay Fees,27-Oct,"9,463.60"
5513715,STAMFORD CARS UK LTD,Education,Children's Services,Transport Of Pupils,10-Oct,"2,000.00"
5513716,STAMFORD CARS UK LTD,Education,Children's Services,Transport Of Pupils,10-Oct,"2,280.00"
5513717,STAMFORD CARS UK LTD,Education,Children's Services,Transport Of Pupils,10-Oct,"2,124.00"
5513718,STAMFORD CARS UK LTD,Education,Children's Services,Transport Of Pupils,10-Oct,"2,520.00"
5513719,STAMFORD CARS UK LTD,Education,Children's Services,Transport Of Pupils,10-Oct,"1,995.00"
5513720,STAMFORD CARS UK LTD,Education,Children's Services,Transport Of Pupils,10-Oct,"2,280.00"
5513721,STAMFORD CARS UK LTD,Education,Children's Services,Transport Of Pupils,10-Oct,"2,280.00"
5513722,STAMFORD CARS UK LTD,Education,Children's Services,Transport Of Ola Pupils,10-Oct,"2,160.00"
5513723,CARETECH COMMUNITY SERVICES LIMITED,Adult Social Care,Adults,Residential Home Long Stay Fees,27-Oct,"14,668.58"
5513724,STAMFORD CARS UK LTD,Education,Children's Services,Transport Of Ola Pupils,10-Oct,"2,340.00"
5513726,STAMFORD CARS UK LTD,Education,Children's Services,Transport Of Pupils,10-Oct,"2,546.00"
5513727,CARETECH COMMUNITY SERVICES LIMITED,Adult Social Care,Adults,Residential Home Long Stay Fees,27-Oct,"14,668.58"
5513728,STAMFORD CARS UK LTD,Education,Children's Services,Transport Of Ola Pupils,10-Oct,"2,970.00"
5513730,STAMFORD CARS UK LTD,Education,Children's Services,Transport Of Ola Pupils,10-Oct,"2,160.00"
5513731,STAMFORD CARS UK LTD,Education,Children's Services,Transport Of Ola Pupils,10-Oct,"2,340.00"
5513733,STAMFORD CARS UK LTD,Education,Children's Services,Transport Of Ola Pupils,10-Oct,"1,980.00"
5513734,STAMFORD CARS UK LTD,Education,Children's Services,Transport Of Ola Pupils,10-Oct,"2,250.00"
5513736,STAMFORD CARS UK LTD,Education,Children's Services,Transport Of Ola Pupils,10-Oct,"2,250.00"
5513737,STAMFORD CARS UK LTD,Education,Children's Services,Transport Of Ola Pupils,10-Oct,"2,250.00"
5513740,STAMFORD CARS UK LTD,Education,Children's Services,Transport Of Ola Pupils,10-Oct,"2,430.00"
5513741,STAMFORD CARS UK LTD,Education,Children's Services,Transport Of Pupils,10-Oct,"2,375.00"
5513742,CARETECH COMMUNITY SERVICES LIMITED,Adult Social Care,Adults,Residential Home Long Stay Fees,01-Nov,"14,195.40"
5513744,STAMFORD CARS UK LTD,Education,Children's Services,Transport Of Ola Pupils,10-Oct,"2,232.50"
5513745,STAMFORD CARS UK LTD,Education,Children's Services,Transport Of Pupils,10-Oct,"2,375.00"
5513746,STAMFORD CARS UK LTD,Education,Children's Services,Transport Of Ola Pupils,10-Oct,"3,080.00"
5513747,STAMFORD CARS UK LTD,Education,Children's Services,Transport Of Pupils,10-Oct,"2,565.00"
5513748,STAMFORD CARS UK LTD,Education,Children's Services,Transport Of Ola Pupils,10-Oct,"2,340.00"
5513749,STAMFORD CARS UK LTD,Education,Children's Services,Transport Of Pupils,10-Oct,"2,090.00"
5513750,STAMFORD CARS UK LTD,Education,Children's Services,Transport Of Pupils,10-Oct,"1,600.00"
5513756,STAMFORD CARS UK LTD,Education,Children's Services,Transport Of Pupils,11-Oct,"2,375.00"
5513757,STAMFORD CARS UK LTD,Education,Children's Services,Transport Of Pupils,10-Oct,"1,900.00"
5513759,Joes Travel,Education,Children's Services,Transport Of Pupils,09-Oct,"1,900.00"
5513760,Joes Travel,Education,Children's Services,Transport Of Pupils,09-Oct,"1,890.00"
5513761,Joes Travel,Education,Children's Services,Transport Of Pupils,09-Oct,"2,280.00"
5513762,Joes Travel,Education,Children's Services,Transport Of Pupils,09-Oct,"2,090.00"
5513763,Joes Travel,Operations and Neighbourhoods,Operations and Neighbourhoods,Hired Transport,09-Oct,"2,660.00"
5513764,Joes Travel,Education,Children's Services,Transport Of Pupils,09-Oct,"3,420.00"
5513767,STAMFORD CARS UK LTD,Education,Children's Services,Transport Of Pupils,10-Oct,"1,120.00"
5513768,Joes Travel,Operations and Neighbourhoods,Operations and Neighbourhoods,Hired Transport,09-Oct,"2,730.00"
5513770,Joes Travel,Education,Children's Services,Transport Of Ola Pupils,09-Oct,"2,844.00"
5513771,Joes Travel,Education,Children's Services,Transport Of Pupils,09-Oct,"2,565.00"
5513772,Joes Travel,Operations and Neighbourhoods,Operations and Neighbourhoods,Hired Transport,09-Oct,500
5513773,PARALLEL PARENTS,Childrens Services,Children's Services,Foster Carer Agency Fees,31-Oct,"2,790.90"
5513775,Joes Travel,Education,Children's Services,Transport Of Pupils,09-Oct,"2,200.00"
5513776,Joes Travel,Education,Children's Services,Transport Of Ola Pupils,11-Oct,"3,420.00"
5513777,Joes Travel,Education,Children's Services,Transport Of Ola Pupils,09-Oct,"2,340.00"
5513778,Joes Travel,Education,Children's Services,Transport Of Pupils,09-Oct,"2,280.00"
5513779,Joes Travel,Education,Children's Services,Transport Of Ola Pupils,09-Oct,"2,340.00"
5513780,Joes Travel,Education,Children's Services,Transport Of Ola Pupils,09-Oct,"2,430.00"
5513781,Joes Travel,Education,Children's Services,Transport Of Ola Pupils,09-Oct,"1,980.00"
5513782,PARALLEL PARENTS,Childrens Services,Children's Services,Foster Carer Agency Fees,31-Oct,"3,403.80"
5513783,PARALLEL PARENTS,Childrens Services,Children's Services,Foster Carer Agency Fees,31-Oct,"3,214.80"
5513784,PARALLEL PARENTS,Childrens Services,Children's Services,Foster Carer Agency Fees,31-Oct,"3,154.80"
5513785,PARALLEL PARENTS,Childrens Services,Children's Services,Foster Carer Agency Fees,31-Oct,"2,941.50"
5513786,PARALLEL PARENTS,Childrens Services,Children's Services,Foster Carer Agency Fees,31-Oct,"3,684.60"
5513787,PARALLEL PARENTS,Childrens Services,Children's Services,Foster Carer Agency Fees,31-Oct,"3,694.50"
5513788,PARALLEL PARENTS,Childrens Services,Children's Services,Foster Carer Agency Fees,31-Oct,"3,645.30"
5513789,PARALLEL PARENTS,Childrens Services,Children's Services,Foster Carer Agency Fees,31-Oct,"3,989.40"
5513790,PARALLEL PARENTS,Childrens Services,Children's Services,Foster Carer Agency Fees,31-Oct,"3,321.00"
5513791,PARALLEL PARENTS,Childrens Services,Children's Services,Foster Carer Agency Fees,31-Oct,"2,352.62"
5513792,PARALLEL PARENTS,Childrens Services,Children's Services,Foster Carer Agency Fees,31-Oct,"3,593.10"
5513793,PARALLEL PARENTS,Childrens Services,Children's Services,Foster Carer Agency Fees,31-Oct,"3,214.80"
5513794,PARALLEL PARENTS,Childrens Services,Children's Services,Foster Carer Agency Fees,31-Oct,"3,304.20"
5513795,PARALLEL PARENTS,Childrens Services,Children's Services,Foster Carer Agency Fees,31-Oct,"4,506.00"
5513796,PARALLEL PARENTS,Childrens Services,Children's Services,Foster Carer Agency Fees,31-Oct,"3,462.90"
5513797,PARALLEL PARENTS,Childrens Services,Children's Services,Foster Carer Agency Fees,31-Oct,"3,797.10"
5513798,PARALLEL PARENTS,Childrens Services,Children's Services,Foster Carer Agency Fees,31-Oct,"3,303.90"
5513799,PARALLEL PARENTS,Childrens Services,Children's Services,Foster Carer Agency Fees,31-Oct,"3,684.60"
5513805,THE YABOO COMPANY LIMITED,Operations and Neighbourhoods,Operations and Neighbourhoods,Computer Software,27-Oct,"1,081.00"
5513806,CAPSTONE FOSTER CARE (NORTH) LTD,Childrens Services,Children's Services,Foster Carer Agency Fees,31-Oct,"3,896.39"
5513807,CAPSTONE FOSTER CARE (NORTH) LTD,Childrens Services,Children's Services,Foster Carer Agency Fees,31-Oct,"3,896.39"
5513808,CAPSTONE FOSTER CARE (NORTH) LTD,Childrens Services,Children's Services,Foster Carer Agency Fees,31-Oct,"4,317.06"
5513811,CAPSTONE FOSTER CARE (NORTH) LTD,Childrens Services,Children's Services,Foster Carer Agency Fees,31-Oct,"7,281.51"
5513812,SMI Group,Operations and Neighbourhoods,Operations and Neighbourhoods,Protective Clothing,30-Oct,691.87
5513813,CAPSTONE FOSTER CARE (NORTH) LTD,Childrens Services,Children's Services,Foster Carer Agency Fees,31-Oct,"7,268.01"
5513815,CAPSTONE FOSTER CARE (NORTH) LTD,Childrens Services,Children's Services,Foster Carer Agency Fees,31-Oct,"4,149.29"
5513816,Kibble Education and Care Centre,Childrens Services,Children's Services,Childrens Homes Outside Local Authority Fees,30-Oct,"28,650.00"
5513817,CAPSTONE FOSTER CARE (NORTH) LTD,Childrens Services,Children's Services,Foster Carer Agency Fees,31-Oct,"3,857.43"
